Department,Entity,Date,Expense Type,Expense Area,Supplier,Transaction Number,Amount
Home Office,Disclosure and Barring Services,01/02/2024,IT RUN COST,DBS - Disclosure & Barring Service,CGI IT UK LTD,2891952-GB014122927-240306-2422395-2-2024,29068.74
Home Office,Disclosure and Barring Services,01/02/2024,IT RUN COST,DBS - Disclosure & Barring Service,CGI IT UK LTD,2891725-GB014123308-240306-10249833-2-2024,122998
Home Office,Disclosure and Barring Services,01/02/2024,IT RUN COST,DBS - Disclosure & Barring Service,REPLY LTD,2891717-3241000039-311787-94166747-2-2024,1130000.96
Home Office,Disclosure and Barring Services,02/02/2024,CONTINGENT LABOUR OTHER,DBS - Disclosure & Barring Service,ALEXANDER MANN SOLUTIONS LTD,2891748-2968169A-560478-649245-2-2024,7790.94
Home Office,Disclosure and Barring Services,02/02/2024,CONTINGENT LABOUR OTHER,DBS - Disclosure & Barring Service,ALEXANDER MANN SOLUTIONS LTD,2891809-2968169A-560478-1060365-2-2024,12724.38
Home Office,Disclosure and Barring Services,02/02/2024,CONTINGENT LABOUR OTHER,DBS - Disclosure & Barring Service,ALEXANDER MANN SOLUTIONS LTD,2891717-2968169A-560478-1074445-2-2024,12893.34
Home Office,Disclosure and Barring Services,02/02/2024,CONTINGENT LABOUR OTHER,DBS - Disclosure & Barring Service,ALEXANDER MANN SOLUTIONS LTD,2891944-2968169A-560478-198787-2-2024,23854.44
Home Office,Disclosure and Barring Services,02/02/2024,IT RUN COST,DBS - Disclosure & Barring Service,CGI IT UK LTD,2891717-GB014124251-240306-47322-2-2024,56786.4
Home Office,Disclosure and Barring Services,05/02/2024,IT RUN COST,DBS - Disclosure & Barring Service,ATOS IT SERVICES UK LTD,2891778-5584437673-108063-2118356-2-2024,25420.27
Home Office,Disclosure and Barring Services,05/02/2024,IT RUN COST,DBS - Disclosure & Barring Service,CGI IT UK LTD,2891952-GB014124298-240306-3229122-2-2024,38749.46
Home Office,Disclosure and Barring Services,05/02/2024,IT RUN COST,DBS - Disclosure & Barring Service,CGI IT UK LTD,2891725-GB014123851-240306-7477602-2-2024,89731.22
Home Office,Disclosure and Barring Services,05/02/2024,DBS LEGAL APPEAL,DBS - Disclosure & Barring Service,DLA PIPER UK LLP,2891814-9020031293-170627-28507033-2-2024,342051
Home Office,Disclosure and Barring Services,05/02/2024,BUILDING SERVICE CHARGES,DBS - Disclosure & Barring Service,SHELBORN ASSET MANAGEMENT LTD,2891793-INV-0065-54157-2820212-2-2024,33842.54
Home Office,Disclosure and Barring Services,05/02/2024,BUILDING SERVICE CHARGES,DBS - Disclosure & Barring Service,SHELBORN ASSET MANAGEMENT LTD,2891793-INV-0104-54157-3617802-2-2024,43413.62
Home Office,Disclosure and Barring Services,07/02/2024,IT RUN COST,DBS - Disclosure & Barring Service,REPLY LTD,2891961-3231002351-311787-558525-2-2024,67023
Home Office,Disclosure and Barring Services,07/02/2024,IT RUN COST,DBS - Disclosure & Barring Service,VODAFONE LTD,2891725-UK10/022024/6208-119598-1552298-2-2024,186275.76
Home Office,Disclosure and Barring Services,08/02/2024,IT RUN COST,DBS - Disclosure & Barring Service,CGI IT UK LTD,2891717-GB014124252-240306-30000-2-2024,36000
Home Office,Disclosure and Barring Services,08/02/2024,DIRECT COSTS TICKET PRICE,DBS - Disclosure & Barring Service,HINDUJA GLOBAL SOLUTIONS UK LTD,2891780-23-1264-53040-32832122-2-2024,393985.46
Home Office,Disclosure and Barring Services,09/02/2024,CONTINGENT LABOUR OTHER,DBS - Disclosure & Barring Service,ALEXANDER MANN SOLUTIONS LTD,2891809-2972644A-560478-234602-2-2024,2815.22
Home Office,Disclosure and Barring Services,09/02/2024,CONTINGENT LABOUR OTHER,DBS - Disclosure & Barring Service,ALEXANDER MANN SOLUTIONS LTD,2891748-2972644A-560478-580989-2-2024,6971.87
Home Office,Disclosure and Barring Services,09/02/2024,CONTINGENT LABOUR OTHER,DBS - Disclosure & Barring Service,ALEXANDER MANN SOLUTIONS LTD,2891717-2972644A-560478-992253-2-2024,11907.04
Home Office,Disclosure and Barring Services,09/02/2024,CONTINGENT LABOUR OTHER,DBS - Disclosure & Barring Service,ALEXANDER MANN SOLUTIONS LTD,2891944-2972644A-560478-164659-2-2024,19759.08
Home Office,Disclosure and Barring Services,09/02/2024,IT RUN COST,DBS - Disclosure & Barring Service,CGI IT UK LTD,2891725-GB014124827-240306-8827862-2-2024,105934.34
Home Office,Disclosure and Barring Services,09/02/2024,IT RUN COST,DBS - Disclosure & Barring Service,CGI IT UK LTD,2891725-GB014124862-240306-1015849-2-2024,1219018.8
Home Office,Disclosure and Barring Services,12/02/2024,CONT OUT SERV OTHER,DBS - Disclosure & Barring Service,ALEXANDER MANN SOLUTIONS LTD,2891825-2973780-560478-6459333-2-2024,77512
Home Office,Disclosure and Barring Services,12/02/2024,CONT OUT SERV OTHER,DBS - Disclosure & Barring Service,ALEXANDER MANN SOLUTIONS LTD,2891799-2973779-560478-7712633-2-2024,92551.6
Home Office,Disclosure and Barring Services,13/02/2024,LEGAL ADVICE,DBS - Disclosure & Barring Service,BRISTOWS LLP,2891802-223411-426953-6902671-2-2024,828320.52
Home Office,Disclosure and Barring Services,13/02/2024,LEGAL ADVICE,DBS - Disclosure & Barring Service,DLA PIPER UK LLP,2891771-9020042282-170627-2777101-2-2024,33325.21
Home Office,Disclosure and Barring Services,13/02/2024,DBS DIRECT COSTS C2B,DBS - Disclosure & Barring Service,POST OFFICE LTD,2891780-1000/90066578-239462-26040-2-2024,31248
Home Office,Disclosure and Barring Services,15/02/2024,DIRECT COSTS TICKET PRICE,DBS - Disclosure & Barring Service,HINDUJA GLOBAL SOLUTIONS UK LTD,2891780-23-1377-53040-33656843-2-2024,403882.12
Home Office,Disclosure and Barring Services,15/02/2024,IT RUN COST,DBS - Disclosure & Barring Service,REPLY LTD,2891961-3241000219-311787-59755-2-2024,71706
Home Office,Disclosure and Barring Services,16/02/2024,CONTINGENT LABOUR OTHER,DBS - Disclosure & Barring Service,ALEXANDER MANN SOLUTIONS LTD,2891748-2977220A-560478-580989-2-2024,6971.87
Home Office,Disclosure and Barring Services,16/02/2024,CONTINGENT LABOUR OTHER,DBS - Disclosure & Barring Service,ALEXANDER MANN SOLUTIONS LTD,2891809-2977220A-560478-697755-2-2024,8373.06
Home Office,Disclosure and Barring Services,16/02/2024,CONTINGENT LABOUR OTHER,DBS - Disclosure & Barring Service,ALEXANDER MANN SOLUTIONS LTD,2891717-2977220A-560478-1074445-2-2024,12893.34
Home Office,Disclosure and Barring Services,16/02/2024,CONTINGENT LABOUR OTHER,DBS - Disclosure & Barring Service,ALEXANDER MANN SOLUTIONS LTD,2891944-2977220A-560478-2226766-2-2024,26721.19
Home Office,Disclosure and Barring Services,16/02/2024,CONT OUT SERV OTHER,DBS - Disclosure & Barring Service,IBM UNITED KINGDOM LTD,2891717-5802240282-101457-33163-2-2024,39795.6
Home Office,Disclosure and Barring Services,16/02/2024,CONT OUT SERV OTHER,DBS - Disclosure & Barring Service,IBM UNITED KINGDOM LTD,2891717-5801240719-101457-34363-2-2024,41235.6
Home Office,Disclosure and Barring Services,20/02/2024,IT RUN COST,DBS - Disclosure & Barring Service,CGI IT UK LTD,2891961-GB014125177-240306-2897414-2-2024,34768.97
Home Office,Disclosure and Barring Services,20/02/2024,IT RUN COST,DBS - Disclosure & Barring Service,REPLY LTD,2891717-3241000246-311787-39282072-2-2024,471384.86
Home Office,Disclosure and Barring Services,22/02/2024,IT RUN COST,DBS - Disclosure & Barring Service,CGI IT UK LTD,2891951-GB014125315-240306-8312963-2-2024,99755.56
Home Office,Disclosure and Barring Services,23/02/2024,CONTINGENT LABOUR OTHER,DBS - Disclosure & Barring Service,ALEXANDER MANN SOLUTIONS LTD,2891809-2981667A-560478-335145-2-2024,4021.74
Home Office,Disclosure and Barring Services,23/02/2024,CONTINGENT LABOUR OTHER,DBS - Disclosure & Barring Service,ALEXANDER MANN SOLUTIONS LTD,2891748-2981667A-560478-550193-2-2024,6602.32
Home Office,Disclosure and Barring Services,23/02/2024,CONTINGENT LABOUR OTHER,DBS - Disclosure & Barring Service,ALEXANDER MANN SOLUTIONS LTD,2891944-2981667A-560478-103066-2-2024,12367.92
Home Office,Disclosure and Barring Services,23/02/2024,CONTINGENT LABOUR OTHER,DBS - Disclosure & Barring Service,ALEXANDER MANN SOLUTIONS LTD,2891717-2981667A-560478-1074445-2-2024,12893.34
Home Office,Disclosure and Barring Services,26/02/2024,IT RUN COST,DBS - Disclosure & Barring Service,ATOS IT SERVICES UK LTD,2891778-5584438797-108063-2294461-2-2024,27533.53
Home Office,Disclosure and Barring Services,26/02/2024,IT RUN COST,DBS - Disclosure & Barring Service,VODAFONE LTD,2891725-UK10/022024/7337-119598-37852-2-2024,45422.4
Home Office,Disclosure and Barring Services,27/02/2024,IT RUN COST,DBS - Disclosure & Barring Service,VALIANTYS LTD,2891717-INV-UK-L-2927-55544-35410-2-2024,42492
Home Office,Disclosure and Barring Services,29/02/2024,LEGAL ADVICE,DBS - Disclosure & Barring Service,BRISTOWS LLP,2891802-224534-426953-5784-2-2024,6940.8
Home Office,Disclosure and Barring Services,29/02/2024,LEGAL ADVICE,DBS - Disclosure & Barring Service,BRISTOWS LLP,2891802-224534-426953-26347016-2-2024,316164.2
Home Office,Home Office,01/02/2024,RAIL FARES,CD - Corporate & Delivery,CORPORATE TRAVEL MANAGEMENT (NORTH),0000000-19252-245986-105364292-2-2024,1054173.47
Home Office,Home Office,01/02/2024,ENTERPRISE,CD - Corporate & Delivery,ENTERPRISE RENT-A-CAR UK LTD,0000000-34965565-107797-2907712-2-2024,348844.51
Home Office,Home Office,02/02/2024,CONTINGENT LABOUR OTHER,CD - Corporate & Delivery,ALEXANDER MANN SOLUTIONS LTD,1682113-2968169-560478-288775-2-2024,3465.3
Home Office,Home Office,02/02/2024,CONTINGENT LABOUR OTHER,CD - Corporate & Delivery,ALEXANDER MANN SOLUTIONS LTD,1709106-2968169-560478-367535-2-2024,4410.42
Home Office,Home Office,02/02/2024,CONTINGENT LABOUR OTHER,CD - Corporate & Delivery,ALEXANDER MANN SOLUTIONS LTD,1682114-2968169-560478-645215-2-2024,7742.58
Home Office,Home Office,02/02/2024,CONTINGENT LABOUR OTHER,CD - Corporate & Delivery,ALEXANDER MANN SOLUTIONS LTD,1735100-2968169-560478-4806237-2-2024,57674.84
Home Office,Home Office,02/02/2024,FULL COST,CD - Corporate & Delivery,BROOK STREET (UK) LTD,1496251-30826456-24-100385-66906-2-2024,802.87
Home Office,Home Office,02/02/2024,FULL COST,CD - Corporate & Delivery,BROOK STREET (UK) LTD,1681500-30826456-24-100385-71435-2-2024,857.22
Home Office,Home Office,02/02/2024,FULL COST,CD - Corporate & Delivery,BROOK STREET (UK) LTD,1681105-30826456-24-100385-132202-2-2024,1586.42
Home Office,Home Office,02/02/2024,FULL COST,CD - Corporate & Delivery,BROOK STREET (UK) LTD,1686201-30826456-24-100385-895335-2-2024,10744
Home Office,Home Office,02/02/2024,FULL COST,CD - Corporate & Delivery,BROOK STREET (UK) LTD,1682114-30826456-24-100385-1492631-2-2024,17911.55
Home Office,Home Office,02/02/2024,BASIC SALARY,CD - Corporate & Delivery,CABINET OFFICE,1703109-3837030-113009-22000-2-2024,26400
Home Office,Home Office,02/02/2024,RAIL FARES,CD - Corporate & Delivery,CORPORATE TRAVEL MANAGEMENT (NORTH),0000000-19202-245986-147147501-2-2024,1471614.09
Home Office,Home Office,02/02/2024,AR REFUNDS CTRL,CD - Corporate & Delivery,KPMG LLP,0000000-5502758533-120914-85000-2-2024,102000
Home Office,Home Office,02/02/2024,AR REFUNDS CTRL,CD - Corporate & Delivery,VALIANTYS LTD,0000000-INV-UK-L-2884-55544-35410-2-2024,42492
Home Office,Home Office,05/02/2024,CONTINGENT LABOUR OTHER,CD - Corporate & Delivery,ADECCO UK LTD,1686201-29741492-56679-79291-2-2024,951.49
Home Office,Home Office,05/02/2024,CONTINGENT LABOUR OTHER,CD - Corporate & Delivery,ADECCO UK LTD,1682114-29741492-56679-158582-2-2024,1902.98
Home Office,Home Office,05/02/2024,ADVICE,CD - Corporate & Delivery,ALEXANDER MANN SOLUTIONS LTD,1735100-2969278-560478-26160-2-2024,31392
Home Office,Home Office,07/02/2024,ARVAL FUEL,CD - Corporate & Delivery,ALLSTAR BUSINESS SOLUTIONS LTD,0000000-E2018239830-255582-13073811-2-2024,156885.38
Home Office,Home Office,08/02/2024,FULL COST,CD - Corporate & Delivery,BROOK STREET (UK) LTD,1496251-30836497-24-100385-6804-2-2024,816.48
Home Office,Home Office,08/02/2024,FULL COST,CD - Corporate & Delivery,BROOK STREET (UK) LTD,1681500-30836497-24-100385-71435-2-2024,857.22
Home Office,Home Office,08/02/2024,FULL COST,CD - Corporate & Delivery,BROOK STREET (UK) LTD,1681105-30836497-24-100385-147112-2-2024,1765.34
Home Office,Home Office,08/02/2024,FULL COST,CD - Corporate & Delivery,BROOK STREET (UK) LTD,1686201-30836497-24-100385-980771-2-2024,11769.22
Home Office,Home Office,08/02/2024,FULL COST,CD - Corporate & Delivery,BROOK STREET (UK) LTD,1682114-30836497-24-100385-1129772-2-2024,13557.25
Home Office,Home Office,08/02/2024,IT RUN COST,CD - Corporate & Delivery,SHARED SERVICES CONNECTED LTD (SSCL),1751064-100043333-378790-228068-2-2024,273681.6
Home Office,Home Office,08/02/2024,IT RUN COST,CD - Corporate & Delivery,SHARED SERVICES CONNECTED LTD (SSCL),1751064-100043346-378790-74519678-2-2024,745196.78
Home Office,Home Office,08/02/2024,IT RUN COST,CD - Corporate & Delivery,SHARED SERVICES CONNECTED LTD (SSCL),1751064-100043332-378790-126991401-2-2024,1269914.01
Home Office,Home Office,09/02/2024,CONTINGENT LABOUR OTHER,CD - Corporate & Delivery,ALEXANDER MANN SOLUTIONS LTD,1682113-2972644-560478-288775-2-2024,3465.3
Home Office,Home Office,09/02/2024,CONTINGENT LABOUR OTHER,CD - Corporate & Delivery,ALEXANDER MANN SOLUTIONS LTD,1709106-2972644-560478-367535-2-2024,4410.42
Home Office,Home Office,09/02/2024,CONTINGENT LABOUR OTHER,CD - Corporate & Delivery,ALEXANDER MANN SOLUTIONS LTD,1682114-2972644-560478-4877-2-2024,5852.4
Home Office,Home Office,09/02/2024,CONTINGENT LABOUR OTHER,CD - Corporate & Delivery,ALEXANDER MANN SOLUTIONS LTD,1750000-2972644-560478-126012-2-2024,15121.44
Home Office,Home Office,09/02/2024,CONTINGENT LABOUR OTHER,CD - Corporate & Delivery,ALEXANDER MANN SOLUTIONS LTD,1735100-2972644-560478-3981349-2-2024,47776.19
Home Office,Home Office,09/02/2024,IT RUN COST,CD - Corporate & Delivery,MADE TECH LTD,1750000-INV004477-56527-30375-2-2024,36450
Home Office,Home Office,09/02/2024,OFFICE RELATED,CD - Corporate & Delivery,RESTORE PLC,1709106-1447664-549843-4097751-2-2024,40977.51
Home Office,Home Office,12/02/2024,CONTINGENT LABOUR OTHER,CD - Corporate & Delivery,ADECCO UK LTD,1686201-29746622-56679-79291-2-2024,951.49
Home Office,Home Office,12/02/2024,CONTINGENT LABOUR OTHER,CD - Corporate & Delivery,ADECCO UK LTD,1682114-29746622-56679-158582-2-2024,1902.98
Home Office,Home Office,12/02/2024,RECRUITMENT ADVERTISING,CD - Corporate & Delivery,CABINET OFFICE,1735100-3837277-113009-33600-2-2024,33600
Home Office,Home Office,12/02/2024,RAIL FARES,CD - Corporate & Delivery,CORPORATE TRAVEL MANAGEMENT (NORTH),0000000-19288-245986-100866271-2-2024,1008961.52
Home Office,Home Office,12/02/2024,AR REFUNDS CTRL,CD - Corporate & Delivery,HM REVENUE & CUSTOMS,0000000-18000015842023-187546-9261209-2-2024,111134.51
Home Office,Home Office,12/02/2024,OFFICE RELATED,CD - Corporate & Delivery,IRON MOUNTAIN (UK) LTD,1709106-0806087-116000-41545324-2-2024,415453.24
Home Office,Home Office,13/02/2024,BASIC SALARY,CD - Corporate & Delivery,CABINET OFFICE,1752000-3837254-113009-146954-2-2024,146954
Home Office,Home Office,13/02/2024,OTHER GOVERNMENT DEPARTMENTS,CD - Corporate & Delivery,CABINET OFFICE,1681105-3837255-113009-810677-2-2024,810677
Home Office,Home Office,13/02/2024,GCDA,CD - Corporate & Delivery,KINTO UK LTD,0000000-5196733-150319-4640348-2-2024,46403.48
Home Office,Home Office,13/02/2024,GCDA,CD - Corporate & Delivery,KINTO UK LTD,0000000-5196732-150319-19688156-2-2024,236257.92
Home Office,Home Office,14/02/2024,ARVAL FUEL,CD - Corporate & Delivery,EDENRED (INCENTIVES & MOTIVATION) LIMITED,1684100-01199968-250160-182855-2-2024,182855
Home Office,Home Office,14/02/2024,ARVAL FUEL,CD - Corporate & Delivery,EDENRED (INCENTIVES & MOTIVATION) LIMITED,1684100-01200053-250160-1066775-2-2024,1066775
Home Office,Home Office,14/02/2024,PROCUREMENT CARD - GPC,CD - Corporate & Delivery,RBS,0000000-GPC1302241145-102384-0-2-2024,173084.73
Home Office,Home Office,15/02/2024,CONTINGENT LABOUR OTHER,CD - Corporate & Delivery,OMNI RESOURCE MANAGEMENT SOLUTIONS,1682114-56381-58584-37760-2-2024,45312
Home Office,Home Office,15/02/2024,CONTINGENT LABOUR OTHER,CD - Corporate & Delivery,OMNI RESOURCE MANAGEMENT SOLUTIONS,1682114-57004-58584-51840-2-2024,62208
Home Office,Home Office,16/02/2024,CONTINGENT LABOUR OTHER,CD - Corporate & Delivery,ALEXANDER MANN SOLUTIONS LTD,1682113-2977220-560478-288775-2-2024,3465.3
Home Office,Home Office,16/02/2024,CONTINGENT LABOUR OTHER,CD - Corporate & Delivery,ALEXANDER MANN SOLUTIONS LTD,1750000-2977220-560478-31503-2-2024,3780.36
Home Office,Home Office,16/02/2024,CONTINGENT LABOUR OTHER,CD - Corporate & Delivery,ALEXANDER MANN SOLUTIONS LTD,1709106-2977220-560478-367535-2-2024,4410.42
Home Office,Home Office,16/02/2024,CONTINGENT LABOUR OTHER,CD - Corporate & Delivery,ALEXANDER MANN SOLUTIONS LTD,1682114-2977220-560478-4877-2-2024,5852.4
Home Office,Home Office,16/02/2024,CONTINGENT LABOUR OTHER,CD - Corporate & Delivery,ALEXANDER MANN SOLUTIONS LTD,1735100-2977220-560478-3609589-2-2024,43315.07
Home Office,Home Office,16/02/2024,FULL COST,CD - Corporate & Delivery,BROOK STREET (UK) LTD,1681500-30846736-24-100385-70924-2-2024,851.09
Home Office,Home Office,16/02/2024,FULL COST,CD - Corporate & Delivery,BROOK STREET (UK) LTD,1496251-30846736-24-100385-118916-2-2024,1426.99
Home Office,Home Office,16/02/2024,FULL COST,CD - Corporate & Delivery,BROOK STREET (UK) LTD,1681105-30846736-24-100385-147112-2-2024,1765.34
Home Office,Home Office,16/02/2024,FULL COST,CD - Corporate & Delivery,BROOK STREET (UK) LTD,1682114-30846736-24-100385-108159-2-2024,12979.06
Home Office,Home Office,16/02/2024,FULL COST,CD - Corporate & Delivery,BROOK STREET (UK) LTD,1686201-30846736-24-100385-1182329-2-2024,14187.92
Home Office,Home Office,16/02/2024,WELFARE SERVICES,CD - Corporate & Delivery,MINISTRY OF JUSTICE,1682199-2338665-199603-1021984-2-2024,1021984
Home Office,Home Office,16/02/2024,AR REFUNDS CTRL,CD - Corporate & Delivery,SOCITM ADVISORY,0000000-IN0001360-60539-45825-2-2024,54990
Home Office,Home Office,16/02/2024,AR REFUNDS CTRL,CD - Corporate & Delivery,SOCITM ADVISORY,0000000-IN0001362-60539-47520-2-2024,57024
Home Office,Home Office,16/02/2024,AR REFUNDS CTRL,CD - Corporate & Delivery,SOCITM ADVISORY,0000000-IN0001361-60539-70355-2-2024,84426
Home Office,Home Office,19/02/2024,CONTINGENT LABOUR OTHER,CD - Corporate & Delivery,ADECCO UK LTD,1686201-29752505-56679-79291-2-2024,951.49
Home Office,Home Office,19/02/2024,CONTINGENT LABOUR OTHER,CD - Corporate & Delivery,ADECCO UK LTD,1682114-29752505-56679-158582-2-2024,1902.98
Home Office,Home Office,20/02/2024,ADVICE,CD - Corporate & Delivery,BLOOM PROCUREMENT SERVICES LTD,1735100-SIN046122-518536-40530-2-2024,48636
Home Office,Home Office,20/02/2024,ADVICE,CD - Corporate & Delivery,BLOOM PROCUREMENT SERVICES LTD,1735100-SIN047590-518536-100360-2-2024,120432
Home Office,Home Office,20/02/2024,MATERIALS,CD - Corporate & Delivery,CABINET OFFICE,1735100-3826473-113009-30800-2-2024,30800
Home Office,Home Office,20/02/2024,BASIC SALARY,CD - Corporate & Delivery,CABINET OFFICE,1703109-3837514-113009-534905-2-2024,534905
Home Office,Home Office,20/02/2024,RECRUITMENT ADVERTISING,CD - Corporate & Delivery,CABINET OFFICE,1682199-3837588-113009-1743415-2-2024,1743415
Home Office,Home Office,21/02/2024,OTHER ICT COSTS,CD - Corporate & Delivery,FCDO SERVICES,1709106-70008689-162152-3765996-2-2024,37659.96
Home Office,Home Office,22/02/2024,FULL COST,CD - Corporate & Delivery,BROOK STREET (UK) LTD,1496251-30856721-24-100385-6804-2-2024,816.48
Home Office,Home Office,22/02/2024,FULL COST,CD - Corporate & Delivery,BROOK STREET (UK) LTD,1681500-30856721-24-100385-71435-2-2024,857.22
Home Office,Home Office,22/02/2024,FULL COST,CD - Corporate & Delivery,BROOK STREET (UK) LTD,1681105-30856721-24-100385-147112-2-2024,1765.34
Home Office,Home Office,22/02/2024,FULL COST,CD - Corporate & Delivery,BROOK STREET (UK) LTD,1686201-30856721-24-100385-102748-2-2024,12329.73
Home Office,Home Office,22/02/2024,FULL COST,CD - Corporate & Delivery,BROOK STREET (UK) LTD,1682114-30856721-24-100385-1034095-2-2024,12409.12
Home Office,Home Office,22/02/2024,OTHER,CD - Corporate & Delivery,CONSTELLIA PUBLIC LTD,1735100-INV-7424-59590-48400-2-2024,58080
Home Office,Home Office,22/02/2024,OTHER,CD - Corporate & Delivery,CONSTELLIA PUBLIC LTD,1735100-INV-7423-59590-64900-2-2024,77880
Home Office,Home Office,22/02/2024,OTHER,CD - Corporate & Delivery,CONSTELLIA PUBLIC LTD,1735100-INV-7422-59590-68200-2-2024,81840
Home Office,Home Office,22/02/2024,RAIL FARES,CD - Corporate & Delivery,CORPORATE TRAVEL MANAGEMENT (NORTH),0000000-19362-245986-94645233-2-2024,946456.05
Home Office,Home Office,23/02/2024,CONTINGENT LABOUR OTHER,CD - Corporate & Delivery,ALEXANDER MANN SOLUTIONS LTD,1682113-2981667-560478-288775-2-2024,3465.3
Home Office,Home Office,23/02/2024,CONTINGENT LABOUR OTHER,CD - Corporate & Delivery,ALEXANDER MANN SOLUTIONS LTD,1750000-2981667-560478-31503-2-2024,3780.36
Home Office,Home Office,23/02/2024,CONTINGENT LABOUR OTHER,CD - Corporate & Delivery,ALEXANDER MANN SOLUTIONS LTD,1709106-2981667-560478-367535-2-2024,4410.42
Home Office,Home Office,23/02/2024,CONTINGENT LABOUR OTHER,CD - Corporate & Delivery,ALEXANDER MANN SOLUTIONS LTD,1682114-2981667-560478-456848-2-2024,5482.18
Home Office,Home Office,23/02/2024,CONTINGENT LABOUR OTHER,CD - Corporate & Delivery,ALEXANDER MANN SOLUTIONS LTD,1735100-2981667-560478-4637553-2-2024,55650.64
Home Office,Home Office,23/02/2024,AR REFUNDS CTRL,CD - Corporate & Delivery,EPIQ SYSTEMS LTD,0000000-90824096-54047-2359312-2-2024,28311.74
Home Office,Home Office,26/02/2024,CONTINGENT LABOUR OTHER,CD - Corporate & Delivery,ADECCO UK LTD,1682114-29757800-56679-111436-2-2024,1337.23
Home Office,Home Office,26/02/2024,IT RUN COST,CD - Corporate & Delivery,SOCITM ADVISORY,1751063-IN0001413-60539-45825-2-2024,54990
Home Office,Home Office,26/02/2024,IT RUN COST,CD - Corporate & Delivery,SOCITM ADVISORY,1751063-IN0001415-60539-47565-2-2024,57078
Home Office,Home Office,26/02/2024,IT RUN COST,CD - Corporate & Delivery,SOCITM ADVISORY,1751063-IN0001414-60539-70350-2-2024,84420
Home Office,Home Office,27/02/2024,EXTERNAL,CD - Corporate & Delivery,CSL - KPMG LLP,1703109-5502788147-478245-4163168-2-2024,41631.68
Home Office,Home Office,28/02/2024,ANNES GATE CONTROL,CD - Corporate & Delivery,GOVERNMENT PROPERTY AGENCY (GPA),0000000-00000001/30789-555960-6735107-2-2024,67351.07
Home Office,Home Office,29/02/2024,FULL COST,CD - Corporate & Delivery,BROOK STREET (UK) LTD,1681500-30870759-24-100385-71435-2-2024,857.22
Home Office,Home Office,29/02/2024,FULL COST,CD - Corporate & Delivery,BROOK STREET (UK) LTD,1496251-30870759-24-100385-83916-2-2024,1006.99
Home Office,Home Office,29/02/2024,FULL COST,CD - Corporate & Delivery,BROOK STREET (UK) LTD,1681105-30870759-24-100385-133196-2-2024,1598.35
Home Office,Home Office,29/02/2024,FULL COST,CD - Corporate & Delivery,BROOK STREET (UK) LTD,1686201-30870759-24-100385-1049681-2-2024,12596.15
Home Office,Home Office,29/02/2024,FULL COST,CD - Corporate & Delivery,BROOK STREET (UK) LTD,1682114-30870759-24-100385-110599-2-2024,13271.86
Home Office,Home Office,29/02/2024,LEGAL ADVICE,CD - Corporate & Delivery,GOVERNMENT LEGAL DEPARTMENT,1682199-535434-113504-10871918-2-2024,108719.18
Home Office,Home Office,29/02/2024,AR REFUNDS CTRL,CD - Corporate & Delivery,MINISTRY OF DEFENCE,0000000-7759425-192639-23900159-2-2024,286801.91
Home Office,Home Office,01/02/2024,CONTINGENT LABOUR OTHER,DDaT - Digital Data & Technology,CAPGEMINI UK PLC,1709163-2600110406897-112696-31335-2-2024,37602
Home Office,Home Office,01/02/2024,OTHER ICT COSTS,DDaT - Digital Data & Technology,CAPGEMINI UK PLC,1486658-2600110405524-112696-437634-2-2024,43763.4
Home Office,Home Office,01/02/2024,CONTINGENT LABOUR OTHER,DDaT - Digital Data & Technology,CAPGEMINI UK PLC,1709144-2600110406871-112696-4485975-2-2024,53831.7
Home Office,Home Office,01/02/2024,CONTINGENT LABOUR OTHER,DDaT - Digital Data & Technology,CAPGEMINI UK PLC,1709166-2600110406845-112696-6055276-2-2024,72663.32
Home Office,Home Office,01/02/2024,OTHER ICT COSTS,DDaT - Digital Data & Technology,CAPGEMINI UK PLC,1406917-2600110407081-112696-1015385-2-2024,101538.5
Home Office,Home Office,01/02/2024,OTHER ICT COSTS,DDaT - Digital Data & Technology,CAPGEMINI UK PLC,1406917-2600110407072-112696-1319275-2-2024,131927.5
Home Office,Home Office,01/02/2024,IT RUN COST,DDaT - Digital Data & Technology,CGI IT UK LTD,1892015-GB014122794-240306-27181-2-2024,27181
Home Office,Home Office,01/02/2024,OTHER ICT COSTS,DDaT - Digital Data & Technology,IBM UNITED KINGDOM LTD,1488305-5801240557-101457-32000-2-2024,38400
Home Office,Home Office,01/02/2024,OTHER ICT COSTS,DDaT - Digital Data & Technology,IBM UNITED KINGDOM LTD,1488305-5801240553-101457-41295-2-2024,41295
Home Office,Home Office,01/02/2024,OTHER ICT COSTS,DDaT - Digital Data & Technology,IBM UNITED KINGDOM LTD,1432007-5812230040-101457-7100641-2-2024,710064.1
Home Office,Home Office,01/02/2024,OTHER ICT COSTS,DDaT - Digital Data & Technology,IBM UNITED KINGDOM LTD,1432007-5801240011-101457-7100641-2-2024,710064.1
Home Office,Home Office,01/02/2024,OTHER ICT COSTS,DDaT - Digital Data & Technology,KPMG LLP,1486665-5502763755-120914-274202-2-2024,329042.4
Home Office,Home Office,01/02/2024,OTHER ICT COSTS,DDaT - Digital Data & Technology,SILEX CONSULTING LTD,1432007-260-420152-40280-2-2024,40280
Home Office,Home Office,01/02/2024,END USER COMPUTER SOFTWARE,DDaT - Digital Data & Technology,TOPLEVEL COMPUTING LTD,1709104-19131270-102136-23299-2-2024,23299
Home Office,Home Office,01/02/2024,OTHER ICT COSTS,DDaT - Digital Data & Technology,VISION-BOX SYSTEMS LTD,1432007-24020003-332210-26300-2-2024,26300
Home Office,Home Office,01/02/2024,OTHER ICT COSTS,DDaT - Digital Data & Technology,VISION-BOX SYSTEMS LTD,1432007-24020009-332210-24886284-2-2024,248862.84
Home Office,Home Office,01/02/2024,MOBILE PHONES,DDaT - Digital Data & Technology,VODAFONE LTD,1486655-SD66248-119598-10753936-2-2024,129047.23
Home Office,Home Office,01/02/2024,IT RUN COST,DDaT - Digital Data & Technology,VODAFONE LTD,1709130-1000002800-119598-17192287-2-2024,171922.87
Home Office,Home Office,02/02/2024,CONTINGENT LABOUR OTHER,DDaT - Digital Data & Technology,ALEXANDER MANN SOLUTIONS LTD,1709163-2968169-560478-147002-2-2024,1764.02
Home Office,Home Office,02/02/2024,CONTINGENT LABOUR OTHER,DDaT - Digital Data & Technology,ALEXANDER MANN SOLUTIONS LTD,1486665-2968169-560478-24546-2-2024,2945.52
Home Office,Home Office,02/02/2024,CONTINGENT LABOUR OTHER,DDaT - Digital Data & Technology,ALEXANDER MANN SOLUTIONS LTD,1709138-2968169-560478-34594-2-2024,4151.28
Home Office,Home Office,02/02/2024,CONTINGENT LABOUR OTHER,DDaT - Digital Data & Technology,ALEXANDER MANN SOLUTIONS LTD,1709168-2968169-560478-35929-2-2024,4311.48
Home Office,Home Office,02/02/2024,CONTINGENT LABOUR OTHER,DDaT - Digital Data & Technology,ALEXANDER MANN SOLUTIONS LTD,1892015-2968169-560478-439435-2-2024,5273.22
Home Office,Home Office,02/02/2024,CONTINGENT LABOUR OTHER,DDaT - Digital Data & Technology,ALEXANDER MANN SOLUTIONS LTD,1709160-2968169-560478-635769-2-2024,7629.23
Home Office,Home Office,02/02/2024,CONTINGENT LABOUR OTHER,DDaT - Digital Data & Technology,ALEXANDER MANN SOLUTIONS LTD,1486655-2968169-560478-855825-2-2024,10269.9
Home Office,Home Office,02/02/2024,CONTINGENT LABOUR OTHER,DDaT - Digital Data & Technology,ALEXANDER MANN SOLUTIONS LTD,1709140-2968169-560478-9323-2-2024,11187.6
Home Office,Home Office,02/02/2024,CONTINGENT LABOUR OTHER,DDaT - Digital Data & Technology,ALEXANDER MANN SOLUTIONS LTD,1406917-2968169-560478-13464-2-2024,16156.8
Home Office,Home Office,02/02/2024,CONTINGENT LABOUR OTHER,DDaT - Digital Data & Technology,ALEXANDER MANN SOLUTIONS LTD,1488305-2968169-560478-1784036-2-2024,21408.42
Home Office,Home Office,02/02/2024,CONTINGENT LABOUR OTHER,DDaT - Digital Data & Technology,ALEXANDER MANN SOLUTIONS LTD,1710001-2968169-560478-1961905-2-2024,23542.86
Home Office,Home Office,02/02/2024,CONTINGENT LABOUR OTHER,DDaT - Digital Data & Technology,ALEXANDER MANN SOLUTIONS LTD,1488305-2963750B-560478-21216-2-2024,25459.2
Home Office,Home Office,02/02/2024,CONTINGENT LABOUR OTHER,DDaT - Digital Data & Technology,ALEXANDER MANN SOLUTIONS LTD,1709125-2968169-560478-2230905-2-2024,26770.86
Home Office,Home Office,02/02/2024,CONTINGENT LABOUR OTHER,DDaT - Digital Data & Technology,ALEXANDER MANN SOLUTIONS LTD,1488303-2968169-560478-2530135-2-2024,30361.62
Home Office,Home Office,02/02/2024,CONTINGENT LABOUR OTHER,DDaT - Digital Data & Technology,ALEXANDER MANN SOLUTIONS LTD,1701006-2968169-560478-2980175-2-2024,35762.1
Home Office,Home Office,02/02/2024,CONTINGENT LABOUR OTHER,DDaT - Digital Data & Technology,ALEXANDER MANN SOLUTIONS LTD,1709141-2968169-560478-4806359-2-2024,57676.31
Home Office,Home Office,02/02/2024,CONTINGENT LABOUR OTHER,DDaT - Digital Data & Technology,ALEXANDER MANN SOLUTIONS LTD,1709166-2968169-560478-554028-2-2024,66483.36
Home Office,Home Office,02/02/2024,CONTINGENT LABOUR OTHER,DDaT - Digital Data & Technology,ALEXANDER MANN SOLUTIONS LTD,1816000-2968169-560478-5657466-2-2024,67889.59
Home Office,Home Office,02/02/2024,CONTINGENT LABOUR OTHER,DDaT - Digital Data & Technology,ALEXANDER MANN SOLUTIONS LTD,1709144-2968169-560478-7573304-2-2024,90879.65
Home Office,Home Office,02/02/2024,SYSTEM CLEARING,DDaT - Digital Data & Technology,BAE SYSTEMS APPLIED INTELLIGENCE LIMITED,1431395-1001057888-136604-16430543-2-2024,197166.52
Home Office,Home Office,02/02/2024,IT RUN COST,DDaT - Digital Data & Technology,CAPGEMINI UK PLC,1816013-2600110405134-112696-2089828-2-2024,20898.28
Home Office,Home Office,02/02/2024,IT RUN COST,DDaT - Digital Data & Technology,CAPGEMINI UK PLC,1816013-2600110405223-112696-3849422-2-2024,38494.22
Home Office,Home Office,02/02/2024,IT RUN COST,DDaT - Digital Data & Technology,CAPGEMINI UK PLC,1816013-2600110405184-112696-423994-2-2024,42399.4
Home Office,Home Office,02/02/2024,IT RUN COST,DDaT - Digital Data & Technology,CAPGEMINI UK PLC,1816013-2600110405222-112696-5144192-2-2024,51441.92
Home Office,Home Office,02/02/2024,IT RUN COST,DDaT - Digital Data & Technology,DELOITTE LLP,1710001-8004360827-112904-1306946-2-2024,130694.6
Home Office,Home Office,02/02/2024,IT RUN COST,DDaT - Digital Data & Technology,DELOITTE LLP,1710001-8004360783-112904-17373325-2-2024,173733.25
Home Office,Home Office,02/02/2024,IT RUN COST,DDaT - Digital Data & Technology,DELOITTE LLP,1710001-8004360758-112904-22631462-2-2024,226314.62
Home Office,Home Office,02/02/2024,IT RUN COST,DDaT - Digital Data & Technology,DELOITTE LLP,1710001-8004360701-112904-26632879-2-2024,266328.79
Home Office,Home Office,02/02/2024,CONTINGENT LABOUR OTHER,DDaT - Digital Data & Technology,IBM UNITED KINGDOM LTD,1709144-5801240947-101457-23364-2-2024,28036.8
Home Office,Home Office,02/02/2024,HOSTING,DDaT - Digital Data & Technology,PHOENIX SOFTWARE LTD,1816006-OP/I994754-343631-44479077-2-2024,444790.77
Home Office,Home Office,02/02/2024,MOBILE PHONES,DDaT - Digital Data & Technology,VODAFONE LTD,1486655-SD66245-2-119598-25944-2-2024,31132.8
Home Office,Home Office,02/02/2024,MOBILE PHONES,DDaT - Digital Data & Technology,VODAFONE LTD,1486655-SD66211-2-119598-26790-2-2024,32148
Home Office,Home Office,02/02/2024,MOBILE PHONES,DDaT - Digital Data & Technology,VODAFONE LTD,1486655-SI30263-2-119598-2837365-2-2024,34048.38
Home Office,Home Office,02/02/2024,END USER COMPUTER HARDWARE,DDaT - Digital Data & Technology,XEROX (UK) LTD,1486655-900234027-100997-11791218-2-2024,117912.18
Home Office,Home Office,02/02/2024,END USER COMPUTER SOFTWARE,DDaT - Digital Data & Technology,XMA LTD,1709144-XCS23611-101207-10347428-2-2024,1241691.36
Home Office,Home Office,05/02/2024,CONTINGENT LABOUR OTHER,DDaT - Digital Data & Technology,ALEXANDER MANN SOLUTIONS LTD,1709144-2969287-560478-27289-2-2024,32746.8
Home Office,Home Office,05/02/2024,CONTINGENT LABOUR OTHER,DDaT - Digital Data & Technology,ALEXANDER MANN SOLUTIONS LTD,1709144-2969286-560478-41404-2-2024,49684.8
Home Office,Home Office,05/02/2024,IT RUN COST,DDaT - Digital Data & Technology,BAE SYSTEMS APPLIED INTELLIGENCE LIMITED,1431886-1001058707-136604-725795-2-2024,72579.5
Home Office,Home Office,05/02/2024,SYSTEM CLEARING,DDaT - Digital Data & Technology,BAE SYSTEMS APPLIED INTELLIGENCE LIMITED,1431395-1001058708-136604-23561567-2-2024,282738.8
Home Office,Home Office,05/02/2024,IT RUN COST,DDaT - Digital Data & Technology,BLOOM PROCUREMENT SERVICES LTD,1431395-SIN048254-518536-2098483-2-2024,20984.83
Home Office,Home Office,05/02/2024,IT RUN COST,DDaT - Digital Data & Technology,BLOOM PROCUREMENT SERVICES LTD,1710001-SIN047979-518536-44000-2-2024,52800
Home Office,Home Office,05/02/2024,OTHER ICT COSTS,DDaT - Digital Data & Technology,FUJITSU SERVICES LTD,1486655-1010008856-106173-2636783-2-2024,26367.83
Home Office,Home Office,05/02/2024,OTHER ICT COSTS,DDaT - Digital Data & Technology,FUJITSU SERVICES LTD,1432007-1030020252-106173-8495988-2-2024,84959.88
Home Office,Home Office,05/02/2024,OTHER ICT COSTS,DDaT - Digital Data & Technology,FUJITSU SERVICES LTD,1432007-1030021422-106173-8882264-2-2024,88822.64
Home Office,Home Office,05/02/2024,OTHER ICT COSTS,DDaT - Digital Data & Technology,FUJITSU SERVICES LTD,1486655-1030022060-106173-75714724-2-2024,757147.24
Home Office,Home Office,05/02/2024,END USER COMPUTER SOFTWARE,DDaT - Digital Data & Technology,INSIGHT DIRECT (UK) LTD,1709142-2100819409-112665-688896-2-2024,82667.52
Home Office,Home Office,05/02/2024,IT RUN COST,DDaT - Digital Data & Technology,NOMINET UK,1816002-CI001115-55892-4960527-2-2024,49605.27
Home Office,Home Office,05/02/2024,NETWORKING,DDaT - Digital Data & Technology,VODAFONE LTD,1709130-1000002804-119598-8270112-2-2024,82701.12
Home Office,Home Office,05/02/2024,TELEPHONE,DDaT - Digital Data & Technology,VODAFONE LTD,1486655-105378246-119598-10920261-2-2024,129043.53
Home Office,Home Office,06/02/2024,SYSTEM CLEARING,DDaT - Digital Data & Technology,BAE SYSTEMS APPLIED INTELLIGENCE LIMITED,1431395-1001058713-136604-14487474-2-2024,173849.69
Home Office,Home Office,06/02/2024,IT RUN COST,DDaT - Digital Data & Technology,BLOOM PROCUREMENT SERVICES LTD,1710001-SIN048631-518536-42000-2-2024,50400
Home Office,Home Office,06/02/2024,IT RUN COST,DDaT - Digital Data & Technology,BLOOM PROCUREMENT SERVICES LTD,1710001-SIN048426-518536-21240134-2-2024,254881.61
Home Office,Home Office,06/02/2024,SPECIALIST USER SOFTWARE & HARDWARE,DDaT - Digital Data & Technology,COMPUTACENTER (UK) LTD,1816002-2881002159-100028-6423787-2-2024,77085.44
Home Office,Home Office,06/02/2024,SYSTEM CLEARING,DDaT - Digital Data & Technology,DATALYNX LTD,1892015-1276-184817-52244-2-2024,52244
Home Office,Home Office,06/02/2024,IT RUN COST,DDaT - Digital Data & Technology,FUJITSU SERVICES LTD,1709140-1030011322-106173-34669703-2-2024,346697.03
Home Office,Home Office,06/02/2024,OTHER ICT COSTS,DDaT - Digital Data & Technology,FUJITSU SERVICES LTD,1432007-1030022047-106173-3651584-2-2024,365158.4
Home Office,Home Office,06/02/2024,IT RUN COST,DDaT - Digital Data & Technology,ITM COMMUNICATIONS LTD,1486655-0000061044-103279-27086-2-2024,27086
Home Office,Home Office,06/02/2024,TELEPHONE,DDaT - Digital Data & Technology,LUMEN TECHNOLOGIES UK LTD,1486655-676198821/2079135-100991-4341543-2-2024,52098.51
Home Office,Home Office,06/02/2024,OTHER ICT COSTS,DDaT - Digital Data & Technology,PA CONSULTING SERVICES LTD,1486658-0000029705-100039-51015-2-2024,61218
Home Office,Home Office,06/02/2024,IT RUN COST,DDaT - Digital Data & Technology,REDCENTRIC SOLUTIONS LTD,1709130-FTI008081-58178-585000-2-2024,585000
Home Office,Home Office,06/02/2024,OTHER ICT COSTS,DDaT - Digital Data & Technology,VISION-BOX SYSTEMS LTD,1432007-24020016-332210-76613-2-2024,76613
Home Office,Home Office,06/02/2024,END USER COMPUTER HARDWARE,DDaT - Digital Data & Technology,VOHKUS LTD,1814004-IN30934282-55604-266400-2-2024,319680
Home Office,Home Office,07/02/2024,IT RUN COST,DDaT - Digital Data & Technology,CAPGEMINI UK PLC,1816002-2600110407414-112696-179824-2-2024,179824
Home Office,Home Office,07/02/2024,IT RUN COST,DDaT - Digital Data & Technology,CLARASYS LTD,1710001-INV105342-56484-4490793-2-2024,53889.52
Home Office,Home Office,07/02/2024,RENT TO LANDLORDS,DDaT - Digital Data & Technology,CROWN HOSTING DATA CENTRE LTD,1816002-23247-414197-8886809-2-2024,106641.71
Home Office,Home Office,07/02/2024,RENT TO LANDLORDS,DDaT - Digital Data & Technology,CROWN HOSTING DATA CENTRE LTD,1816002-23248-414197-8886809-2-2024,106641.71
Home Office,Home Office,07/02/2024,IT RUN COST,DDaT - Digital Data & Technology,FUJITSU SERVICES LTD,1892015-1030022334-106173-97730-2-2024,97730
Home Office,Home Office,07/02/2024,OTHER ICT COSTS,DDaT - Digital Data & Technology,IBM UNITED KINGDOM LTD,1488305-5801240949-101457-82450-2-2024,98940
Home Office,Home Office,07/02/2024,OTHER ICT COSTS,DDaT - Digital Data & Technology,IBM UNITED KINGDOM LTD,1488305-5801240950-101457-117889-2-2024,141466.8
Home Office,Home Office,08/02/2024,END USER COMPUTER HARDWARE,DDaT - Digital Data & Technology,IBM UNITED KINGDOM LTD,1432007-6900025394-101457-8626026-2-2024,86260.26
Home Office,Home Office,08/02/2024,END USER COMPUTER HARDWARE,DDaT - Digital Data & Technology,IBM UNITED KINGDOM LTD,1432007-6900025393-101457-10196007-2-2024,101960.07
Home Office,Home Office,08/02/2024,OTHER ICT COSTS,DDaT - Digital Data & Technology,PA CONSULTING SERVICES LTD,1488305-0000029710-100039-32490-2-2024,32490
Home Office,Home Office,08/02/2024,OTHER ICT COSTS,DDaT - Digital Data & Technology,PA CONSULTING SERVICES LTD,1488305-0000029706-100039-71731-2-2024,71731
Home Office,Home Office,09/02/2024,CONTINGENT LABOUR OTHER,DDaT - Digital Data & Technology,ALEXANDER MANN SOLUTIONS LTD,1486665-2972644-560478-24546-2-2024,2945.52
Home Office,Home Office,09/02/2024,CONTINGENT LABOUR OTHER,DDaT - Digital Data & Technology,ALEXANDER MANN SOLUTIONS LTD,1709138-2972644-560478-34594-2-2024,4151.28
Home Office,Home Office,09/02/2024,CONTINGENT LABOUR OTHER,DDaT - Digital Data & Technology,ALEXANDER MANN SOLUTIONS LTD,1709168-2972644-560478-35929-2-2024,4311.48
Home Office,Home Office,09/02/2024,CONTINGENT LABOUR OTHER,DDaT - Digital Data & Technology,ALEXANDER MANN SOLUTIONS LTD,1709101-2972644-560478-49092-2-2024,5891.04
Home Office,Home Office,09/02/2024,CONTINGENT LABOUR OTHER,DDaT - Digital Data & Technology,ALEXANDER MANN SOLUTIONS LTD,1486655-2972644-560478-569675-2-2024,6836.1
Home Office,Home Office,09/02/2024,CONTINGENT LABOUR OTHER,DDaT - Digital Data & Technology,ALEXANDER MANN SOLUTIONS LTD,1709140-2972644-560478-705932-2-2024,8471.18
Home Office,Home Office,09/02/2024,CONTINGENT LABOUR OTHER,DDaT - Digital Data & Technology,ALEXANDER MANN SOLUTIONS LTD,1709163-2972644-560478-783256-2-2024,9399.07
Home Office,Home Office,09/02/2024,CONTINGENT LABOUR OTHER,DDaT - Digital Data & Technology,ALEXANDER MANN SOLUTIONS LTD,1488303-2972644-560478-1801068-2-2024,21612.82
Home Office,Home Office,09/02/2024,CONTINGENT LABOUR OTHER,DDaT - Digital Data & Technology,ALEXANDER MANN SOLUTIONS LTD,1406917-2972644-560478-19431-2-2024,23317.2
Home Office,Home Office,09/02/2024,CONTINGENT LABOUR OTHER,DDaT - Digital Data & Technology,ALEXANDER MANN SOLUTIONS LTD,1709125-2972644-560478-2052285-2-2024,24627.42
Home Office,Home Office,09/02/2024,CONTINGENT LABOUR OTHER,DDaT - Digital Data & Technology,ALEXANDER MANN SOLUTIONS LTD,1488305-2972644-560478-2330684-2-2024,27968.14
Home Office,Home Office,09/02/2024,CONTINGENT LABOUR OTHER,DDaT - Digital Data & Technology,ALEXANDER MANN SOLUTIONS LTD,1701006-2972644-560478-2843506-2-2024,34122.07
Home Office,Home Office,09/02/2024,CONTINGENT LABOUR OTHER,DDaT - Digital Data & Technology,ALEXANDER MANN SOLUTIONS LTD,1710001-2972644-560478-3275545-2-2024,39306.54
Home Office,Home Office,09/02/2024,CONTINGENT LABOUR OTHER,DDaT - Digital Data & Technology,ALEXANDER MANN SOLUTIONS LTD,1709144-2972644-560478-541717-2-2024,65006.04
Home Office,Home Office,09/02/2024,CONTINGENT LABOUR OTHER,DDaT - Digital Data & Technology,ALEXANDER MANN SOLUTIONS LTD,1709141-2972644-560478-5441288-2-2024,65295.46
Home Office,Home Office,09/02/2024,CONTINGENT LABOUR OTHER,DDaT - Digital Data & Technology,ALEXANDER MANN SOLUTIONS LTD,1709166-2972644-560478-7062057-2-2024,84744.69
Home Office,Home Office,09/02/2024,CONTINGENT LABOUR OTHER,DDaT - Digital Data & Technology,ALEXANDER MANN SOLUTIONS LTD,1816000-2972644-560478-7893522-2-2024,94722.28
Home Office,Home Office,09/02/2024,HOSTING,DDaT - Digital Data & Technology,AMAZON WEB SERVICES,1816006-EUMPINGB24-1230-401829-2950937-2-2024,29509.37
Home Office,Home Office,09/02/2024,HOSTING,DDaT - Digital Data & Technology,AMAZON WEB SERVICES,1816006-1570183721-401829-12717834-2-2024,127178.34
Home Office,Home Office,09/02/2024,OTHER ICT COSTS,DDaT - Digital Data & Technology,CAPGEMINI UK PLC,1709163-2600110408507-112696-29222-2-2024,35066.4
Home Office,Home Office,09/02/2024,RENT TO LANDLORDS,DDaT - Digital Data & Technology,CROWN HOSTING DATA CENTRE LTD,1816002-23496-414197-4675511-2-2024,56106.13
Home Office,Home Office,09/02/2024,RENT TO LANDLORDS,DDaT - Digital Data & Technology,CROWN HOSTING DATA CENTRE LTD,1816002-23495-414197-510748-2-2024,61289.76
Home Office,Home Office,09/02/2024,IT RUN COST,DDaT - Digital Data & Technology,DELOITTE LLP,1710001-8004431620-112904-22858-2-2024,22858
Home Office,Home Office,09/02/2024,IT RUN COST,DDaT - Digital Data & Technology,DELOITTE LLP,1710001-8004431623-112904-34334-2-2024,34334
Home Office,Home Office,09/02/2024,OTHER ICT COSTS,DDaT - Digital Data & Technology,DELOITTE LLP,1486665-8004346592-112904-100000-2-2024,120000
Home Office,Home Office,09/02/2024,OTHER ICT COSTS,DDaT - Digital Data & Technology,DELOITTE LLP,1486665-8004346591-112904-110000-2-2024,132000
Home Office,Home Office,09/02/2024,OTHER ICT COSTS,DDaT - Digital Data & Technology,ENGINE PARTNERS UK LLP T/A TRANSFORM,1432007-INV005830-382357-132850-2-2024,132850
Home Office,Home Office,09/02/2024,OTHER ICT COSTS,DDaT - Digital Data & Technology,IBM UNITED KINGDOM LTD,1486665-5801240555-101457-45960-2-2024,55152
Home Office,Home Office,09/02/2024,OTHER ICT COSTS,DDaT - Digital Data & Technology,IBM UNITED KINGDOM LTD,1432007-5802240049-101457-72491552-2-2024,724915.52
Home Office,Home Office,09/02/2024,IT RUN COST,DDaT - Digital Data & Technology,MADE TECH LTD,1475209-INV004470-56527-29925-2-2024,35910
Home Office,Home Office,09/02/2024,IT RUN COST,DDaT - Digital Data & Technology,MADE TECH LTD,1475209-INV004481-56527-49400-2-2024,49400
Home Office,Home Office,09/02/2024,IT RUN COST,DDaT - Digital Data & Technology,MADE TECH LTD,1710001-INV004484-56527-163800-2-2024,196560
Home Office,Home Office,09/02/2024,CONTINGENT LABOUR OTHER,DDaT - Digital Data & Technology,MTI TECHNOLOGY LTD,1486665-SI019934-54171-14925-2-2024,17910
Home Office,Home Office,09/02/2024,IT RUN COST,DDaT - Digital Data & Technology,MTI TECHNOLOGY LTD,1709125-SI019934-54171-42785-2-2024,51342
Home Office,Home Office,09/02/2024,IT RUN COST,DDaT - Digital Data & Technology,NCC GROUP SECURITY SERVICES LTD,1709125-00116131-100598-88050-2-2024,105660
Home Office,Home Office,09/02/2024,CONTINGENT LABOUR OTHER,DDaT - Digital Data & Technology,PA CONSULTING SERVICES LTD,1709144-0000029771-100039-33930-2-2024,40716
Home Office,Home Office,09/02/2024,OTHER ICT COSTS,DDaT - Digital Data & Technology,PA CONSULTING SERVICES LTD,1488305-0000029761-100039-21024522-2-2024,210245.22
Home Office,Home Office,09/02/2024,IT RUN COST,DDaT - Digital Data & Technology,PWM TRAINING (UK) LTD,1486655-SI-6142-55538-26180-2-2024,31416
Home Office,Home Office,09/02/2024,IT RUN COST,DDaT - Digital Data & Technology,PWM TRAINING (UK) LTD,1486655-SI-6145-55538-467075-2-2024,56049
Home Office,Home Office,09/02/2024,IT RUN COST,DDaT - Digital Data & Technology,VAAMG CONSULTING LTD,1710001-1163-03022024-57455-67875-2-2024,81450
Home Office,Home Office,09/02/2024,OTHER ICT COSTS,DDaT - Digital Data & Technology,VALCON GROUP UK LTD,1488305-624010075-54145-6268376-2-2024,75220.51
Home Office,Home Office,09/02/2024,OTHER ICT COSTS,DDaT - Digital Data & Technology,VALCON GROUP UK LTD,1488305-624010074-54145-2068878-2-2024,248265.36
Home Office,Home Office,12/02/2024,OTHER ICT COSTS,DDaT - Digital Data & Technology,ALEXANDER MANN SOLUTIONS LTD,1488305-2973795-560478-45000-2-2024,54000
Home Office,Home Office,12/02/2024,OTHER ICT COSTS,DDaT - Digital Data & Technology,ALEXANDER MANN SOLUTIONS LTD,1709163-2973773-560478-50975-2-2024,61170
Home Office,Home Office,12/02/2024,OTHER ICT COSTS,DDaT - Digital Data & Technology,ALEXANDER MANN SOLUTIONS LTD,1488305-2973796-560478-90000-2-2024,108000
Home Office,Home Office,12/02/2024,HOSTING,DDaT - Digital Data & Technology,ATOS IT SERVICES UK LTD,1709109-5584438310-108063-26374-2-2024,26374
Home Office,Home Office,12/02/2024,HOSTING,DDaT - Digital Data & Technology,ATOS IT SERVICES UK LTD,1709109-5584438314-108063-111633-2-2024,111633
Home Office,Home Office,12/02/2024,OTHER ICT COSTS,DDaT - Digital Data & Technology,BAE SYSTEMS APPLIED INTELLIGENCE LIMITED,1488305-1001058757-136604-910220-2-2024,910220
Home Office,Home Office,12/02/2024,END USER COMPUTER SOFTWARE,DDaT - Digital Data & Technology,BOXXE LTD,1709144-INV0034503-100762-240000-2-2024,288000
Home Office,Home Office,12/02/2024,OTHER ICT COSTS,DDaT - Digital Data & Technology,CAPGEMINI UK PLC,1709144-2600110408715-112696-315765-2-2024,37891.8
Home Office,Home Office,12/02/2024,SYSTEM CLEARING,DDaT - Digital Data & Technology,CAPGEMINI UK PLC,1488303-2600110408504-112696-1488456-2-2024,148845.6
Home Office,Home Office,12/02/2024,HOSTING,DDaT - Digital Data & Technology,CSC COMPUTER SCIENCES CORPORATION,1709104-4201020529-222226-8431984-2-2024,84319.84
Home Office,Home Office,12/02/2024,HOSTING,DDaT - Digital Data & Technology,CSC COMPUTER SCIENCES CORPORATION,1709104-4201020528-222226-8670386-2-2024,86703.86
Home Office,Home Office,12/02/2024,HOSTING,DDaT - Digital Data & Technology,CSC COMPUTER SCIENCES CORPORATION,1709104-4201020532-222226-18484377-2-2024,184843.77
Home Office,Home Office,12/02/2024,HOSTING,DDaT - Digital Data & Technology,CSC COMPUTER SCIENCES CORPORATION,1709104-4201020527-222226-30255203-2-2024,302552.03
Home Office,Home Office,12/02/2024,IT RUN COST,DDaT - Digital Data & Technology,DATALYNX LTD,1709130-1272-184817-25808-2-2024,25808
Home Office,Home Office,12/02/2024,IT RUN COST,DDaT - Digital Data & Technology,DATALYNX LTD,1709130-1273-184817-27658-2-2024,27658
Home Office,Home Office,12/02/2024,IT RUN COST,DDaT - Digital Data & Technology,DATALYNX LTD,1709130-1274-184817-32348-2-2024,32348
Home Office,Home Office,12/02/2024,IT RUN COST,DDaT - Digital Data & Technology,DATALYNX LTD,1709130-1271-184817-85314-2-2024,85314
Home Office,Home Office,12/02/2024,OTHER ICT COSTS,DDaT - Digital Data & Technology,FINCORE LTD,1486658-HO2401M01-125945-8854055-2-2024,88540.55
Home Office,Home Office,12/02/2024,IT RUN COST,DDaT - Digital Data & Technology,FSP CONSULTING SERVICES LTD,1709169-INV-206610-54884-5091429-2-2024,61097.15
Home Office,Home Office,12/02/2024,IT RUN COST,DDaT - Digital Data & Technology,FSP CONSULTING SERVICES LTD,1709169-INV-206614-54884-7201286-2-2024,86415.43
Home Office,Home Office,12/02/2024,IT RUN COST,DDaT - Digital Data & Technology,GAMMA TELECOM LTD,1892015-GA1763920-194326-4679107-2-2024,46791.07
Home Office,Home Office,12/02/2024,IT RUN COST,DDaT - Digital Data & Technology,ITM COMMUNICATIONS LTD,1816002-71467-103279-6341723-2-2024,63417.23
Home Office,Home Office,12/02/2024,IT RUN COST,DDaT - Digital Data & Technology,POLICE DIGITAL SERVICE (PDS),1892026-INV-3215-505506-30816025-2-2024,308160.25
Home Office,Home Office,12/02/2024,OTHER ICT COSTS,DDaT - Digital Data & Technology,SVGC LTD,1488305-INVPW-6266-508467-20895-2-2024,25074
Home Office,Home Office,12/02/2024,OTHER ICT COSTS,DDaT - Digital Data & Technology,SVGC LTD,1488305-INVPW-6265-508467-563866-2-2024,56386.6
Home Office,Home Office,12/02/2024,OTHER ICT COSTS,DDaT - Digital Data & Technology,SVGC LTD,1488305-INVPW-6267-508467-129810604-2-2024,1557727.25
Home Office,Home Office,13/02/2024,HOSTING,DDaT - Digital Data & Technology,AMAZON WEB SERVICES,1816006-EUINGB24-700593-401829-2095379-2-2024,20953.79
Home Office,Home Office,13/02/2024,HOSTING,DDaT - Digital Data & Technology,AMAZON WEB SERVICES,1816006-EUINGB24-544901-401829-3112674-2-2024,31126.74
Home Office,Home Office,13/02/2024,HOSTING,DDaT - Digital Data & Technology,AMAZON WEB SERVICES,1816006-EUINGB24-693039-401829-12429504-2-2024,124295.04
Home Office,Home Office,13/02/2024,HOSTING,DDaT - Digital Data & Technology,AMAZON WEB SERVICES,1816006-EUINGB24-545259-401829-28815336-2-2024,288153.36
Home Office,Home Office,13/02/2024,HOSTING,DDaT - Digital Data & Technology,AMAZON WEB SERVICES,1816006-EUINGB24-495168-401829-5625888-2-2024,562588.8
Home Office,Home Office,13/02/2024,HOSTING,DDaT - Digital Data & Technology,AMAZON WEB SERVICES,1816006-EUINGB24-545293-401829-22971681-2-2024,2297168.1
Home Office,Home Office,13/02/2024,END USER COMPUTER SOFTWARE,DDaT - Digital Data & Technology,CSC COMPUTER SCIENCES CORPORATION,1709104-4201027389-222226-3532619-2-2024,35326.19
Home Office,Home Office,13/02/2024,OTHER ICT COSTS,DDaT - Digital Data & Technology,DELOITTE LLP,1486665-8004429262-112904-233779-2-2024,280534.8
Home Office,Home Office,13/02/2024,OTHER ICT COSTS,DDaT - Digital Data & Technology,DELOITTE LLP,1486665-8004429261-112904-250000-2-2024,300000
Home Office,Home Office,13/02/2024,IT RUN COST,DDaT - Digital Data & Technology,FSP CONSULTING SERVICES LTD,1475209-INV-206596-54884-61590-2-2024,73908
Home Office,Home Office,13/02/2024,OTHER ICT COSTS,DDaT - Digital Data & Technology,HIPPO DIGITAL LTD,1486665-INV000990-59124-141715-2-2024,141715
Home Office,Home Office,13/02/2024,OTHER ICT COSTS,DDaT - Digital Data & Technology,IBM UNITED KINGDOM LTD,1432007-5802240012-101457-2460386-2-2024,24603.86
Home Office,Home Office,13/02/2024,IT RUN COST,DDaT - Digital Data & Technology,ITM COMMUNICATIONS LTD,1816002-71472-103279-4865172-2-2024,48651.72
Home Office,Home Office,13/02/2024,IT RUN COST,DDaT - Digital Data & Technology,ITM COMMUNICATIONS LTD,1816002-71469-103279-5515955-2-2024,55159.55
Home Office,Home Office,13/02/2024,IT RUN COST,DDaT - Digital Data & Technology,ITM COMMUNICATIONS LTD,1816002-71468-103279-8734747-2-2024,87347.47
Home Office,Home Office,13/02/2024,IT RUN COST,DDaT - Digital Data & Technology,ITM COMMUNICATIONS LTD,1816002-71471-103279-14048701-2-2024,140487.01
Home Office,Home Office,13/02/2024,NETWORKING,DDaT - Digital Data & Technology,LEIDOS INNOVATIONS UK LTD,1709130-INV02-000650676-136199-74992336-2-2024,749923.36
Home Office,Home Office,13/02/2024,IT RUN COST,DDaT - Digital Data & Technology,MADE TECH LTD,1475209-INV004472-56527-29325-2-2024,35190
Home Office,Home Office,13/02/2024,OTHER ICT COSTS,DDaT - Digital Data & Technology,PA CONSULTING SERVICES LTD,1486665-0000029726-100039-87500-2-2024,105000
Home Office,Home Office,13/02/2024,IT RUN COST,DDaT - Digital Data & Technology,PA CONSULTING SERVICES LTD,1486665-0000029770-100039-90000-2-2024,108000
Home Office,Home Office,13/02/2024,OTHER ICT COSTS,DDaT - Digital Data & Technology,PA CONSULTING SERVICES LTD,1486665-0000029727-100039-105000-2-2024,126000
Home Office,Home Office,13/02/2024,IT RUN COST,DDaT - Digital Data & Technology,PA CONSULTING SERVICES LTD,1486665-0000029760-100039-121957-2-2024,146348.4
Home Office,Home Office,13/02/2024,IT RUN COST,DDaT - Digital Data & Technology,POLICE DIGITAL SERVICE (PDS),1709140-INV-3089-505506-231000-2-2024,231000
Home Office,Home Office,13/02/2024,CONTINGENT LABOUR OTHER,DDaT - Digital Data & Technology,SOPRA STERIA LTD,1892025-100214970-112699-68200-2-2024,81840
Home Office,Home Office,14/02/2024,SYSTEM CLEARING,DDaT - Digital Data & Technology,ACCENTURE (UK) LTD,1406917-3003649511-106767-293047-2-2024,293047
Home Office,Home Office,14/02/2024,SYSTEM CLEARING,DDaT - Digital Data & Technology,BAE SYSTEMS APPLIED INTELLIGENCE LIMITED,1431395-1001058807-136604-1729448-2-2024,207533.76
Home Office,Home Office,14/02/2024,SYSTEM CLEARING,DDaT - Digital Data & Technology,BLOOM PROCUREMENT SERVICES LTD,1488303-SIN049132-518536-78000-2-2024,93600
Home Office,Home Office,14/02/2024,SYSTEM CLEARING,DDaT - Digital Data & Technology,BLOOM PROCUREMENT SERVICES LTD,1488303-SIN048180-518536-108000-2-2024,129600
Home Office,Home Office,14/02/2024,SYSTEM CLEARING,DDaT - Digital Data & Technology,BLOOM PROCUREMENT SERVICES LTD,1709161-SIN048638-518536-22049999-2-2024,220499.99
Home Office,Home Office,14/02/2024,END USER COMPUTER HARDWARE,DDaT - Digital Data & Technology,CENTERPRISE INTERNATIONAL LTD,1709143-90314341-102706-42435-2-2024,42435
Home Office,Home Office,14/02/2024,OTHER ICT COSTS,DDaT - Digital Data & Technology,COGNIZANT WORLDWIDE LTD,1486658-CW101-0001690472-468613-19532813-2-2024,195328.13
Home Office,Home Office,14/02/2024,OTHER ICT COSTS,DDaT - Digital Data & Technology,COGNIZANT WORLDWIDE LTD,1486658-CW101-0001719882-468613-19532813-2-2024,195328.13
Home Office,Home Office,14/02/2024,IT RUN COST,DDaT - Digital Data & Technology,DELOITTE LLP,1710001-8004440163-112904-96241-2-2024,96241
Home Office,Home Office,14/02/2024,IT RUN COST,DDaT - Digital Data & Technology,DELOITTE LLP,1710001-8004440154-112904-10069669-2-2024,100696.69
Home Office,Home Office,14/02/2024,IT RUN COST,DDaT - Digital Data & Technology,FUJITSU SERVICES LTD,1816002-1030022519-106173-42638539-2-2024,426385.39
Home Office,Home Office,14/02/2024,IT RUN COST,DDaT - Digital Data & Technology,MASTEK (UK) LTD,1709130-90399478-351665-14898648-2-2024,148986.48
Home Office,Home Office,14/02/2024,OTHER ICT COSTS,DDaT - Digital Data & Technology,PA CONSULTING SERVICES LTD,1488305-0000029763-100039-24735-2-2024,29682
Home Office,Home Office,14/02/2024,SYSTEM CLEARING,DDaT - Digital Data & Technology,PA CONSULTING SERVICES LTD,1488303-0000029800-100039-54266-2-2024,54266
Home Office,Home Office,14/02/2024,IT RUN COST,DDaT - Digital Data & Technology,VODAFONE LTD,1709500-394439-119598-5543125-2-2024,66517.5
Home Office,Home Office,15/02/2024,HOSTING,DDaT - Digital Data & Technology,AMAZON WEB SERVICES,1816006-EUINGB24-658619-401829-237397156-2-2024,2373971.56
Home Office,Home Office,15/02/2024,IT RUN COST,DDaT - Digital Data & Technology,ATOS IT SERVICES UK LTD,1892007-5584438473-108063-42900-2-2024,51480
Home Office,Home Office,15/02/2024,IT RUN COST,DDaT - Digital Data & Technology,ATOS IT SERVICES UK LTD,1892007-5584438478-108063-188212-2-2024,225854.4
Home Office,Home Office,15/02/2024,END USER COMPUTER HARDWARE,DDaT - Digital Data & Technology,AVOIRA LTD,1814004-OP/I0000126008-54139-253800-2-2024,304560
Home Office,Home Office,15/02/2024,IT RUN COST,DDaT - Digital Data & Technology,ENTSERV UK LTD,1486665-6134711-102438-25520-2-2024,30624
Home Office,Home Office,15/02/2024,OTHER ICT COSTS,DDaT - Digital Data & Technology,IBM UNITED KINGDOM LTD,1709166-5801240480-101457-66291259-2-2024,795495.11
Home Office,Home Office,15/02/2024,CONTINGENT LABOUR OTHER,DDaT - Digital Data & Technology,LA INTERNATIONAL COMPUTER CONSULTANTS LTD,1709144-LA748263-108950-2181678-2-2024,26180.14
Home Office,Home Office,15/02/2024,SYSTEM CLEARING,DDaT - Digital Data & Technology,LEONARDO UK LTD,1431395-90245566-154349-59613-2-2024,71535.6
Home Office,Home Office,15/02/2024,IT RUN COST,DDaT - Digital Data & Technology,METHODS  BUSINESS AND DIGITAL TECH LTD,1486655-SIN079592-119732-21275-2-2024,25530
Home Office,Home Office,15/02/2024,SYSTEM CLEARING,DDaT - Digital Data & Technology,PA CONSULTING SERVICES LTD,1406917-0000029883-100039-594506-2-2024,594506
Home Office,Home Office,15/02/2024,HOSTING,DDaT - Digital Data & Technology,PHOENIX SOFTWARE LTD,1816006-OP/I998049-343631-44048614-2-2024,440486.14
Home Office,Home Office,15/02/2024,SYSTEM CLEARING,DDaT - Digital Data & Technology,SOFTCAT LTD,1816002-INVUK1190251-242804-139995-2-2024,167994
Home Office,Home Office,15/02/2024,SPECIALIST USER SOFTWARE & HARDWARE,DDaT - Digital Data & Technology,VODAFONE LTD,1709130-IB060348-119598-3089075-2-2024,30890.75
Home Office,Home Office,16/02/2024,CONTINGENT LABOUR OTHER,DDaT - Digital Data & Technology,ALEXANDER MANN SOLUTIONS LTD,1486665-2977220-560478-24546-2-2024,2945.52
Home Office,Home Office,16/02/2024,CONTINGENT LABOUR OTHER,DDaT - Digital Data & Technology,ALEXANDER MANN SOLUTIONS LTD,1709138-2977220-560478-34594-2-2024,4151.28
Home Office,Home Office,16/02/2024,CONTINGENT LABOUR OTHER,DDaT - Digital Data & Technology,ALEXANDER MANN SOLUTIONS LTD,1709168-2977220-560478-35929-2-2024,4311.48
Home Office,Home Office,16/02/2024,CONTINGENT LABOUR OTHER,DDaT - Digital Data & Technology,ALEXANDER MANN SOLUTIONS LTD,1486655-2977220-560478-569675-2-2024,6836.1
Home Office,Home Office,16/02/2024,CONTINGENT LABOUR OTHER,DDaT - Digital Data & Technology,ALEXANDER MANN SOLUTIONS LTD,1892015-2977220-560478-790983-2-2024,9491.8
Home Office,Home Office,16/02/2024,CONTINGENT LABOUR OTHER,DDaT - Digital Data & Technology,ALEXANDER MANN SOLUTIONS LTD,1709140-2977220-560478-9323-2-2024,11187.6
Home Office,Home Office,16/02/2024,CONTINGENT LABOUR OTHER,DDaT - Digital Data & Technology,ALEXANDER MANN SOLUTIONS LTD,1709163-2977220-560478-1268298-2-2024,15219.58
Home Office,Home Office,16/02/2024,CONTINGENT LABOUR OTHER,DDaT - Digital Data & Technology,ALEXANDER MANN SOLUTIONS LTD,1475209-2977220-560478-13744-2-2024,16492.8
Home Office,Home Office,16/02/2024,CONTINGENT LABOUR OTHER,DDaT - Digital Data & Technology,ALEXANDER MANN SOLUTIONS LTD,1406917-2977220-560478-14025-2-2024,16830
Home Office,Home Office,16/02/2024,CONTINGENT LABOUR OTHER,DDaT - Digital Data & Technology,ALEXANDER MANN SOLUTIONS LTD,1709125-2977220-560478-1901765-2-2024,22821.18
Home Office,Home Office,16/02/2024,CONTINGENT LABOUR OTHER,DDaT - Digital Data & Technology,ALEXANDER MANN SOLUTIONS LTD,1710001-2977220-560478-19938-2-2024,23925.6
Home Office,Home Office,16/02/2024,CONTINGENT LABOUR OTHER,DDaT - Digital Data & Technology,ALEXANDER MANN SOLUTIONS LTD,1488303-2977220-560478-2113473-2-2024,25361.67
Home Office,Home Office,16/02/2024,CONTINGENT LABOUR OTHER,DDaT - Digital Data & Technology,ALEXANDER MANN SOLUTIONS LTD,1488305-2977220-560478-2465383-2-2024,29584.6
Home Office,Home Office,16/02/2024,CONTINGENT LABOUR OTHER,DDaT - Digital Data & Technology,ALEXANDER MANN SOLUTIONS LTD,1701006-2977220-560478-2687605-2-2024,32251.26
Home Office,Home Office,16/02/2024,CONTINGENT LABOUR OTHER,DDaT - Digital Data & Technology,ALEXANDER MANN SOLUTIONS LTD,1709141-2977220-560478-3582353-2-2024,42988.24
Home Office,Home Office,16/02/2024,CONTINGENT LABOUR OTHER,DDaT - Digital Data & Technology,ALEXANDER MANN SOLUTIONS LTD,1709166-2977220-560478-5986831-2-2024,71841.97
Home Office,Home Office,16/02/2024,CONTINGENT LABOUR OTHER,DDaT - Digital Data & Technology,ALEXANDER MANN SOLUTIONS LTD,1816000-2977220-560478-6620642-2-2024,79447.7
Home Office,Home Office,16/02/2024,CONTINGENT LABOUR OTHER,DDaT - Digital Data & Technology,ALEXANDER MANN SOLUTIONS LTD,1709144-2977220-560478-854838-2-2024,102580.56
Home Office,Home Office,16/02/2024,OTHER ICT COSTS,DDaT - Digital Data & Technology,CAPGEMINI UK PLC,1486658-2600110409386-112696-63450-2-2024,63450
Home Office,Home Office,16/02/2024,SYSTEM CLEARING,DDaT - Digital Data & Technology,COMPUTACENTER (UK) LTD,1814004-3884405174-100028-69600-2-2024,83520
Home Office,Home Office,16/02/2024,HOSTING,DDaT - Digital Data & Technology,CSC COMPUTER SCIENCES CORPORATION,1709104-4201027725-222226-8010385-2-2024,80103.85
Home Office,Home Office,16/02/2024,HOSTING,DDaT - Digital Data & Technology,CSC COMPUTER SCIENCES CORPORATION,1709104-4201027723-222226-8236867-2-2024,82368.67
Home Office,Home Office,16/02/2024,HOSTING,DDaT - Digital Data & Technology,CSC COMPUTER SCIENCES CORPORATION,1709104-4201027727-222226-8780079-2-2024,87800.79
Home Office,Home Office,16/02/2024,HOSTING,DDaT - Digital Data & Technology,CSC COMPUTER SCIENCES CORPORATION,1709104-4201027728-222226-8780079-2-2024,87800.79
Home Office,Home Office,16/02/2024,HOSTING,DDaT - Digital Data & Technology,CSC COMPUTER SCIENCES CORPORATION,1709104-4201027722-222226-28742443-2-2024,287424.43
Home Office,Home Office,16/02/2024,IT RUN COST,DDaT - Digital Data & Technology,FUJITSU SERVICES LTD,1709142-1030022568-106173-36472481-2-2024,364724.81
Home Office,Home Office,16/02/2024,HOSTING,DDaT - Digital Data & Technology,KYNDRYL UK LTD,1709109-6716004606-56948-4791667-2-2024,47916.67
Home Office,Home Office,16/02/2024,SYSTEM CLEARING,DDaT - Digital Data & Technology,LEONARDO UK LTD,1431395-90246135-154349-18232114-2-2024,218785.37
Home Office,Home Office,16/02/2024,SYSTEM CLEARING,DDaT - Digital Data & Technology,LEONARDO UK LTD,1431395-90246134-154349-214204204-2-2024,2570450.45
Home Office,Home Office,19/02/2024,CONTINGENT LABOUR OTHER,DDaT - Digital Data & Technology,ALEXANDER MANN SOLUTIONS LTD,1709144-2978332-560478-32023-2-2024,38427.6
Home Office,Home Office,19/02/2024,IT RUN COST,DDaT - Digital Data & Technology,ATOS IT SERVICES UK LTD,1892007-5584438593-108063-31980-2-2024,38376
Home Office,Home Office,19/02/2024,OTHER ICT COSTS,DDaT - Digital Data & Technology,BROVANTURE LTD,1709144-651989-53554-53350-2-2024,64020
Home Office,Home Office,19/02/2024,SYSTEM CLEARING,DDaT - Digital Data & Technology,BT GLOBAL SERVICES,1816009-648688-113921-37500-2-2024,45000
Home Office,Home Office,19/02/2024,SYSTEM CLEARING,DDaT - Digital Data & Technology,BT GLOBAL SERVICES,1816009-648623-113921-12610042-2-2024,151320.5
Home Office,Home Office,19/02/2024,RECRUITMENT ADVERTISING,DDaT - Digital Data & Technology,CABINET OFFICE,1709117-3837515-113009-92645-2-2024,92645
Home Office,Home Office,19/02/2024,SPECIALIST USER SOFTWARE & HARDWARE,DDaT - Digital Data & Technology,CGI IT UK LTD,1709130-GB014125313-240306-97002886-2-2024,970028.86
Home Office,Home Office,19/02/2024,IT RUN COST,DDaT - Digital Data & Technology,FCDO SERVICES,1709140-70008310-162152-6292229-2-2024,75506.75
Home Office,Home Office,19/02/2024,OTHER ICT COSTS,DDaT - Digital Data & Technology,FINCORE LTD,1432007-HO2401M02-125945-5192773-2-2024,51927.73
Home Office,Home Office,19/02/2024,OTHER ICT COSTS,DDaT - Digital Data & Technology,FINCORE LTD,1432007-HO2312M79-125945-5254639-2-2024,52546.39
Home Office,Home Office,19/02/2024,END USER COMPUTER SOFTWARE,DDaT - Digital Data & Technology,SPECIALIST COMPUTER CENTRES PLC,1709130-OP/ N529006-100774-531657-2-2024,53165.7
Home Office,Home Office,20/02/2024,OTHER ICT COSTS,DDaT - Digital Data & Technology,ACCENTURE (UK) LTD,1486658-3003650000-106767-948635-2-2024,94863.5
Home Office,Home Office,20/02/2024,IT RUN COST,DDaT - Digital Data & Technology,BSI CYBERSECURITY AND INFORMATION RESILIANCE (UK) LIMITED,1486665-96478062-312175-347625-2-2024,41715
Home Office,Home Office,20/02/2024,IT RUN COST,DDaT - Digital Data & Technology,BSI CYBERSECURITY AND INFORMATION RESILIANCE (UK) LIMITED,1486665-96477754-312175-417625-2-2024,50115
Home Office,Home Office,20/02/2024,SYSTEM CLEARING,DDaT - Digital Data & Technology,LEONARDO UK LTD,1431395-90246187-154349-53284-2-2024,53284
Home Office,Home Office,20/02/2024,SYSTEM CLEARING,DDaT - Digital Data & Technology,LEONARDO UK LTD,1431395-90246189-154349-5270798-2-2024,63249.58
Home Office,Home Office,20/02/2024,SYSTEM CLEARING,DDaT - Digital Data & Technology,LEONARDO UK LTD,1431395-90246192-154349-119226-2-2024,143071.2
Home Office,Home Office,20/02/2024,IT RUN COST,DDaT - Digital Data & Technology,MADE TECH LTD,1475209-INV004479-56527-28500-2-2024,28500
Home Office,Home Office,20/02/2024,IT RUN COST,DDaT - Digital Data & Technology,METHODS  BUSINESS AND DIGITAL TECH LTD,1710001-SIN079594-119732-2803125-2-2024,33637.5
Home Office,Home Office,20/02/2024,IT RUN COST,DDaT - Digital Data & Technology,ORACLE CORPORATION UK LIMITED,1710001-460143391-100642-47635404-2-2024,476354.04
Home Office,Home Office,20/02/2024,END USER COMPUTER HARDWARE,DDaT - Digital Data & Technology,XMA LTD,1709143-LF66084-101207-17194204-2-2024,171942.04
Home Office,Home Office,21/02/2024,OTHER ICT COSTS,DDaT - Digital Data & Technology,6POINT6 LTD,1488305-4002-338678-11856209-2-2024,118562.09
Home Office,Home Office,21/02/2024,OTHER ICT COSTS,DDaT - Digital Data & Technology,6POINT6 LTD,1486602-4011-338678-645465-2-2024,774558
Home Office,Home Office,21/02/2024,SYSTEM CLEARING,DDaT - Digital Data & Technology,CAPGEMINI UK PLC,1488303-2600110408647-112696-9360034-2-2024,112320.4
Home Office,Home Office,21/02/2024,SYSTEM CLEARING,DDaT - Digital Data & Technology,CAPGEMINI UK PLC,1488303-2600110408697-112696-6610841-2-2024,793300.92
Home Office,Home Office,21/02/2024,IT RUN COST,DDaT - Digital Data & Technology,MASTEK (UK) LTD,1709130-90399600-351665-20792674-2-2024,207926.74
Home Office,Home Office,21/02/2024,SYSTEM CLEARING,DDaT - Digital Data & Technology,NETCOMPANY UK LIMITED,1488303-NCUK62992-465524-955165-2-2024,114619.8
Home Office,Home Office,21/02/2024,IT RUN COST,DDaT - Digital Data & Technology,SYRENIS LTD,1475209-INV-006932-200839-77136-2-2024,92563.2
Home Office,Home Office,21/02/2024,IT RUN COST,DDaT - Digital Data & Technology,VYSIION LTD,1816008-41742-55229-69850-2-2024,69850
Home Office,Home Office,22/02/2024,OTHER ICT COSTS,DDaT - Digital Data & Technology,FUJITSU SERVICES LTD,1432007-1030022393-106173-8882264-2-2024,88822.64
Home Office,Home Office,22/02/2024,OTHER ICT COSTS,DDaT - Digital Data & Technology,FUJITSU SERVICES LTD,1486665-1010008941-106173-3851504-2-2024,385150.4
Home Office,Home Office,22/02/2024,IT RUN COST,DDaT - Digital Data & Technology,FUJITSU SERVICES LTD,1709500-1030022678-106173-135039126-2-2024,1620469.51
Home Office,Home Office,22/02/2024,IT RUN COST,DDaT - Digital Data & Technology,IDENTITY E2E LTD,1709101-101920-384232-75845138-2-2024,910141.66
Home Office,Home Office,22/02/2024,OTHER ICT COSTS,DDaT - Digital Data & Technology,KPMG LLP,1709125-5502773784-120914-85000-2-2024,102000
Home Office,Home Office,22/02/2024,HOSTING,DDaT - Digital Data & Technology,KYNDRYL UK LTD,1709109-6716004682-56948-411698-2-2024,41169.8
Home Office,Home Office,22/02/2024,IT RUN COST,DDaT - Digital Data & Technology,ORACLE CORPORATION UK LIMITED,1710001-460128512-100642-2137104-2-2024,21371.04
Home Office,Home Office,22/02/2024,IT RUN COST,DDaT - Digital Data & Technology,ORACLE CORPORATION UK LIMITED,1710001-460128511-100642-27177556-2-2024,271775.56
Home Office,Home Office,22/02/2024,IT RUN COST,DDaT - Digital Data & Technology,ORACLE CORPORATION UK LIMITED,1710001-460128513-100642-145629906-2-2024,1456299.06
Home Office,Home Office,22/02/2024,OTHER ICT COSTS,DDaT - Digital Data & Technology,PA CONSULTING SERVICES LTD,1486665-0000029728-100039-73330-2-2024,87996
Home Office,Home Office,22/02/2024,OTHER ICT COSTS,DDaT - Digital Data & Technology,PA CONSULTING SERVICES LTD,1488305-0000029762-100039-215046-2-2024,258055.2
Home Office,Home Office,23/02/2024,CONTINGENT LABOUR OTHER,DDaT - Digital Data & Technology,ALEXANDER MANN SOLUTIONS LTD,1709101-2981667-560478-24546-2-2024,2945.52
Home Office,Home Office,23/02/2024,CONTINGENT LABOUR OTHER,DDaT - Digital Data & Technology,ALEXANDER MANN SOLUTIONS LTD,1486665-2981667-560478-24546-2-2024,2945.52
Home Office,Home Office,23/02/2024,CONTINGENT LABOUR OTHER,DDaT - Digital Data & Technology,ALEXANDER MANN SOLUTIONS LTD,1709138-2981667-560478-34594-2-2024,4151.28
Home Office,Home Office,23/02/2024,CONTINGENT LABOUR OTHER,DDaT - Digital Data & Technology,ALEXANDER MANN SOLUTIONS LTD,1709168-2981667-560478-35929-2-2024,4311.48
Home Office,Home Office,23/02/2024,CONTINGENT LABOUR OTHER,DDaT - Digital Data & Technology,ALEXANDER MANN SOLUTIONS LTD,1709163-2981667-560478-367505-2-2024,4410.06
Home Office,Home Office,23/02/2024,CONTINGENT LABOUR OTHER,DDaT - Digital Data & Technology,ALEXANDER MANN SOLUTIONS LTD,1892015-2981667-560478-439435-2-2024,5273.22
Home Office,Home Office,23/02/2024,CONTINGENT LABOUR OTHER,DDaT - Digital Data & Technology,ALEXANDER MANN SOLUTIONS LTD,1709160-2981667-560478-493017-2-2024,5916.2
Home Office,Home Office,23/02/2024,CONTINGENT LABOUR OTHER,DDaT - Digital Data & Technology,ALEXANDER MANN SOLUTIONS LTD,1486655-2981667-560478-541323-2-2024,6495.88
Home Office,Home Office,23/02/2024,CONTINGENT LABOUR OTHER,DDaT - Digital Data & Technology,ALEXANDER MANN SOLUTIONS LTD,1709140-2981667-560478-84934-2-2024,10192.08
Home Office,Home Office,23/02/2024,CONTINGENT LABOUR OTHER,DDaT - Digital Data & Technology,ALEXANDER MANN SOLUTIONS LTD,1892027-2981667-560478-100208-2-2024,12024.96
Home Office,Home Office,23/02/2024,CONTINGENT LABOUR OTHER,DDaT - Digital Data & Technology,ALEXANDER MANN SOLUTIONS LTD,1892025-2981667-560478-1312005-2-2024,15744.06
Home Office,Home Office,23/02/2024,CONTINGENT LABOUR OTHER,DDaT - Digital Data & Technology,ALEXANDER MANN SOLUTIONS LTD,1406917-2981667-560478-14076-2-2024,16891.2
Home Office,Home Office,23/02/2024,CONTINGENT LABOUR OTHER,DDaT - Digital Data & Technology,ALEXANDER MANN SOLUTIONS LTD,1709125-2981667-560478-1889134-2-2024,22669.6
Home Office,Home Office,23/02/2024,CONTINGENT LABOUR OTHER,DDaT - Digital Data & Technology,ALEXANDER MANN SOLUTIONS LTD,1488303-2981667-560478-2083289-2-2024,24999.48
Home Office,Home Office,23/02/2024,CONTINGENT LABOUR OTHER,DDaT - Digital Data & Technology,ALEXANDER MANN SOLUTIONS LTD,1488305-2981667-560478-2619848-2-2024,31438.15
Home Office,Home Office,23/02/2024,CONTINGENT LABOUR OTHER,DDaT - Digital Data & Technology,ALEXANDER MANN SOLUTIONS LTD,1701006-2981667-560478-291557-2-2024,34986.84
Home Office,Home Office,23/02/2024,CONTINGENT LABOUR OTHER,DDaT - Digital Data & Technology,ALEXANDER MANN SOLUTIONS LTD,1709166-2981667-560478-4941823-2-2024,59301.88
Home Office,Home Office,23/02/2024,CONTINGENT LABOUR OTHER,DDaT - Digital Data & Technology,ALEXANDER MANN SOLUTIONS LTD,1709141-2981667-560478-5063276-2-2024,60759.32
Home Office,Home Office,23/02/2024,CONTINGENT LABOUR OTHER,DDaT - Digital Data & Technology,ALEXANDER MANN SOLUTIONS LTD,1710001-2981667-560478-5275204-2-2024,63302.44
Home Office,Home Office,23/02/2024,IT RUN COST,DDaT - Digital Data & Technology,ALEXANDER MANN SOLUTIONS LTD,1892025-2982703-560478-66505-2-2024,66505
Home Office,Home Office,23/02/2024,CONTINGENT LABOUR OTHER,DDaT - Digital Data & Technology,ALEXANDER MANN SOLUTIONS LTD,1816000-2981667-560478-6158708-2-2024,73904.49
Home Office,Home Office,23/02/2024,CONTINGENT LABOUR OTHER,DDaT - Digital Data & Technology,ALEXANDER MANN SOLUTIONS LTD,1709144-2981667-560478-8332823-2-2024,99993.88
Home Office,Home Office,23/02/2024,CONTINGENT LABOUR OTHER,DDaT - Digital Data & Technology,ALEXANDER MANN SOLUTIONS LTD,1701006-2973777-560478-10053667-2-2024,120644
Home Office,Home Office,23/02/2024,OTHER ICT COSTS,DDaT - Digital Data & Technology,CLARASYS LTD,1486658-INV105321-56484-28610-2-2024,34332
Home Office,Home Office,23/02/2024,IT RUN COST,DDaT - Digital Data & Technology,FUJITSU SERVICES LTD,1816002-1030022637-106173-16713759-2-2024,167137.59
Home Office,Home Office,23/02/2024,OTHER ICT COSTS,DDaT - Digital Data & Technology,FUJITSU SERVICES LTD,1486655-1030022592-106173-172000-2-2024,172000
Home Office,Home Office,23/02/2024,IT RUN COST,DDaT - Digital Data & Technology,LEONARDO UK LTD,1431395-90246367-154349-2569263-2-2024,30831.16
Home Office,Home Office,23/02/2024,IT RUN COST,DDaT - Digital Data & Technology,MADE TECH LTD,1475209-INV004487-56527-43600-2-2024,43600
Home Office,Home Office,23/02/2024,IT RUN COST,DDaT - Digital Data & Technology,MADE TECH LTD,1475209-INV004431-56527-70875-2-2024,70875
Home Office,Home Office,23/02/2024,CONTINGENT LABOUR OTHER,DDaT - Digital Data & Technology,PA CONSULTING SERVICES LTD,1709144-0000030053-100039-165682-2-2024,198818.4
Home Office,Home Office,23/02/2024,IT RUN COST,DDaT - Digital Data & Technology,REDCENTRIC SOLUTIONS LTD,1709130-FTI008155-58178-61487-2-2024,61487
Home Office,Home Office,23/02/2024,IT RUN COST,DDaT - Digital Data & Technology,REDCENTRIC SOLUTIONS LTD,1709130-FTI008154-58178-242524-2-2024,242524
Home Office,Home Office,26/02/2024,OTHER ICT COSTS,DDaT - Digital Data & Technology,6POINT6 LTD,1488305-3990-338678-29424227-2-2024,294242.27
Home Office,Home Office,26/02/2024,IT RUN COST,DDaT - Digital Data & Technology,IBM UNITED KINGDOM LTD,1709166-5801240873-101457-39468-2-2024,39468
Home Office,Home Office,26/02/2024,OTHER ICT COSTS,DDaT - Digital Data & Technology,IBM UNITED KINGDOM LTD,1709144-5801240847-101457-33400-2-2024,40080
Home Office,Home Office,26/02/2024,OTHER ICT COSTS,DDaT - Digital Data & Technology,IBM UNITED KINGDOM LTD,1709166-5801240846-101457-6677875-2-2024,80134.5
Home Office,Home Office,26/02/2024,IT RUN COST,DDaT - Digital Data & Technology,IBM UNITED KINGDOM LTD,1709166-5802240425-101457-38334783-2-2024,383347.83
Home Office,Home Office,26/02/2024,IT RUN COST,DDaT - Digital Data & Technology,IBM UNITED KINGDOM LTD,1709166-5802240460-101457-42410905-2-2024,424109.05
Home Office,Home Office,26/02/2024,HOSTING,DDaT - Digital Data & Technology,LEIDOS INNOVATIONS UK LTD,1709109-INV02-000667146-136199-14340362-2-2024,143403.62
Home Office,Home Office,26/02/2024,SPECIALIST USER SOFTWARE & HARDWARE,DDaT - Digital Data & Technology,LEIDOS INNOVATIONS UK LTD,1709109-INV02-000667161-136199-34688492-2-2024,346884.92
Home Office,Home Office,27/02/2024,TELEPHONE,DDaT - Digital Data & Technology,BRITISH TELECOMMUNICATIONS LTD,1709500-VP 5030 2270 M237 68-112676-238683-2-2024,28621.96
Home Office,Home Office,27/02/2024,IT RUN COST,DDaT - Digital Data & Technology,CAPGEMINI UK PLC,1892025-2600110408499-112696-22264-2-2024,22264
Home Office,Home Office,27/02/2024,OTHER ICT COSTS,DDaT - Digital Data & Technology,CAPGEMINI UK PLC,1486658-2600110409800-112696-3308848-2-2024,33088.48
Home Office,Home Office,27/02/2024,IT RUN COST,DDaT - Digital Data & Technology,CAPGEMINI UK PLC,1816002-2600110407443-112696-3885294-2-2024,38852.94
Home Office,Home Office,27/02/2024,SYSTEM CLEARING,DDaT - Digital Data & Technology,CAPGEMINI UK PLC,1709161-2600110410533-112696-14099123-2-2024,140991.23
Home Office,Home Office,27/02/2024,OTHER ICT COSTS,DDaT - Digital Data & Technology,CAPGEMINI UK PLC,1406917-2600110410526-112696-148988-2-2024,148988
Home Office,Home Office,27/02/2024,OTHER ICT COSTS,DDaT - Digital Data & Technology,CAPGEMINI UK PLC,1486658-2600110409799-112696-503250-2-2024,503250
Home Office,Home Office,27/02/2024,IT RUN COST,DDaT - Digital Data & Technology,CGI IT UK LTD,1892025-GB014125314-240306-24633-2-2024,24633
Home Office,Home Office,27/02/2024,IT RUN COST,DDaT - Digital Data & Technology,CGI IT UK LTD,1892025-GB014123798-240306-49420-2-2024,49420
Home Office,Home Office,27/02/2024,IT RUN COST,DDaT - Digital Data & Technology,CGI IT UK LTD,1709109-GB014125367-240306-493675-2-2024,59241
Home Office,Home Office,27/02/2024,IT RUN COST,DDaT - Digital Data & Technology,CGI IT UK LTD,1892025-GB014123937-240306-1866588-2-2024,186658.8
Home Office,Home Office,27/02/2024,END USER COMPUTER SOFTWARE,DDaT - Digital Data & Technology,COMPUTACENTER (UK) LTD,1709143-3884414975-100028-5197704-2-2024,62372.46
Home Office,Home Office,27/02/2024,IT RUN COST,DDaT - Digital Data & Technology,CONSTELLIA PUBLIC LTD,1486602-INV-7572-59590-3203558-2-2024,38442.7
Home Office,Home Office,27/02/2024,IT RUN COST,DDaT - Digital Data & Technology,DATALYNX LTD,1892025-1262-184817-41322-2-2024,41322
Home Office,Home Office,27/02/2024,IT RUN COST,DDaT - Digital Data & Technology,DATALYNX LTD,1892025-1275-184817-55512-2-2024,55512
Home Office,Home Office,27/02/2024,SYSTEM CLEARING,DDaT - Digital Data & Technology,FUJITSU SERVICES LTD,1486655-1010009035-106173-190020-2-2024,190020
Home Office,Home Office,27/02/2024,NETWORKING,DDaT - Digital Data & Technology,LEIDOS INNOVATIONS UK LTD,1709130-INV02-000667155-136199-74992336-2-2024,749923.36
Home Office,Home Office,27/02/2024,IT RUN COST,DDaT - Digital Data & Technology,MADE TECH LTD,1475209-INV004504-56527-23250-2-2024,27900
Home Office,Home Office,27/02/2024,IT RUN COST,DDaT - Digital Data & Technology,MADE TECH LTD,1475209-INV004268-56527-40500-2-2024,48600
Home Office,Home Office,27/02/2024,IT RUN COST,DDaT - Digital Data & Technology,METHODS  BUSINESS AND DIGITAL TECH LTD,1892025-SIN079590-119732-11430-2-2024,11430
Home Office,Home Office,27/02/2024,IT RUN COST,DDaT - Digital Data & Technology,METHODS  BUSINESS AND DIGITAL TECH LTD,1892015-SIN079590-119732-142025-2-2024,14202.5
Home Office,Home Office,27/02/2024,ADVICE,DDaT - Digital Data & Technology,NETCOMPANY UK LIMITED,1816009-NCUK62977-465524-1655375-2-2024,198645
Home Office,Home Office,27/02/2024,CONTINGENT LABOUR OTHER,DDaT - Digital Data & Technology,SOPRA STERIA LTD,1892025-100216235-112699-34100-2-2024,40920
Home Office,Home Office,27/02/2024,CONTINGENT LABOUR OTHER,DDaT - Digital Data & Technology,SOPRA STERIA LTD,1892025-100216236-112699-34100-2-2024,40920
Home Office,Home Office,27/02/2024,IT RUN COST,DDaT - Digital Data & Technology,UNIFY HOLDING UK 1 LTD,1709130-7192000659-60740-15257916-2-2024,152579.16
Home Office,Home Office,27/02/2024,SPECIALIST USER SOFTWARE & HARDWARE,DDaT - Digital Data & Technology,VODAFONE LTD,1709130-UK10/022024/5902-119598-3070863-2-2024,36850.36
Home Office,Home Office,28/02/2024,SYSTEM CLEARING,DDaT - Digital Data & Technology,BAE SYSTEMS APPLIED INTELLIGENCE LIMITED,1488303-1001059008-136604-1222008-2-2024,146640.96
Home Office,Home Office,28/02/2024,IT RUN COST,DDaT - Digital Data & Technology,BT GLOBAL SERVICES,1816002-651519-113921-17749913-2-2024,177499.13
Home Office,Home Office,28/02/2024,IT RUN COST,DDaT - Digital Data & Technology,BT GLOBAL SERVICES,1816002-651516-113921-20059604-2-2024,200596.04
Home Office,Home Office,28/02/2024,SPECIALIST USER SOFTWARE & HARDWARE,DDaT - Digital Data & Technology,CAPITA BUSINESS SERVICES LTD,1432007-6004166938-138018-7705858-2-2024,92470.3
Home Office,Home Office,28/02/2024,IT RUN COST,DDaT - Digital Data & Technology,CGI IT UK LTD,1892025-GB014124017-240306-2622051-2-2024,26220.51
Home Office,Home Office,28/02/2024,IT RUN COST,DDaT - Digital Data & Technology,CGI IT UK LTD,1892025-GB014124944-240306-658115-2-2024,65811.5
Home Office,Home Office,28/02/2024,IT RUN COST,DDaT - Digital Data & Technology,DELOITTE LLP,1709101-8004488591-112904-22575-2-2024,27090
Home Office,Home Office,28/02/2024,IT RUN COST,DDaT - Digital Data & Technology,DELOITTE LLP,1709101-8004488577-112904-30415-2-2024,36498
Home Office,Home Office,28/02/2024,IT RUN COST,DDaT - Digital Data & Technology,DELOITTE LLP,1709101-8004488580-112904-37350-2-2024,44820
Home Office,Home Office,28/02/2024,IT RUN COST,DDaT - Digital Data & Technology,DELOITTE LLP,1709101-8004488585-112904-38475-2-2024,46170
Home Office,Home Office,28/02/2024,IT RUN COST,DDaT - Digital Data & Technology,DELOITTE LLP,1709101-8004488582-112904-44000-2-2024,52800
Home Office,Home Office,28/02/2024,IT RUN COST,DDaT - Digital Data & Technology,DELOITTE LLP,1709101-8004488581-112904-45675-2-2024,54810
Home Office,Home Office,28/02/2024,IT RUN COST,DDaT - Digital Data & Technology,DELOITTE LLP,1709101-8004488574-112904-4951875-2-2024,59422.5
Home Office,Home Office,28/02/2024,IT RUN COST,DDaT - Digital Data & Technology,DELOITTE LLP,1709101-8004488578-112904-55125-2-2024,66150
Home Office,Home Office,28/02/2024,IT RUN COST,DDaT - Digital Data & Technology,DELOITTE LLP,1709101-8004488584-112904-68400-2-2024,82080
Home Office,Home Office,28/02/2024,IT RUN COST,DDaT - Digital Data & Technology,DELOITTE LLP,1709101-8004488575-112904-76475-2-2024,91770
Home Office,Home Office,28/02/2024,IT RUN COST,DDaT - Digital Data & Technology,DELOITTE LLP,1710001-8004480227-112904-142345-2-2024,142345
Home Office,Home Office,28/02/2024,IT RUN COST,DDaT - Digital Data & Technology,DELOITTE LLP,1709101-8004488573-112904-182250-2-2024,218700
Home Office,Home Office,28/02/2024,IT RUN COST,DDaT - Digital Data & Technology,DELOITTE LLP,1710001-8004480177-112904-232720-2-2024,232720
Home Office,Home Office,28/02/2024,IT RUN COST,DDaT - Digital Data & Technology,FUJITSU SERVICES LTD,1709500-1030023047-106173-345177-2-2024,41421.24
Home Office,Home Office,28/02/2024,OTHER ICT COSTS,DDaT - Digital Data & Technology,FUJITSU SERVICES LTD,1432007-1030023043-106173-3651584-2-2024,365158.4
Home Office,Home Office,28/02/2024,IT RUN COST,DDaT - Digital Data & Technology,LEONARDO UK LTD,1892015-90245484-154349-3562741-2-2024,35627.41
Home Office,Home Office,28/02/2024,OTHER ICT COSTS,DDaT - Digital Data & Technology,MASTEK (UK) LTD,1486658-90399640-351665-3260875-2-2024,326087.5
Home Office,Home Office,28/02/2024,END USER COMPUTER SOFTWARE,DDaT - Digital Data & Technology,XMA LTD,1486602-LF70165-101207-4302034-2-2024,51624.41
Home Office,Home Office,29/02/2024,TELEPHONE,DDaT - Digital Data & Technology,BRITISH TELECOMMUNICATIONS LTD,1486655-VP 14949170 Q10501 9M-112676-12194008-2-2024,146328.09
Home Office,Home Office,29/02/2024,OTHER ICT COSTS,DDaT - Digital Data & Technology,CAPGEMINI UK PLC,1709163-2600110396199-112696-42957-2-2024,51548.4
Home Office,Home Office,29/02/2024,SPECIALIST USER SOFTWARE & HARDWARE,DDaT - Digital Data & Technology,CGI IT UK LTD,1709130-GB014124279-240306-60615614-2-2024,606156.14
Home Office,Home Office,29/02/2024,CONTINGENT LABOUR OTHER,DDaT - Digital Data & Technology,DELOITTE LLP,1709160-8004482922-112904-5402004-2-2024,64824.05
Home Office,Home Office,29/02/2024,SPECIALIST USER SOFTWARE & HARDWARE,DDaT - Digital Data & Technology,FUJITSU SERVICES LTD,1709130-1030023066-106173-7662635-2-2024,91951.62
Home Office,Home Office,29/02/2024,MAINTENANCE REACTIVE,DDaT - Digital Data & Technology,LEONARDO UK LTD,1431886-90246558-154349-20440323-2-2024,204403.23
Home Office,Home Office,29/02/2024,IT RUN COST,DDaT - Digital Data & Technology,ORACLE CORPORATION UK LIMITED,1710001-460129631-100642-12486368-2-2024,124863.68
Home Office,Home Office,29/02/2024,OTHER ICT COSTS,DDaT - Digital Data & Technology,PA CONSULTING SERVICES LTD,1486658-0000029997-100039-17100-2-2024,20520
Home Office,Home Office,29/02/2024,OTHER ICT COSTS,DDaT - Digital Data & Technology,PA CONSULTING SERVICES LTD,1701006-0000029997-100039-45960-2-2024,55152
Home Office,Home Office,29/02/2024,IT RUN COST,DDaT - Digital Data & Technology,PHOENIX SOFTWARE LTD,1709161-OP/I997064-343631-62475-2-2024,74970.01
Home Office,Home Office,29/02/2024,OTHER ICT COSTS,DDaT - Digital Data & Technology,VISION-BOX SYSTEMS LTD,1432007-24020033-332210-26300-2-2024,26300
Home Office,Home Office,29/02/2024,END USER COMPUTER SOFTWARE,DDaT - Digital Data & Technology,XMA LTD,1486665-LF70803-101207-2385774-2-2024,28629.29
Home Office,Home Office,01/02/2024,RESEARCH AND DEVELOPMENT,HSG - Homeland Security Group,CT CENTRE (MOD) LTD T/A DSTL,1283002-10003014-208273-5847871-2-2024,58478.71
Home Office,Home Office,01/02/2024,RESEARCH AND DEVELOPMENT,HSG - Homeland Security Group,CT CENTRE (MOD) LTD T/A DSTL,1283002-10003029-208273-5847871-2-2024,58478.71
Home Office,Home Office,02/02/2024,CONTINGENT LABOUR OTHER,HSG - Homeland Security Group,ALEXANDER MANN SOLUTIONS LTD,1283024-2968169-560478-237434-2-2024,2849.21
Home Office,Home Office,02/02/2024,CONTINGENT LABOUR OTHER,HSG - Homeland Security Group,ALEXANDER MANN SOLUTIONS LTD,1283020-2968169-560478-248805-2-2024,2985.66
Home Office,Home Office,02/02/2024,CONTINGENT LABOUR OTHER,HSG - Homeland Security Group,ALEXANDER MANN SOLUTIONS LTD,1433609-2968169-560478-280962-2-2024,3371.55
Home Office,Home Office,02/02/2024,FULL COST,HSG - Homeland Security Group,BROOK STREET (UK) LTD,1283020-30826456-24-100385-47712-2-2024,572.54
Home Office,Home Office,05/02/2024,SYSTEM CLEARING,HSG - Homeland Security Group,LEONARDO UK LTD,1433609-90245565-154349-3630083-2-2024,43561
Home Office,Home Office,08/02/2024,FULL COST,HSG - Homeland Security Group,BROOK STREET (UK) LTD,1283020-30836497-24-100385-47712-2-2024,572.54
Home Office,Home Office,08/02/2024,ADVICE,HSG - Homeland Security Group,PRICE WATERHOUSE COOPERS LLP,1286523-1356084658-112713-48114-2-2024,48114
Home Office,Home Office,08/02/2024,RESEARCH AND DEVELOPMENT,HSG - Homeland Security Group,QINETIQ LTD,1282019-117075070-112688-2205033-2-2024,22050.33
Home Office,Home Office,09/02/2024,CONTINGENT LABOUR OTHER,HSG - Homeland Security Group,ALEXANDER MANN SOLUTIONS LTD,1433609-2972644-560478-158778-2-2024,1905.34
Home Office,Home Office,09/02/2024,CONTINGENT LABOUR OTHER,HSG - Homeland Security Group,ALEXANDER MANN SOLUTIONS LTD,1283024-2972644-560478-263815-2-2024,3165.78
Home Office,Home Office,09/02/2024,CONTINGENT LABOUR OTHER,HSG - Homeland Security Group,ALEXANDER MANN SOLUTIONS LTD,1282027-2972644-560478-283527-2-2024,3402.32
Home Office,Home Office,09/02/2024,CONTINGENT LABOUR OTHER,HSG - Homeland Security Group,ALEXANDER MANN SOLUTIONS LTD,1286600-2972644-560478-328768-2-2024,3945.21
Home Office,Home Office,09/02/2024,CONTINGENT LABOUR OTHER,HSG - Homeland Security Group,ALEXANDER MANN SOLUTIONS LTD,1283020-2972644-560478-951087-2-2024,11413.04
Home Office,Home Office,09/02/2024,SYSTEM CLEARING,HSG - Homeland Security Group,ALEXANDER MANN SOLUTIONS LTD,1433609-2973765-560478-25963761-2-2024,311565.13
Home Office,Home Office,09/02/2024,SYSTEM CLEARING,HSG - Homeland Security Group,NAIMURI LTD,1282033-3735-54310-3074092-2-2024,30740.92
Home Office,Home Office,09/02/2024,IT RUN COST,HSG - Homeland Security Group,NAIMURI LTD,1282033-3751-54310-26076445-2-2024,260764.45
Home Office,Home Office,12/02/2024,CONTINGENT LABOUR OTHER,HSG - Homeland Security Group,ALEXANDER MANN SOLUTIONS LTD,1281000-2973792-560478-53964-2-2024,64756.8
Home Office,Home Office,14/02/2024,SYSTEM CLEARING,HSG - Homeland Security Group,LEONARDO UK LTD,1433609-90245511-154349-5676601-2-2024,68119.21
Home Office,Home Office,14/02/2024,SYSTEM CLEARING,HSG - Homeland Security Group,LEONARDO UK LTD,1433609-90245513-154349-5676601-2-2024,68119.21
Home Office,Home Office,15/02/2024,SYSTEM CLEARING,HSG - Homeland Security Group,MOTT MACDONALD LTD,1433609-100580023-112809-2422695-2-2024,29072.34
Home Office,Home Office,16/02/2024,CONTINGENT LABOUR OTHER,HSG - Homeland Security Group,ALEXANDER MANN SOLUTIONS LTD,1282027-2977220-560478-157515-2-2024,1890.18
Home Office,Home Office,16/02/2024,CONTINGENT LABOUR OTHER,HSG - Homeland Security Group,ALEXANDER MANN SOLUTIONS LTD,1433609-2977220-560478-158778-2-2024,1905.34
Home Office,Home Office,16/02/2024,CONTINGENT LABOUR OTHER,HSG - Homeland Security Group,ALEXANDER MANN SOLUTIONS LTD,1283024-2977220-560478-263815-2-2024,3165.78
Home Office,Home Office,16/02/2024,CONTINGENT LABOUR OTHER,HSG - Homeland Security Group,ALEXANDER MANN SOLUTIONS LTD,1286523-2977220-560478-614304-2-2024,7371.66
Home Office,Home Office,16/02/2024,CONTINGENT LABOUR OTHER,HSG - Homeland Security Group,ALEXANDER MANN SOLUTIONS LTD,1283020-2977220-560478-90451-2-2024,10854.12
Home Office,Home Office,16/02/2024,FULL COST,HSG - Homeland Security Group,BROOK STREET (UK) LTD,1283020-30846736-24-100385-47712-2-2024,572.54
Home Office,Home Office,16/02/2024,RESEARCH AND DEVELOPMENT,HSG - Homeland Security Group,CT CENTRE (MOD) LTD T/A DSTL,1282033-10003121-208273-10469243-2-2024,104692.43
Home Office,Home Office,19/02/2024,RESEARCH AND DEVELOPMENT,HSG - Homeland Security Group,ALEXANDER MANN SOLUTIONS LTD,1283002-2978331-560478-25000-2-2024,30000
Home Office,Home Office,20/02/2024,ADVICE,HSG - Homeland Security Group,PRICE WATERHOUSE COOPERS LLP,1286523-1356106352-112713-105000-2-2024,105000
Home Office,Home Office,21/02/2024,OTHER,HSG - Homeland Security Group,CT CENTRE (MOD) LTD T/A DSTL,1283002-10002972-208273-3474771-2-2024,34747.71
Home Office,Home Office,21/02/2024,MULTIMEDIA,HSG - Homeland Security Group,ONE TWO AGENCY LTD,1283020-00073-103176-3994803-2-2024,39948.03
Home Office,Home Office,22/02/2024,FULL COST,HSG - Homeland Security Group,BROOK STREET (UK) LTD,1283020-30856721-24-100385-47712-2-2024,572.54
Home Office,Home Office,23/02/2024,CONTINGENT LABOUR OTHER,HSG - Homeland Security Group,ALEXANDER MANN SOLUTIONS LTD,1286600-2981667-560478-143836-2-2024,1726.03
Home Office,Home Office,23/02/2024,CONTINGENT LABOUR OTHER,HSG - Homeland Security Group,ALEXANDER MANN SOLUTIONS LTD,1433609-2981667-560478-158778-2-2024,1905.34
Home Office,Home Office,23/02/2024,CONTINGENT LABOUR OTHER,HSG - Homeland Security Group,ALEXANDER MANN SOLUTIONS LTD,1283024-2981667-560478-263815-2-2024,3165.78
Home Office,Home Office,23/02/2024,CONTINGENT LABOUR OTHER,HSG - Homeland Security Group,ALEXANDER MANN SOLUTIONS LTD,1283020-2981667-560478-578066-2-2024,6936.8
Home Office,Home Office,23/02/2024,CONTINGENT LABOUR OTHER,HSG - Homeland Security Group,ALEXANDER MANN SOLUTIONS LTD,1286523-2981667-560478-1296864-2-2024,15562.37
Home Office,Home Office,23/02/2024,SYSTEM CLEARING,HSG - Homeland Security Group,LEONARDO UK LTD,1433609-90244158-154349-10933536-2-2024,131202.43
Home Office,Home Office,26/02/2024,OTHER,HSG - Homeland Security Group,FERA SCIENCE LTD,1283002-6138071185-414818-2484656-2-2024,24846.56
Home Office,Home Office,27/02/2024,OTHER,HSG - Homeland Security Group,CT CENTRE (MOD) LTD T/A DSTL,1283002-10003145-208273-56541345-2-2024,565413.45
Home Office,Home Office,27/02/2024,SYSTEM CLEARING,HSG - Homeland Security Group,LEONARDO UK LTD,1433609-90245506-154349-3708925-2-2024,44507.1
Home Office,Home Office,27/02/2024,SYSTEM CLEARING,HSG - Homeland Security Group,LEONARDO UK LTD,1433609-90245509-154349-6558295-2-2024,78699.54
Home Office,Home Office,28/02/2024,SYSTEM CLEARING,HSG - Homeland Security Group,MINISTRY OF JUSTICE,1433609-2338797-199603-6109534-2-2024,73314.41
Home Office,Home Office,28/02/2024,SYSTEM CLEARING,HSG - Homeland Security Group,MINISTRY OF JUSTICE,1433609-2338800-199603-24682477-2-2024,296189.72
Home Office,Home Office,29/02/2024,FULL COST,HSG - Homeland Security Group,BROOK STREET (UK) LTD,1283020-30870759-24-100385-47712-2-2024,572.54
Home Office,Home Office,29/02/2024,SYSTEM CLEARING,HSG - Homeland Security Group,FELIXSTOWE DOCK & RAILWAY COMPANY T/A PORT OF FELIXSTOWE,1433609-A240056409-100966-6659685-2-2024,79916.22
Home Office,Home Office,01/02/2024,OTHER ICT COSTS,MBG - Migration & Borders Group,CAPGEMINI UK PLC,1701015-2600110405524-112696-437634-2-2024,43763.4
Home Office,Home Office,01/02/2024,SYSTEM CLEARING,MBG - Migration & Borders Group,PA CONSULTING SERVICES LTD,1701015-0000029502-100039-2424142-2-2024,242414.2
Home Office,Home Office,01/02/2024,SYSTEM CLEARING,MBG - Migration & Borders Group,PA CONSULTING SERVICES LTD,1701015-0000029643-100039-1038312-2-2024,1038312
Home Office,Home Office,01/02/2024,SYSTEM CLEARING,MBG - Migration & Borders Group,PA CONSULTING SERVICES LTD,1701015-0000029646-100039-1038312-2-2024,1038312
Home Office,Home Office,02/02/2024,CONTINGENT LABOUR OTHER,MBG - Migration & Borders Group,ALEXANDER MANN SOLUTIONS LTD,1771104-2968169-560478-102384-2-2024,1228.61
Home Office,Home Office,02/02/2024,CONTINGENT LABOUR OTHER,MBG - Migration & Borders Group,ALEXANDER MANN SOLUTIONS LTD,1771115-2968169-560478-288775-2-2024,3465.3
Home Office,Home Office,02/02/2024,SYSTEM CLEARING,MBG - Migration & Borders Group,MASTEK (UK) LTD,1701015-90399470-351665-704466-2-2024,84535.92
Home Office,Home Office,02/02/2024,SYSTEM CLEARING,MBG - Migration & Borders Group,PA CONSULTING SERVICES LTD,1701015-0000029527-100039-216185-2-2024,216185
Home Office,Home Office,05/02/2024,SYSTEM CLEARING,MBG - Migration & Borders Group,ALEXANDER MANN SOLUTIONS LTD,1701015-2969279-560478-81493-2-2024,81493
Home Office,Home Office,05/02/2024,SYSTEM CLEARING,MBG - Migration & Borders Group,ALEXANDER MANN SOLUTIONS LTD,1701015-2969280-560478-90507-2-2024,90507
Home Office,Home Office,05/02/2024,ADVICE,MBG - Migration & Borders Group,BLOOM PROCUREMENT SERVICES LTD,1771115-SIN048230-518536-632400-2-2024,758880
Home Office,Home Office,05/02/2024,ADVICE,MBG - Migration & Borders Group,CLOUD KUBED UK,1771116-INV-0181-59459-66500-2-2024,79800
Home Office,Home Office,05/02/2024,SYSTEM CLEARING,MBG - Migration & Borders Group,LEIDOS INNOVATIONS UK LTD,1701015-INV02-000655509-136199-5259787-2-2024,52597.87
Home Office,Home Office,05/02/2024,IN COUNTRY ESCORT,MBG - Migration & Borders Group,MITIE CARE & CUSTODY LTD,1431122-186797/92966853-243944-4581162-2-2024,45811.62
Home Office,Home Office,06/02/2024,IT,MBG - Migration & Borders Group,BLOOM PROCUREMENT SERVICES LTD,1771098-SIN049246-518536-776398-2-2024,93167.76
Home Office,Home Office,06/02/2024,ADVICE,MBG - Migration & Borders Group,BLOOM PROCUREMENT SERVICES LTD,1771115-SIN048908-518536-3682768-2-2024,441932.16
Home Office,Home Office,06/02/2024,ADVICE,MBG - Migration & Borders Group,CLOUD KUBED UK,1771116-INV-0184-59459-292490-2-2024,350988
Home Office,Home Office,07/02/2024,IT,MBG - Migration & Borders Group,BARINGA PARTNERS LLP,1771098-37222-58339-227413-2-2024,272895.6
Home Office,Home Office,07/02/2024,IT,MBG - Migration & Borders Group,BARINGA PARTNERS LLP,1771111-36972-58339-25134363-2-2024,301612.36
Home Office,Home Office,07/02/2024,IT,MBG - Migration & Borders Group,BLOOM PROCUREMENT SERVICES LTD,1771112-SIN048382-518536-66465-2-2024,79758
Home Office,Home Office,07/02/2024,IT,MBG - Migration & Borders Group,BLOOM PROCUREMENT SERVICES LTD,1771112-SIN049077-518536-333080-2-2024,399696
Home Office,Home Office,08/02/2024,OTHER ICT COSTS,MBG - Migration & Borders Group,ACCENTURE (UK) LTD,1701015-3003648724-106767-315135-2-2024,315135
Home Office,Home Office,08/02/2024,IT,MBG - Migration & Borders Group,BARINGA PARTNERS LLP,1771111-36504-58339-45893475-2-2024,550721.7
Home Office,Home Office,08/02/2024,IT,MBG - Migration & Borders Group,BLOOM PROCUREMENT SERVICES LTD,1771115-SIN048976-518536-3126316-2-2024,37515.79
Home Office,Home Office,08/02/2024,SYSTEM CLEARING,MBG - Migration & Borders Group,KINTO UK LTD,1431879-2802219-150319-2674873-2-2024,32098.47
Home Office,Home Office,08/02/2024,PERSONNEL RELATED,MBG - Migration & Borders Group,PALLADIUM INTERNATIONAL LIMITED,1771124-319270-L9-0010-526764-11432279-2-2024,114322.79
Home Office,Home Office,09/02/2024,SYSTEM CLEARING,MBG - Migration & Borders Group,ACCENTURE (UK) LTD,1701015-3003648723-106767-2135600-2-2024,2135600
Home Office,Home Office,09/02/2024,CONTINGENT LABOUR OTHER,MBG - Migration & Borders Group,ALEXANDER MANN SOLUTIONS LTD,1771115-2972644-560478-259898-2-2024,3118.78
Home Office,Home Office,09/02/2024,CONTINGENT LABOUR OTHER,MBG - Migration & Borders Group,ALEXANDER MANN SOLUTIONS LTD,1771101-2972644-560478-227894-2-2024,27347.28
Home Office,Home Office,09/02/2024,IT,MBG - Migration & Borders Group,BLOOM PROCUREMENT SERVICES LTD,1771115-SIN048431-518536-3126316-2-2024,37515.79
Home Office,Home Office,09/02/2024,RESEARCH,MBG - Migration & Borders Group,CM MONITOR LTD T/A BRITAIN THINKS,1771107-4221-407109-24140-2-2024,28968
Home Office,Home Office,09/02/2024,SYSTEM CLEARING,MBG - Migration & Borders Group,DELOITTE LLP,1701015-8004411521-112904-162500-2-2024,162500
Home Office,Home Office,12/02/2024,IT,MBG - Migration & Borders Group,BARINGA PARTNERS LLP,1771111-37230-58339-330240-2-2024,396288
Home Office,Home Office,12/02/2024,IT,MBG - Migration & Borders Group,BLOOM PROCUREMENT SERVICES LTD,1771115-SIN048452-518536-67444243-2-2024,809330.91
Home Office,Home Office,12/02/2024,ADVICE,MBG - Migration & Borders Group,CLOUD KUBED UK,1771144-INV-0183-59459-168190-2-2024,201828
Home Office,Home Office,12/02/2024,ADVICE,MBG - Migration & Borders Group,CLOUD KUBED UK,1771116-INV-0189-59459-190190-2-2024,228228
Home Office,Home Office,12/02/2024,ADVICE,MBG - Migration & Borders Group,CLOUD KUBED UK,1771116-INV-0190-59459-212190-2-2024,254628
Home Office,Home Office,12/02/2024,ADVICE,MBG - Migration & Borders Group,CLOUD KUBED UK,1771116-INV-0188-59459-222090-2-2024,266508
Home Office,Home Office,12/02/2024,ADVICE,MBG - Migration & Borders Group,CLOUD KUBED UK,1771116-INV-0182-59459-314440-2-2024,377328
Home Office,Home Office,12/02/2024,ADVICE,MBG - Migration & Borders Group,NEWTON EUROPE LTD,1771144-SIN003299-60579-987500-2-2024,1185000
Home Office,Home Office,12/02/2024,OTHER ICT COSTS,MBG - Migration & Borders Group,PA CONSULTING SERVICES LTD,1701015-0000029865-100039-147846-2-2024,147846
Home Office,Home Office,12/02/2024,OTHER ICT COSTS,MBG - Migration & Borders Group,PA CONSULTING SERVICES LTD,1701015-0000029864-100039-459925-2-2024,459925
Home Office,Home Office,12/02/2024,SYSTEM CLEARING,MBG - Migration & Borders Group,PA CONSULTING SERVICES LTD,1701015-0000029852-100039-1038312-2-2024,1038312
Home Office,Home Office,13/02/2024,OTHER ICT COSTS,MBG - Migration & Borders Group,PA CONSULTING SERVICES LTD,1701015-0000029913-100039-301895-2-2024,362274
Home Office,Home Office,14/02/2024,OTHER ICT COSTS,MBG - Migration & Borders Group,6POINT6 LTD,1701015-3915-338678-76880-2-2024,76880
Home Office,Home Office,14/02/2024,OTHER ICT COSTS,MBG - Migration & Borders Group,CAPGEMINI UK PLC,1701015-2600110409204-112696-21979447-2-2024,263753.36
Home Office,Home Office,14/02/2024,SYSTEM CLEARING,MBG - Migration & Borders Group,COGNIZANT WORLDWIDE LTD,1701015-CW101-0001693359-468613-1035375-2-2024,103537.5
Home Office,Home Office,14/02/2024,SYSTEM CLEARING,MBG - Migration & Borders Group,COGNIZANT WORLDWIDE LTD,1701015-CW101-0001725935-468613-139585-2-2024,139585
Home Office,Home Office,15/02/2024,OTHER ICT COSTS,MBG - Migration & Borders Group,PA CONSULTING SERVICES LTD,1701015-0000029973-100039-386096-2-2024,386096
Home Office,Home Office,15/02/2024,PERSONNEL RELATED,MBG - Migration & Borders Group,PALLADIUM INTERNATIONAL LIMITED,1771124-319270-L9-0013-526764-11550805-2-2024,115508.05
Home Office,Home Office,16/02/2024,CONTINGENT LABOUR OTHER,MBG - Migration & Borders Group,ALEXANDER MANN SOLUTIONS LTD,1771115-2977220-560478-288775-2-2024,3465.3
Home Office,Home Office,16/02/2024,CONTINGENT LABOUR OTHER,MBG - Migration & Borders Group,ALEXANDER MANN SOLUTIONS LTD,1771101-2977220-560478-2861059-2-2024,34332.7
Home Office,Home Office,16/02/2024,IT,MBG - Migration & Borders Group,BLOOM PROCUREMENT SERVICES LTD,1771115-SIN049344-518536-4168421-2-2024,50021.05
Home Office,Home Office,16/02/2024,ADVICE,MBG - Migration & Borders Group,CAPGEMINI UK PLC,1771116-2600110408910-112696-54790767-2-2024,657489.2
Home Office,Home Office,16/02/2024,ADVICE,MBG - Migration & Borders Group,CAPGEMINI UK PLC,1771116-2600110408834-112696-1282500-2-2024,1539000
Home Office,Home Office,16/02/2024,FCO CHARGES,MBG - Migration & Borders Group,FOREIGN COMMONWEALTH & DEVELOPMENT OFFICE,1771008-20013844-113026-2720875-2-2024,27208.75
Home Office,Home Office,16/02/2024,SYSTEM CLEARING,MBG - Migration & Borders Group,IBM UNITED KINGDOM LTD,1701015-5803232922-101457-39027-2-2024,39027
Home Office,Home Office,16/02/2024,SYSTEM CLEARING,MBG - Migration & Borders Group,IBM UNITED KINGDOM LTD,1701015-5811230437-101457-81538-2-2024,81538
Home Office,Home Office,16/02/2024,OTHER ICT COSTS,MBG - Migration & Borders Group,PA CONSULTING SERVICES LTD,1701015-0000029611-100039-46850-2-2024,56220
Home Office,Home Office,19/02/2024,OTHER ICT COSTS,MBG - Migration & Borders Group,CAPGEMINI UK PLC,1701015-2600110409565-112696-1782555-2-2024,213906.6
Home Office,Home Office,19/02/2024,OTHER ICT COSTS,MBG - Migration & Borders Group,PA CONSULTING SERVICES LTD,1701015-0000030015-100039-32930-2-2024,39516
Home Office,Home Office,20/02/2024,IT,MBG - Migration & Borders Group,BLOOM PROCUREMENT SERVICES LTD,1771112-SIN049418-518536-616303-2-2024,739563.6
Home Office,Home Office,20/02/2024,IT,MBG - Migration & Borders Group,BLOOM PROCUREMENT SERVICES LTD,1771115-SIN049594-518536-119046281-2-2024,1428555.37
Home Office,Home Office,20/02/2024,SYSTEM CLEARING,MBG - Migration & Borders Group,ENTRUST CORPORATION,1701015-7198775-59373-109000-2-2024,109000
Home Office,Home Office,20/02/2024,OTHER ICT COSTS,MBG - Migration & Borders Group,MASTEK (UK) LTD,1701015-90399601-351665-84165-2-2024,84165
Home Office,Home Office,21/02/2024,SYSTEM CLEARING,MBG - Migration & Borders Group,BJSS LIMITED,1701015-INV-UK027660-508104-14934103-2-2024,179209.24
Home Office,Home Office,21/02/2024,OTHER ICT COSTS,MBG - Migration & Borders Group,CAPGEMINI UK PLC,1771116-2600110408603-112696-5797166-2-2024,57971.66
Home Office,Home Office,21/02/2024,SYSTEM CLEARING,MBG - Migration & Borders Group,CAPGEMINI UK PLC,1701015-2600110408668-112696-6359585-2-2024,76315.02
Home Office,Home Office,21/02/2024,SYSTEM CLEARING,MBG - Migration & Borders Group,CAPGEMINI UK PLC,1701015-2600110408629-112696-7293594-2-2024,87523.12
Home Office,Home Office,21/02/2024,SYSTEM CLEARING,MBG - Migration & Borders Group,CAPGEMINI UK PLC,1701015-2600110408632-112696-732336-2-2024,87880.32
Home Office,Home Office,21/02/2024,SYSTEM CLEARING,MBG - Migration & Borders Group,CAPGEMINI UK PLC,1701015-2600110408642-112696-48303308-2-2024,579639.69
Home Office,Home Office,21/02/2024,SYSTEM CLEARING,MBG - Migration & Borders Group,CAPGEMINI UK PLC,1701015-2600110408665-112696-5057059-2-2024,606847.08
Home Office,Home Office,21/02/2024,SYSTEM CLEARING,MBG - Migration & Borders Group,CAPGEMINI UK PLC,1701015-2600110408674-112696-6349477-2-2024,761937.24
Home Office,Home Office,21/02/2024,SYSTEM CLEARING,MBG - Migration & Borders Group,DELOITTE LLP,1701015-8004472029-112904-47500-2-2024,47500
Home Office,Home Office,21/02/2024,OTHER ICT COSTS,MBG - Migration & Borders Group,DELOITTE LLP,1701015-8004472168-112904-115500-2-2024,115500
Home Office,Home Office,21/02/2024,SYSTEM CLEARING,MBG - Migration & Borders Group,DELOITTE LLP,1701015-8004472168-112904-116500-2-2024,116500
Home Office,Home Office,21/02/2024,OTHER ICT COSTS,MBG - Migration & Borders Group,DELOITTE LLP,1701015-8004472102-112904-122500-2-2024,122500
Home Office,Home Office,21/02/2024,SYSTEM CLEARING,MBG - Migration & Borders Group,DELOITTE LLP,1701015-8004472283-112904-325000-2-2024,325000
Home Office,Home Office,21/02/2024,PERSONNEL RELATED,MBG - Migration & Borders Group,GET SKILLS EMPLOYMENT & TRAINING LTD,1771124-INV-0986-59591-7962097-2-2024,79620.97
Home Office,Home Office,21/02/2024,PERSONNEL RELATED,MBG - Migration & Borders Group,INTERNATIONAL RESCUE COMMITTEE UK,1771124-IRC0217-59614-6710798-2-2024,67107.98
Home Office,Home Office,21/02/2024,SYSTEM CLEARING,MBG - Migration & Borders Group,PA CONSULTING SERVICES LTD,1701015-0000030066-100039-756565-2-2024,756565
Home Office,Home Office,21/02/2024,PERSONNEL RELATED,MBG - Migration & Borders Group,THE GROWTH COMPANY,1771124-6094379-56410-14453603-2-2024,144536.03
Home Office,Home Office,22/02/2024,OTHER ICT COSTS,MBG - Migration & Borders Group,CAPGEMINI UK PLC,1701015-2600110409851-112696-112827-2-2024,135392.4
Home Office,Home Office,22/02/2024,SYSTEM CLEARING,MBG - Migration & Borders Group,DELOITTE LLP,1701015-8004472624-112904-95000-2-2024,95000
Home Office,Home Office,22/02/2024,SYSTEM CLEARING,MBG - Migration & Borders Group,MASTEK (UK) LTD,1701015-90399606-351665-98426-2-2024,118111.2
Home Office,Home Office,22/02/2024,PERSONNEL RELATED,MBG - Migration & Borders Group,MAXIMUS UK SERVICES LTD,1771124-6024-59613-15245319-2-2024,152453.19
Home Office,Home Office,22/02/2024,OTHER ICT COSTS,MBG - Migration & Borders Group,PA CONSULTING SERVICES LTD,1701015-0000030110-100039-64917-2-2024,77900.4
Home Office,Home Office,22/02/2024,PERSONNEL RELATED,MBG - Migration & Borders Group,REED IN PARTNERSHIP LTD,1771124-141172-59633-11067497-2-2024,110674.97
Home Office,Home Office,22/02/2024,PERSONNEL RELATED,MBG - Migration & Borders Group,REED IN PARTNERSHIP LTD,1771124-141173-59633-29439115-2-2024,294391.15
Home Office,Home Office,23/02/2024,CONTINGENT LABOUR OTHER,MBG - Migration & Borders Group,ALEXANDER MANN SOLUTIONS LTD,1771115-2981667-560478-288775-2-2024,3465.3
Home Office,Home Office,23/02/2024,CONTINGENT LABOUR OTHER,MBG - Migration & Borders Group,ALEXANDER MANN SOLUTIONS LTD,1771101-2981667-560478-572315-2-2024,6867.78
Home Office,Home Office,23/02/2024,IT,MBG - Migration & Borders Group,ALEXANDER MANN SOLUTIONS LTD,1771098-2982711-560478-14617791-2-2024,175413.49
Home Office,Home Office,23/02/2024,SYSTEM CLEARING,MBG - Migration & Borders Group,ATOS IT SERVICES UK LTD,1701015-5584438894-108063-5503949-2-2024,55039.49
Home Office,Home Office,23/02/2024,IT RUN COST,MBG - Migration & Borders Group,BJSS LIMITED,1701015-INV-UK027643-508104-138665-2-2024,166398
Home Office,Home Office,23/02/2024,SYSTEM CLEARING,MBG - Migration & Borders Group,CAPGEMINI UK PLC,1701015-2600110410494-112696-10618574-2-2024,106185.74
Home Office,Home Office,23/02/2024,OTHER ICT COSTS,MBG - Migration & Borders Group,CLARASYS LTD,1771112-INV105321-56484-15400-2-2024,18480
Home Office,Home Office,23/02/2024,OTHER ICT COSTS,MBG - Migration & Borders Group,CLARASYS LTD,1701015-INV105321-56484-16170-2-2024,19404
Home Office,Home Office,23/02/2024,OTHER ICT COSTS,MBG - Migration & Borders Group,DELOITTE LLP,1701015-8004472626-112904-1640000-2-2024,1968000
Home Office,Home Office,23/02/2024,SYSTEM CLEARING,MBG - Migration & Borders Group,MASTEK (UK) LTD,1701015-90399607-351665-48529025-2-2024,485290.25
Home Office,Home Office,23/02/2024,OTHER ICT COSTS,MBG - Migration & Borders Group,PA CONSULTING SERVICES LTD,1431882-0000030119-100039-18785-2-2024,18785
Home Office,Home Office,23/02/2024,OTHER ICT COSTS,MBG - Migration & Borders Group,PA CONSULTING SERVICES LTD,1701015-0000030119-100039-321520-2-2024,321520
Home Office,Home Office,23/02/2024,PERSONNEL RELATED,MBG - Migration & Borders Group,TWIN TRAINING INTERNATIONAL LTD,1771124-REP LOT 5 009-59600-8182168-2-2024,81821.68
Home Office,Home Office,27/02/2024,OTHER ICT COSTS,MBG - Migration & Borders Group,CAPGEMINI UK PLC,1701015-2600110409800-112696-3308748-2-2024,33087.48
Home Office,Home Office,27/02/2024,OTHER ICT COSTS,MBG - Migration & Borders Group,CAPGEMINI UK PLC,1701015-2600110410533-112696-14099123-2-2024,140991.23
Home Office,Home Office,27/02/2024,OTHER ICT COSTS,MBG - Migration & Borders Group,CAPGEMINI UK PLC,1701015-2600110410536-112696-179694-2-2024,215632.8
Home Office,Home Office,27/02/2024,OTHER ICT COSTS,MBG - Migration & Borders Group,CAPGEMINI UK PLC,1701015-2600110409799-112696-503250-2-2024,503250
Home Office,Home Office,27/02/2024,OTHER ICT COSTS,MBG - Migration & Borders Group,IBM UNITED KINGDOM LTD,1701015-5801240875-101457-39425-2-2024,39425
Home Office,Home Office,28/02/2024,ADVICE,MBG - Migration & Borders Group,CLOUD KUBED UK,1771116-INV-0195-59459-279195-2-2024,335034
Home Office,Home Office,28/02/2024,FCO CHARGES,MBG - Migration & Borders Group,FOREIGN COMMONWEALTH & DEVELOPMENT OFFICE,1771008-20014061-113026-2681687-2-2024,26816.87
Home Office,Home Office,28/02/2024,SYSTEM CLEARING,MBG - Migration & Borders Group,MASTEK (UK) LTD,1701015-90399639-351665-84098-2-2024,84098
Home Office,Home Office,28/02/2024,SYSTEM CLEARING,MBG - Migration & Borders Group,MASTEK (UK) LTD,1701015-90399641-351665-70606516-2-2024,706065.16
Home Office,Home Office,28/02/2024,SYSTEM CLEARING,MBG - Migration & Borders Group,MASTEK (UK) LTD,1701015-90399638-351665-1275443-2-2024,1275443
Home Office,Home Office,28/02/2024,SYSTEM CLEARING,MBG - Migration & Borders Group,PA CONSULTING SERVICES LTD,1701015-0000029631-100039-216182-2-2024,216182
Home Office,Home Office,29/02/2024,ADVICE,MBG - Migration & Borders Group,CLOUD KUBED UK,1771144-INV-0196-59459-160545-2-2024,192654
Home Office,Home Office,29/02/2024,ADVICE,MBG - Migration & Borders Group,CLOUD KUBED UK,1771116-INV-0197-59459-298545-2-2024,358254
Home Office,Home Office,29/02/2024,IT RUN COST,MBG - Migration & Borders Group,LEIDOS INNOVATIONS UK LTD,1701015-INV02-000633519-136199-5652446-2-2024,67829.35
Home Office,Home Office,29/02/2024,PERSONNEL RELATED,MBG - Migration & Borders Group,MAXIMUS UK SERVICES LTD,1771124-6026-59613-13180612-2-2024,131806.12
Home Office,Home Office,29/02/2024,PERSONNEL RELATED,MBG - Migration & Borders Group,MAXIMUS UK SERVICES LTD,1771124-6027-59613-13181199-2-2024,131811.99
Home Office,Home Office,01/02/2024,TRANSFERS,PSG - Public Safety Group,NATIONAL CRIME AGENCY (NCA),1233013-SI\031751-343011-698601432-2-2024,6986014.32
Home Office,Home Office,01/02/2024,SYSTEM CLEARING,PSG - Public Safety Group,VODAFONE LTD,1892018-1000002805-119598-32530-2-2024,32530
Home Office,Home Office,02/02/2024,CONTINGENT LABOUR OTHER,PSG - Public Safety Group,ALEXANDER MANN SOLUTIONS LTD,1262116-2968169-560478-282305-2-2024,3387.66
Home Office,Home Office,02/02/2024,CONTINGENT LABOUR OTHER,PSG - Public Safety Group,ALEXANDER MANN SOLUTIONS LTD,1295005-2968169-560478-320805-2-2024,3849.66
Home Office,Home Office,02/02/2024,CONTINGENT LABOUR OTHER,PSG - Public Safety Group,ALEXANDER MANN SOLUTIONS LTD,1892018-2968169-560478-368655-2-2024,4423.86
Home Office,Home Office,02/02/2024,CONTINGENT LABOUR OTHER,PSG - Public Safety Group,ALEXANDER MANN SOLUTIONS LTD,1262115-2968169-560478-612369-2-2024,7348.43
Home Office,Home Office,02/02/2024,CONTINGENT LABOUR OTHER,PSG - Public Safety Group,ALEXANDER MANN SOLUTIONS LTD,1830007-2968169-560478-91508-2-2024,10980.96
Home Office,Home Office,02/02/2024,CONTINGENT LABOUR OTHER,PSG - Public Safety Group,ALEXANDER MANN SOLUTIONS LTD,1295014-2968169-560478-1178395-2-2024,14140.74
Home Office,Home Office,02/02/2024,CONTINGENT LABOUR OTHER,PSG - Public Safety Group,ALEXANDER MANN SOLUTIONS LTD,1892023-2968169-560478-1760124-2-2024,21121.49
Home Office,Home Office,02/02/2024,CONTINGENT LABOUR OTHER,PSG - Public Safety Group,ALEXANDER MANN SOLUTIONS LTD,1892008-2968169-560478-1913646-2-2024,22963.75
Home Office,Home Office,02/02/2024,CONTINGENT LABOUR OTHER,PSG - Public Safety Group,ALEXANDER MANN SOLUTIONS LTD,1262100-2968169-560478-20667338-2-2024,206673.38
Home Office,Home Office,02/02/2024,CONTINGENT LABOUR OTHER,PSG - Public Safety Group,ALEXANDER MANN SOLUTIONS LTD,1892014-2968169-560478-23582047-2-2024,282984.56
Home Office,Home Office,02/02/2024,FULL COST,PSG - Public Safety Group,BROOK STREET (UK) LTD,1220012-30826456-24-100385-9129-2-2024,1095.48
Home Office,Home Office,02/02/2024,FULL COST,PSG - Public Safety Group,BROOK STREET (UK) LTD,1262100-30826456-24-100385-117882-2-2024,1178.82
Home Office,Home Office,02/02/2024,FULL COST,PSG - Public Safety Group,BROOK STREET (UK) LTD,1295014-30826456-24-100385-129748-2-2024,1556.97
Home Office,Home Office,02/02/2024,FULL COST,PSG - Public Safety Group,BROOK STREET (UK) LTD,1295054-30826456-24-100385-1888426-2-2024,22661.1
Home Office,Home Office,02/02/2024,IT RUN COST,PSG - Public Safety Group,NTT DATA UK LTD,1892024-121581854-320521-201361-2-2024,201361
Home Office,Home Office,02/02/2024,SYSTEM CLEARING,PSG - Public Safety Group,PA CONSULTING SERVICES LTD,1892014-0000029676-100039-111625-2-2024,133950
Home Office,Home Office,05/02/2024,SYSTEM CLEARING,PSG - Public Safety Group,ALEXANDER MANN SOLUTIONS LTD,1892014-2969283-560478-22575-2-2024,27090
Home Office,Home Office,05/02/2024,SYSTEM CLEARING,PSG - Public Safety Group,ALEXANDER MANN SOLUTIONS LTD,1892014-2969285-560478-30833-2-2024,30833
Home Office,Home Office,05/02/2024,ADVICE,PSG - Public Safety Group,ALEXANDER MANN SOLUTIONS LTD,1830007-2969284-560478-3305263-2-2024,33052.63
Home Office,Home Office,05/02/2024,SYSTEM CLEARING,PSG - Public Safety Group,ALEXANDER MANN SOLUTIONS LTD,1892014-2969288-560478-4682205-2-2024,56186.46
Home Office,Home Office,05/02/2024,IT RUN COST,PSG - Public Safety Group,AMETHYST RISK MANAGEMENT LTD,1709505-3530-51699-52476-2-2024,52476
Home Office,Home Office,05/02/2024,ADVICE,PSG - Public Safety Group,GOVERNMENT ACTUARYS DEPARTMENT,1205000-SINV/00037037-119063-4710985-2-2024,47109.85
Home Office,Home Office,05/02/2024,ADVICE,PSG - Public Safety Group,GOVERNMENT ACTUARYS DEPARTMENT,1205000-SINV/00037035-119063-8799609-2-2024,87996.09
Home Office,Home Office,05/02/2024,SYSTEM CLEARING,PSG - Public Safety Group,TELIGENT LTD,1262116-0099144-57973-51172-2-2024,61406.4
Home Office,Home Office,05/02/2024,SYSTEM CLEARING,PSG - Public Safety Group,TELIGENT LTD,1262116-0099145-57973-17033905-2-2024,204406.86
Home Office,Home Office,05/02/2024,RESEARCH AND DEVELOPMENT,PSG - Public Safety Group,TORCHLIGHT GROUP LTD,1286565-TLG-001745-50792-6271399-2-2024,75256.79
Home Office,Home Office,05/02/2024,SYSTEM CLEARING,PSG - Public Safety Group,WHP TELECOMS LTD,1262116-SINV113180-55174-36244-2-2024,43492.8
Home Office,Home Office,06/02/2024,SYSTEM CLEARING,PSG - Public Safety Group,BLOOM PROCUREMENT SERVICES LTD,1892009-SIN048663-518536-47355-2-2024,47355
Home Office,Home Office,06/02/2024,RESEARCH AND DEVELOPMENT,PSG - Public Safety Group,ITAD LTD,1286565-SIL007191-57425-7400198-2-2024,88802.38
Home Office,Home Office,07/02/2024,IT RUN COST,PSG - Public Safety Group,APPVIA LTD,1892023-SOW2_INV-0326-50296-24200-2-2024,24200
Home Office,Home Office,07/02/2024,IT RUN COST,PSG - Public Safety Group,APPVIA LTD,1892023-SOW7_INV-0329-50296-41800-2-2024,41800
Home Office,Home Office,07/02/2024,IT RUN COST,PSG - Public Safety Group,APPVIA LTD,1892023-SOW6_INV-0328-50296-46200-2-2024,46200
Home Office,Home Office,07/02/2024,IT RUN COST,PSG - Public Safety Group,APPVIA LTD,1892023-SOW8_INV-0330-50296-209000-2-2024,209000
Home Office,Home Office,07/02/2024,ADVICE,PSG - Public Safety Group,BLOOM PROCUREMENT SERVICES LTD,1830007-SIN048934-518536-8486248-2-2024,101834.98
Home Office,Home Office,07/02/2024,SYSTEM CLEARING,PSG - Public Safety Group,CAPGEMINI UK PLC,1892018-2600110405226-112696-21230-2-2024,21230
Home Office,Home Office,07/02/2024,IT RUN COST,PSG - Public Safety Group,CAPGEMINI UK PLC,1892011-2600110408509-112696-18530717-2-2024,185307.17
Home Office,Home Office,07/02/2024,AD PRODUCTION,PSG - Public Safety Group,OMNICOM MEDIA GROUP UK,1230011-F47893-258111-10975886-2-2024,109758.86
Home Office,Home Office,08/02/2024,IT RUN COST,PSG - Public Safety Group,BAE SYSTEMS APPLIED INTELLIGENCE LIMITED,1892008-1001058758-136604-36670-2-2024,36670
Home Office,Home Office,08/02/2024,FULL COST,PSG - Public Safety Group,BROOK STREET (UK) LTD,1220012-30836497-24-100385-98002-2-2024,1176.02
Home Office,Home Office,08/02/2024,FULL COST,PSG - Public Safety Group,BROOK STREET (UK) LTD,1262100-30836497-24-100385-117882-2-2024,1178.82
Home Office,Home Office,08/02/2024,FULL COST,PSG - Public Safety Group,BROOK STREET (UK) LTD,1295014-30836497-24-100385-183668-2-2024,2204.01
Home Office,Home Office,08/02/2024,FULL COST,PSG - Public Safety Group,BROOK STREET (UK) LTD,1295054-30836497-24-100385-1708657-2-2024,20503.87
Home Office,Home Office,08/02/2024,CONFERENCES,PSG - Public Safety Group,CALDER CONFERENCES LTD,1862112-517373-112824-3083333-2-2024,30833.33
Home Office,Home Office,08/02/2024,IT RUN COST,PSG - Public Safety Group,NTT DATA UK LTD,1892024-121576774-320521-53667-2-2024,53667
Home Office,Home Office,08/02/2024,IT RUN COST,PSG - Public Safety Group,PA CONSULTING SERVICES LTD,1892014-0000029777-100039-44820-2-2024,53784
Home Office,Home Office,08/02/2024,SYSTEM CLEARING,PSG - Public Safety Group,PA CONSULTING SERVICES LTD,1892014-0000029774-100039-111625-2-2024,133950
Home Office,Home Office,08/02/2024,MISCELLANEOUS EXPENDITURE,PSG - Public Safety Group,STAFFORDSHIRE FIRE AND RESCUE SERVICE,1295025-1000001580-323878-25147-2-2024,25147
Home Office,Home Office,08/02/2024,IT RUN COST,PSG - Public Safety Group,VODAFONE LTD,1262100-UK10/022024/6461-119598-21352-2-2024,21352
Home Office,Home Office,09/02/2024,CONTINGENT LABOUR OTHER,PSG - Public Safety Group,ALEXANDER MANN SOLUTIONS LTD,1262116-2972644-560478-282305-2-2024,3387.66
Home Office,Home Office,09/02/2024,CONTINGENT LABOUR OTHER,PSG - Public Safety Group,ALEXANDER MANN SOLUTIONS LTD,1862112-2972644-560478-287728-2-2024,3452.74
Home Office,Home Office,09/02/2024,CONTINGENT LABOUR OTHER,PSG - Public Safety Group,ALEXANDER MANN SOLUTIONS LTD,1295005-2972644-560478-320805-2-2024,3849.66
Home Office,Home Office,09/02/2024,CONTINGENT LABOUR OTHER,PSG - Public Safety Group,ALEXANDER MANN SOLUTIONS LTD,1262115-2972644-560478-340205-2-2024,4082.46
Home Office,Home Office,09/02/2024,CONTINGENT LABOUR OTHER,PSG - Public Safety Group,ALEXANDER MANN SOLUTIONS LTD,1892018-2972644-560478-585207-2-2024,7022.48
Home Office,Home Office,09/02/2024,CONTINGENT LABOUR OTHER,PSG - Public Safety Group,ALEXANDER MANN SOLUTIONS LTD,1295014-2972644-560478-1178395-2-2024,14140.74
Home Office,Home Office,09/02/2024,CONTINGENT LABOUR OTHER,PSG - Public Safety Group,ALEXANDER MANN SOLUTIONS LTD,1892023-2972644-560478-3553833-2-2024,42646
Home Office,Home Office,09/02/2024,SYSTEM CLEARING,PSG - Public Safety Group,ALEXANDER MANN SOLUTIONS LTD,1892014-2973757-560478-45625-2-2024,54750
Home Office,Home Office,09/02/2024,CONTINGENT LABOUR OTHER,PSG - Public Safety Group,ALEXANDER MANN SOLUTIONS LTD,1892008-2972644-560478-531114-2-2024,63733.68
Home Office,Home Office,09/02/2024,SYSTEM CLEARING,PSG - Public Safety Group,ALEXANDER MANN SOLUTIONS LTD,1892014-2973761-560478-94333-2-2024,113199.6
Home Office,Home Office,09/02/2024,CONTINGENT LABOUR OTHER,PSG - Public Safety Group,ALEXANDER MANN SOLUTIONS LTD,1262100-2972644-560478-18376965-2-2024,183769.65
Home Office,Home Office,09/02/2024,CONTINGENT LABOUR OTHER,PSG - Public Safety Group,ALEXANDER MANN SOLUTIONS LTD,1892014-2972644-560478-27094973-2-2024,325139.69
Home Office,Home Office,09/02/2024,IT RUN COST,PSG - Public Safety Group,EE LTD,1262100-1800335419-425623-229776-2-2024,22977.6
Home Office,Home Office,12/02/2024,SYSTEM CLEARING,PSG - Public Safety Group,ALEXANDER MANN SOLUTIONS LTD,1892018-2973775-560478-22336-2-2024,22336
Home Office,Home Office,12/02/2024,SYSTEM CLEARING,PSG - Public Safety Group,ALEXANDER MANN SOLUTIONS LTD,1892014-2973776-560478-22575-2-2024,27090
Home Office,Home Office,12/02/2024,IT RUN COST,PSG - Public Safety Group,ALEXANDER MANN SOLUTIONS LTD,1892018-2973793-560478-28804-2-2024,28804
Home Office,Home Office,12/02/2024,ADVICE,PSG - Public Safety Group,ALEXANDER MANN SOLUTIONS LTD,1830007-2973783-560478-29000-2-2024,29000
Home Office,Home Office,12/02/2024,ADVICE,PSG - Public Safety Group,ALEXANDER MANN SOLUTIONS LTD,1830007-2973784-560478-30000-2-2024,30000
Home Office,Home Office,12/02/2024,ADVICE,PSG - Public Safety Group,ALEXANDER MANN SOLUTIONS LTD,1830007-2973787-560478-3305263-2-2024,33052.63
Home Office,Home Office,12/02/2024,ADVICE,PSG - Public Safety Group,ALEXANDER MANN SOLUTIONS LTD,1830007-2973788-560478-3305263-2-2024,33052.63
Home Office,Home Office,12/02/2024,OTHER,PSG - Public Safety Group,ALEXANDER MANN SOLUTIONS LTD,1200121-2973799-560478-33350-2-2024,40020
Home Office,Home Office,12/02/2024,SYSTEM CLEARING,PSG - Public Safety Group,ALEXANDER MANN SOLUTIONS LTD,1261001-2973778-560478-93582-2-2024,93582
Home Office,Home Office,12/02/2024,PUBLIC OPIN SURVEY,PSG - Public Safety Group,KANTAR PUBLIC UK LTD,1204010-90001415-57874-13310857-2-2024,159730.28
Home Office,Home Office,12/02/2024,SYSTEM CLEARING,PSG - Public Safety Group,METHODS  BUSINESS AND DIGITAL TECH LTD,1892011-SIN079508-119732-3917875-2-2024,39178.75
Home Office,Home Office,12/02/2024,RESEARCH AND DEVELOPMENT,PSG - Public Safety Group,QINETIQ LTD,1265001-117075108-112688-18826586-2-2024,225919.03
Home Office,Home Office,12/02/2024,SYSTEM CLEARING,PSG - Public Safety Group,ROWE IT,1202508-INV-1185-59539-6632755-2-2024,66327.55
Home Office,Home Office,13/02/2024,IT RUN COST,PSG - Public Safety Group,CGI IT UK LTD,1892011-GB014124498-240306-332625-2-2024,33262.5
Home Office,Home Office,13/02/2024,IT RUN COST,PSG - Public Safety Group,EE LTD,1262100-1800335413-425623-23069702-2-2024,230697.02
Home Office,Home Office,13/02/2024,PUBLIC OPIN SURVEY,PSG - Public Safety Group,KANTAR PUBLIC UK LTD,1286970-90002015-57874-90711-2-2024,108853.2
Home Office,Home Office,13/02/2024,SYSTEM CLEARING,PSG - Public Safety Group,LENDLEASE CONSTRUCTION (EUROPE) LTD,1262100-14100019972-468614-27725768-2-2024,277257.68
Home Office,Home Office,13/02/2024,IT RUN COST,PSG - Public Safety Group,PA CONSULTING SERVICES LTD,1262100-0000029816-100039-181300-2-2024,181300
Home Office,Home Office,13/02/2024,IT RUN COST,PSG - Public Safety Group,VODAFONE LTD,1830007-10591391-119598-28752044-2-2024,345024.53
Home Office,Home Office,14/02/2024,SYSTEM CLEARING,PSG - Public Safety Group,ALEXANDER MANN SOLUTIONS LTD,1892014-2969282-560478-30833-2-2024,36999.6
Home Office,Home Office,14/02/2024,RESEARCH AND DEVELOPMENT,PSG - Public Safety Group,KANTAR PUBLIC UK LTD,1286970-90001423-57874-3259398-2-2024,39112.78
Home Office,Home Office,14/02/2024,OTHER SERVICES,PSG - Public Safety Group,QINETIQ LTD,1230011-117074863-112688-3644522-2-2024,36445.22
Home Office,Home Office,15/02/2024,RESEARCH AND DEVELOPMENT,PSG - Public Safety Group,ALCIS HOLDINGS LTD,1286565-AH0468-59858-5170225-2-2024,51702.25
Home Office,Home Office,15/02/2024,IT RUN COST,PSG - Public Safety Group,BLOOM PROCUREMENT SERVICES LTD,1892018-SIN049493-518536-299110-2-2024,299110
Home Office,Home Office,15/02/2024,SYSTEM CLEARING,PSG - Public Safety Group,CAPGEMINI UK PLC,1892018-2600110409315-112696-21230-2-2024,21230
Home Office,Home Office,15/02/2024,RESEARCH AND DEVELOPMENT,PSG - Public Safety Group,ITAD LTD,1286565-SIL007208-57425-9688148-2-2024,116257.78
Home Office,Home Office,15/02/2024,ADVICE,PSG - Public Safety Group,QINETIQ LTD,1830007-117075109-112688-2857981-2-2024,34295.77
Home Office,Home Office,15/02/2024,SYSTEM CLEARING,PSG - Public Safety Group,SPECIALIST COMPUTER CENTRES PLC,1892016-OP/ N519186-100774-115360-2-2024,115360
Home Office,Home Office,16/02/2024,CONTINGENT LABOUR OTHER,PSG - Public Safety Group,ALEXANDER MANN SOLUTIONS LTD,1262115-2977220-560478-340205-2-2024,4082.46
Home Office,Home Office,16/02/2024,CONTINGENT LABOUR OTHER,PSG - Public Safety Group,ALEXANDER MANN SOLUTIONS LTD,1862112-2977220-560478-35966-2-2024,4315.92
Home Office,Home Office,16/02/2024,CONTINGENT LABOUR OTHER,PSG - Public Safety Group,ALEXANDER MANN SOLUTIONS LTD,1295005-2977220-560478-413213-2-2024,4958.56
Home Office,Home Office,16/02/2024,CONTINGENT LABOUR OTHER,PSG - Public Safety Group,ALEXANDER MANN SOLUTIONS LTD,1892018-2977220-560478-867997-2-2024,10415.97
Home Office,Home Office,16/02/2024,CONTINGENT LABOUR OTHER,PSG - Public Safety Group,ALEXANDER MANN SOLUTIONS LTD,1830007-2977220-560478-13650-2-2024,16380
Home Office,Home Office,16/02/2024,CONTINGENT LABOUR OTHER,PSG - Public Safety Group,ALEXANDER MANN SOLUTIONS LTD,1295014-2977220-560478-153778-2-2024,18453.36
Home Office,Home Office,16/02/2024,CONTINGENT LABOUR OTHER,PSG - Public Safety Group,ALEXANDER MANN SOLUTIONS LTD,1892023-2977220-560478-171447-2-2024,20573.64
Home Office,Home Office,16/02/2024,CONTINGENT LABOUR OTHER,PSG - Public Safety Group,ALEXANDER MANN SOLUTIONS LTD,1892008-2977220-560478-24093-2-2024,28911.6
Home Office,Home Office,16/02/2024,IT RUN COST,PSG - Public Safety Group,ALEXANDER MANN SOLUTIONS LTD,1892018-2978338-560478-47000-2-2024,56400
Home Office,Home Office,16/02/2024,IT RUN COST,PSG - Public Safety Group,ALEXANDER MANN SOLUTIONS LTD,1892014-2978348-560478-59425-2-2024,71310
Home Office,Home Office,16/02/2024,CONTINGENT LABOUR OTHER,PSG - Public Safety Group,ALEXANDER MANN SOLUTIONS LTD,1262100-2977220-560478-16505439-2-2024,165054.39
Home Office,Home Office,16/02/2024,CONTINGENT LABOUR OTHER,PSG - Public Safety Group,ALEXANDER MANN SOLUTIONS LTD,1892014-2977220-560478-28472798-2-2024,341673.58
Home Office,Home Office,16/02/2024,FULL COST,PSG - Public Safety Group,BROOK STREET (UK) LTD,1220012-30846736-24-100385-94646-2-2024,1135.75
Home Office,Home Office,16/02/2024,FULL COST,PSG - Public Safety Group,BROOK STREET (UK) LTD,1262100-30846736-24-100385-117882-2-2024,1178.82
Home Office,Home Office,16/02/2024,FULL COST,PSG - Public Safety Group,BROOK STREET (UK) LTD,1295014-30846736-24-100385-183668-2-2024,2204.01
Home Office,Home Office,16/02/2024,FULL COST,PSG - Public Safety Group,BROOK STREET (UK) LTD,1295054-30846736-24-100385-1617598-2-2024,19411.17
Home Office,Home Office,16/02/2024,RESEARCH AND DEVELOPMENT,PSG - Public Safety Group,DELOITTE LLP,1286565-8004441772-112904-5297099-2-2024,63565.19
Home Office,Home Office,16/02/2024,RESEARCH AND DEVELOPMENT,PSG - Public Safety Group,DELOITTE LLP,1286565-8004441771-112904-10030428-2-2024,120365.14
Home Office,Home Office,16/02/2024,IT RUN COST,PSG - Public Safety Group,EE LTD,1262100-1800335449-425623-9058442-2-2024,90584.42
Home Office,Home Office,16/02/2024,IT RUN COST,PSG - Public Safety Group,EE LTD,1262100-1800335461-425623-10335013-2-2024,103350.13
Home Office,Home Office,16/02/2024,IT RUN COST,PSG - Public Safety Group,EE LTD,1262100-1800319520-425623-15189461-2-2024,151894.61
Home Office,Home Office,16/02/2024,CURRENT GRANTS TO CENTRAL GOVERNMENT,PSG - Public Safety Group,FOREIGN COMMONWEALTH & DEVELOPMENT OFFICE,1286565-20013844-113026-112-2-2024,1.12
Home Office,Home Office,16/02/2024,MISCELLANEOUS EXPENDITURE,PSG - Public Safety Group,FOREIGN COMMONWEALTH & DEVELOPMENT OFFICE,1286565-20013844-113026-13689-2-2024,136.89
Home Office,Home Office,16/02/2024,OTHER TRAVEL,PSG - Public Safety Group,FOREIGN COMMONWEALTH & DEVELOPMENT OFFICE,1862112-20013844-113026-88617-2-2024,886.17
Home Office,Home Office,16/02/2024,FCO CHARGES,PSG - Public Safety Group,FOREIGN COMMONWEALTH & DEVELOPMENT OFFICE,1862114-20013844-113026-30685-2-2024,3068.5
Home Office,Home Office,16/02/2024,TRANSFERS,PSG - Public Safety Group,FOREIGN COMMONWEALTH & DEVELOPMENT OFFICE,1286565-20013844-113026-585321-2-2024,5853.21
Home Office,Home Office,16/02/2024,ADVICE,PSG - Public Safety Group,FOREIGN COMMONWEALTH & DEVELOPMENT OFFICE,1286565-20013844-113026-1486921-2-2024,14869.21
Home Office,Home Office,16/02/2024,CURRENT GRANTS TO OVERSEAS BODIES,PSG - Public Safety Group,FOREIGN COMMONWEALTH & DEVELOPMENT OFFICE,1286565-20013844-113026-30825281-2-2024,308252.81
Home Office,Home Office,16/02/2024,SYSTEM CLEARING,PSG - Public Safety Group,POLICE SERVICE OF NORTHERN IRELAND,1892014-1000020247-101037-276832-2-2024,276832
Home Office,Home Office,16/02/2024,SYSTEM CLEARING,PSG - Public Safety Group,SOPRA STERIA LTD,1892017-100216032-112699-122956-2-2024,122956
Home Office,Home Office,16/02/2024,RESEARCH AND DEVELOPMENT,PSG - Public Safety Group,TORCHLIGHT GROUP LTD,1286565-TLG-001756-50792-5582408-2-2024,66988.9
Home Office,Home Office,19/02/2024,SYSTEM CLEARING,PSG - Public Safety Group,ALEXANDER MANN SOLUTIONS LTD,1892016-2978327-560478-45675767-2-2024,456757.67
Home Office,Home Office,19/02/2024,IT RUN COST,PSG - Public Safety Group,DATALYNX LTD,1892014-1277-184817-346630-2-2024,346630
Home Office,Home Office,19/02/2024,IT RUN COST,PSG - Public Safety Group,EE LTD,1262100-1800335448-425623-2656133-2-2024,26561.33
Home Office,Home Office,19/02/2024,SYSTEM CLEARING,PSG - Public Safety Group,EE LTD,1262100-1800335459-425623-4117908-2-2024,41179.08
Home Office,Home Office,19/02/2024,SYSTEM CLEARING,PSG - Public Safety Group,EE LTD,1262100-1800335456-425623-5894965-2-2024,58949.65
Home Office,Home Office,19/02/2024,IT RUN COST,PSG - Public Safety Group,EE LTD,1262100-1800335447-425623-12115655-2-2024,121156.55
Home Office,Home Office,19/02/2024,IT RUN COST,PSG - Public Safety Group,IDENTITY E2E LTD,1262100-101918-384232-141565-2-2024,141565
Home Office,Home Office,19/02/2024,SYSTEM CLEARING,PSG - Public Safety Group,NETCOMPANY UK LIMITED,1892019-NCUK62886-465524-31028425-2-2024,310284.25
Home Office,Home Office,19/02/2024,SYSTEM CLEARING,PSG - Public Safety Group,POLICE & CRIME COMMISSIONER FOR HERTFORDSHIRE,1892009-H0007881-112901-2871845-2-2024,28718.45
Home Office,Home Office,19/02/2024,ADVICE,PSG - Public Safety Group,QINETIQ LTD,1830007-117074908-112688-6437546-2-2024,64375.46
Home Office,Home Office,19/02/2024,ADVICE,PSG - Public Safety Group,QINETIQ LTD,1830007-117075136-112688-680668-2-2024,68066.8
Home Office,Home Office,19/02/2024,RESEARCH AND DEVELOPMENT,PSG - Public Safety Group,TORCHLIGHT GROUP LTD,1286565-TLG-001767-50792-15765053-2-2024,189180.64
Home Office,Home Office,20/02/2024,SYSTEM CLEARING,PSG - Public Safety Group,ATKINSREALIS PPS LTD,1262116-24003019-53010-2142772-2-2024,25713.26
Home Office,Home Office,20/02/2024,RESEARCH AND DEVELOPMENT,PSG - Public Safety Group,DEPARTMENT FOR EDUCATION,1286980-CORE-PSCR-003975-242936-60000-2-2024,72000
Home Office,Home Office,20/02/2024,IT RUN COST,PSG - Public Safety Group,NTT DATA UK LTD,1892024-121574486-320521-53487-2-2024,53487
Home Office,Home Office,20/02/2024,IT RUN COST,PSG - Public Safety Group,NTT DATA UK LTD,1892024-121584699-320521-53487-2-2024,53487
Home Office,Home Office,20/02/2024,SYSTEM CLEARING,PSG - Public Safety Group,SPECIALIST COMPUTER CENTRES PLC,1892016-OP/ N530387-100774-3144861-2-2024,31448.61
Home Office,Home Office,21/02/2024,IT RUN COST,PSG - Public Safety Group,BAE SYSTEMS APPLIED INTELLIGENCE LIMITED,1892024-1001058739-136604-121040-2-2024,121040
Home Office,Home Office,21/02/2024,IT RUN COST,PSG - Public Safety Group,CERTUS ADVISORY LIMITED,1262100-476-566163-439734-2-2024,43973.4
Home Office,Home Office,21/02/2024,IT RUN COST,PSG - Public Safety Group,CERTUS ADVISORY LIMITED,1262116-475-566163-6241079-2-2024,74892.95
Home Office,Home Office,21/02/2024,IT RUN COST,PSG - Public Safety Group,CERTUS ADVISORY LIMITED,1262100-475-566163-10173421-2-2024,101734.21
Home Office,Home Office,21/02/2024,IT RUN COST,PSG - Public Safety Group,ERNST AND YOUNG LLP,1262100-GB01G000512825-113852-3982448-2-2024,39824.48
Home Office,Home Office,21/02/2024,CURRENT GRANTS TO OVERSEAS BODIES,PSG - Public Safety Group,FOREIGN COMMONWEALTH & DEVELOPMENT OFFICE,1286565-20013841-113026-4189103-2-2024,41891.03
Home Office,Home Office,21/02/2024,IT RUN COST,PSG - Public Safety Group,IPSOS (MARKET RESEARCH) LTD,1230011-24000287-106668-10255575-2-2024,123066.9
Home Office,Home Office,21/02/2024,IT RUN COST,PSG - Public Safety Group,QINETIQ LTD,1200121-117075260-112688-4273905-2-2024,51286.86
Home Office,Home Office,21/02/2024,IT RUN COST,PSG - Public Safety Group,ROKE MANOR RESEARCH LIMITED,1262100-90034246-101796-6762638-2-2024,67626.38
Home Office,Home Office,22/02/2024,SYSTEM CLEARING,PSG - Public Safety Group,BAE SYSTEMS APPLIED INTELLIGENCE LIMITED,1892023-1001058997-136604-28950-2-2024,28950
Home Office,Home Office,22/02/2024,FULL COST,PSG - Public Safety Group,BROOK STREET (UK) LTD,1220012-30856721-24-100385-77193-2-2024,926.31
Home Office,Home Office,22/02/2024,FULL COST,PSG - Public Safety Group,BROOK STREET (UK) LTD,1262100-30856721-24-100385-117882-2-2024,1178.82
Home Office,Home Office,22/02/2024,FULL COST,PSG - Public Safety Group,BROOK STREET (UK) LTD,1295014-30856721-24-100385-129748-2-2024,1556.97
Home Office,Home Office,22/02/2024,FULL COST,PSG - Public Safety Group,BROOK STREET (UK) LTD,1295054-30856721-24-100385-1581815-2-2024,18981.77
Home Office,Home Office,22/02/2024,OTHER,PSG - Public Safety Group,CARE QUALITY COMMISSION (CQC),1295054-43499118-52357-9765627-2-2024,117187.52
Home Office,Home Office,22/02/2024,SYSTEM CLEARING,PSG - Public Safety Group,CIVICA UK LTD,1892014-C/HT297005-421184-4683635-2-2024,56203.62
Home Office,Home Office,22/02/2024,SYSTEM CLEARING,PSG - Public Safety Group,FUJITSU SERVICES LTD,1892019-1030022702-106173-108165-2-2024,108165
Home Office,Home Office,22/02/2024,IT RUN COST,PSG - Public Safety Group,METRICELL LTD,1262100-INV-1853-59817-87500-2-2024,87500
Home Office,Home Office,22/02/2024,MISCELLANEOUS EXPENDITURE,PSG - Public Safety Group,NATIONAL CRIME AGENCY (NCA),1286565-SI\032455-343011-804094-2-2024,804094
Home Office,Home Office,22/02/2024,OTHER SERVICES,PSG - Public Safety Group,QINETIQ LTD,1230011-117075194-112688-6003668-2-2024,72044.02
Home Office,Home Office,23/02/2024,CONTINGENT LABOUR OTHER,PSG - Public Safety Group,ALEXANDER MANN SOLUTIONS LTD,1862112-2981667-560478-17983-2-2024,2157.96
Home Office,Home Office,23/02/2024,CONTINGENT LABOUR OTHER,PSG - Public Safety Group,ALEXANDER MANN SOLUTIONS LTD,1295005-2981667-560478-184816-2-2024,2217.79
Home Office,Home Office,23/02/2024,CONTINGENT LABOUR OTHER,PSG - Public Safety Group,ALEXANDER MANN SOLUTIONS LTD,1262115-2981667-560478-340205-2-2024,4082.46
Home Office,Home Office,23/02/2024,CONTINGENT LABOUR OTHER,PSG - Public Safety Group,ALEXANDER MANN SOLUTIONS LTD,1262116-2981667-560478-56461-2-2024,6775.32
Home Office,Home Office,23/02/2024,CONTINGENT LABOUR OTHER,PSG - Public Safety Group,ALEXANDER MANN SOLUTIONS LTD,1892018-2981667-560478-693483-2-2024,8321.8
Home Office,Home Office,23/02/2024,CONTINGENT LABOUR OTHER,PSG - Public Safety Group,ALEXANDER MANN SOLUTIONS LTD,1892008-2981667-560478-1526315-2-2024,18315.78
Home Office,Home Office,23/02/2024,CONTINGENT LABOUR OTHER,PSG - Public Safety Group,ALEXANDER MANN SOLUTIONS LTD,1295014-2981667-560478-1858585-2-2024,22303.02
Home Office,Home Office,23/02/2024,ADVICE,PSG - Public Safety Group,ALEXANDER MANN SOLUTIONS LTD,1830007-2982708-560478-3305263-2-2024,33052.63
Home Office,Home Office,23/02/2024,CONTINGENT LABOUR OTHER,PSG - Public Safety Group,ALEXANDER MANN SOLUTIONS LTD,1892023-2981667-560478-3155325-2-2024,37863.9
Home Office,Home Office,23/02/2024,SYSTEM CLEARING,PSG - Public Safety Group,ALEXANDER MANN SOLUTIONS LTD,1892023-2982710-560478-41742-2-2024,41742
Home Office,Home Office,23/02/2024,IT RUN COST,PSG - Public Safety Group,ALEXANDER MANN SOLUTIONS LTD,1892014-2982714-560478-117915-2-2024,141498
Home Office,Home Office,23/02/2024,IT RUN COST,PSG - Public Safety Group,ALEXANDER MANN SOLUTIONS LTD,1892014-2982713-560478-130095-2-2024,156114
Home Office,Home Office,23/02/2024,CONTINGENT LABOUR OTHER,PSG - Public Safety Group,ALEXANDER MANN SOLUTIONS LTD,1262100-2981667-560478-25386803-2-2024,253868.03
Home Office,Home Office,23/02/2024,CONTINGENT LABOUR OTHER,PSG - Public Safety Group,ALEXANDER MANN SOLUTIONS LTD,1892014-2981667-560478-29048506-2-2024,348582.05
Home Office,Home Office,23/02/2024,ADVICE,PSG - Public Safety Group,BLOOM PROCUREMENT SERVICES LTD,1830007-SIN049671-518536-848625-2-2024,101835
Home Office,Home Office,23/02/2024,IT RUN COST,PSG - Public Safety Group,CGI IT UK LTD,1892009-GB014125721-240306-2261875-2-2024,226187.5
Home Office,Home Office,23/02/2024,IT RUN COST,PSG - Public Safety Group,DELOITTE LLP,1262100-8004420946-112904-2163590-2-2024,2163590
Home Office,Home Office,23/02/2024,IT RUN COST,PSG - Public Safety Group,MASON ADVISORY LTD,1262100-INV004547-51190-49014883-2-2024,490148.83
Home Office,Home Office,23/02/2024,IT RUN COST,PSG - Public Safety Group,MOTOROLA LIMITED,1262100-1980003970-100573-129166666-2-2024,1291666.66
Home Office,Home Office,23/02/2024,SYSTEM CLEARING,PSG - Public Safety Group,POLICE SERVICE OF NORTHERN IRELAND,1892014-1000020262-101037-52500-2-2024,52500
Home Office,Home Office,23/02/2024,RESEARCH AND DEVELOPMENT,PSG - Public Safety Group,TORCHLIGHT GROUP LTD,1286565-TLG-001774-50792-10728852-2-2024,128746.22
Home Office,Home Office,26/02/2024,OTHER GOVERNMENT DEPARTMENTS,PSG - Public Safety Group,HM REVENUE & CUSTOMS,1295054-18000055222023-187546-50758-2-2024,60909.6
Home Office,Home Office,26/02/2024,OTHER GOVERNMENT DEPARTMENTS,PSG - Public Safety Group,HM REVENUE & CUSTOMS,1295054-18000039412023-187546-51138-2-2024,61365.6
Home Office,Home Office,26/02/2024,OTHER GOVERNMENT DEPARTMENTS,PSG - Public Safety Group,HM REVENUE & CUSTOMS,1295054-18000049952023-187546-666185-2-2024,79942.2
Home Office,Home Office,26/02/2024,OTHER GOVERNMENT DEPARTMENTS,PSG - Public Safety Group,HM REVENUE & CUSTOMS,1295054-18000043902023-187546-713885-2-2024,85666.2
Home Office,Home Office,27/02/2024,IT RUN COST,PSG - Public Safety Group,CAPGEMINI UK PLC,1892023-2600110409736-112696-28050-2-2024,28050
Home Office,Home Office,27/02/2024,IT RUN COST,PSG - Public Safety Group,CAPGEMINI UK PLC,1892023-2600110409672-112696-28875-2-2024,28875
Home Office,Home Office,27/02/2024,IT RUN COST,PSG - Public Safety Group,CAPGEMINI UK PLC,1892023-2600110409559-112696-48720-2-2024,48720
Home Office,Home Office,27/02/2024,IT RUN COST,PSG - Public Safety Group,CAPGEMINI UK PLC,1892023-2600110409587-112696-571435-2-2024,57143.5
Home Office,Home Office,27/02/2024,IT RUN COST,PSG - Public Safety Group,CAPGEMINI UK PLC,1892023-2600110409575-112696-116195-2-2024,116195
Home Office,Home Office,27/02/2024,IT RUN COST,PSG - Public Safety Group,CAPGEMINI UK PLC,1892023-2600110409571-112696-46972375-2-2024,469723.75
Home Office,Home Office,27/02/2024,IT RUN COST,PSG - Public Safety Group,EE LTD,1262100-1800337832-425623-56604909-2-2024,566049.09
Home Office,Home Office,27/02/2024,IT RUN COST,PSG - Public Safety Group,EE LTD,1262100-1800335458-425623-95247222-2-2024,952472.22
Home Office,Home Office,27/02/2024,IT RUN COST,PSG - Public Safety Group,EE LTD,1262100-1800332205-425623-111682255-2-2024,1116822.55
Home Office,Home Office,27/02/2024,IT RUN COST,PSG - Public Safety Group,EE LTD,1262100-1800337831-425623-577568719-2-2024,5775687.19
Home Office,Home Office,27/02/2024,ADVICE,PSG - Public Safety Group,GOVERNMENT ACTUARYS DEPARTMENT,1205000-SINV/00037150-119063-2714087-2-2024,27140.87
Home Office,Home Office,27/02/2024,ADVICE,PSG - Public Safety Group,NATIONAL CENTRE FOR SOCIAL RESEARCH,1286965-0059341-118232-9063408-2-2024,108760.9
Home Office,Home Office,27/02/2024,ADVICE,PSG - Public Safety Group,NATIONAL CENTRE FOR SOCIAL RESEARCH,1286965-0059342-118232-9063408-2-2024,108760.9
Home Office,Home Office,27/02/2024,CAPITAL TRANSFERS TO OGDs,PSG - Public Safety Group,NATIONAL CRIME AGENCY (NCA),1286880-SI\032344-343011-27913426-2-2024,279134.26
Home Office,Home Office,27/02/2024,TRANSFERS,PSG - Public Safety Group,NATIONAL CRIME AGENCY (NCA),1286880-SI\032344-343011-56405303-2-2024,5640530.3
Home Office,Home Office,27/02/2024,CONSUMABLES,PSG - Public Safety Group,OFFICE OF THE DURHAM POLICE & CRIME COMMISSIONER,1298008-20025187-100105-144083-2-2024,1440.83
Home Office,Home Office,27/02/2024,ADVICE,PSG - Public Safety Group,OFFICE OF THE DURHAM POLICE & CRIME COMMISSIONER,1298008-20025187-100105-8131667-2-2024,81316.67
Home Office,Home Office,27/02/2024,AD PRODUCTION,PSG - Public Safety Group,OMNICOM MEDIA GROUP UK,1230011-F52513-258111-4504442-2-2024,45044.42
Home Office,Home Office,27/02/2024,AD PRODUCTION,PSG - Public Safety Group,OMNICOM MEDIA GROUP UK,1230011-F52514-258111-4504442-2-2024,45044.42
Home Office,Home Office,27/02/2024,AD PRODUCTION,PSG - Public Safety Group,OMNICOM MEDIA GROUP UK,1233013-F51970-258111-4967015-2-2024,49670.15
Home Office,Home Office,27/02/2024,AD PRODUCTION,PSG - Public Safety Group,OMNICOM MEDIA GROUP UK,1233013-F51971-258111-5544057-2-2024,55440.57
Home Office,Home Office,27/02/2024,IT RUN COST,PSG - Public Safety Group,VODAFONE LTD,1830007-4038311-119598-86980-2-2024,104376
Home Office,Home Office,27/02/2024,IT RUN COST,PSG - Public Safety Group,VODAFONE LTD,1830007-394426-119598-17261479-2-2024,207137.75
Home Office,Home Office,28/02/2024,IT RUN COST,PSG - Public Safety Group,APPVIA LTD,1892023-SOW4_INV-0327-50296-23100-2-2024,23100
Home Office,Home Office,28/02/2024,IT RUN COST,PSG - Public Safety Group,BAE SYSTEMS APPLIED INTELLIGENCE LIMITED,1892023-1001058954-136604-24000-2-2024,24000
Home Office,Home Office,28/02/2024,ADVICE,PSG - Public Safety Group,FOREIGN COMMONWEALTH & DEVELOPMENT OFFICE,1286565-20014061-113026-437346-2-2024,4373.46
Home Office,Home Office,28/02/2024,FCO CHARGES,PSG - Public Safety Group,FOREIGN COMMONWEALTH & DEVELOPMENT OFFICE,1862114-20014061-113026-492892-2-2024,4928.92
Home Office,Home Office,28/02/2024,TRANSFERS,PSG - Public Safety Group,FOREIGN COMMONWEALTH & DEVELOPMENT OFFICE,1286565-20014061-113026-1963923-2-2024,19639.23
Home Office,Home Office,28/02/2024,CURRENT GRANTS TO OVERSEAS BODIES,PSG - Public Safety Group,FOREIGN COMMONWEALTH & DEVELOPMENT OFFICE,1286565-20014061-113026-6242503-2-2024,62425.03
Home Office,Home Office,28/02/2024,ADVICE,PSG - Public Safety Group,GOVERNMENT ACTUARYS DEPARTMENT,1205000-SINV/00037154-119063-650958-2-2024,65095.8
Home Office,Home Office,28/02/2024,OTHER TRAVEL,PSG - Public Safety Group,MAYORS OFFICE FOR POLICING AND CRIME (MOPC),1862112-9411052235-100548-32800-2-2024,32800
Home Office,Home Office,29/02/2024,IT RUN COST,PSG - Public Safety Group,AIRWAVE SOLUTIONS LTD,1709505-0900000279-515-153581-13230177-2-2024,132301.77
Home Office,Home Office,29/02/2024,FULL COST,PSG - Public Safety Group,BROOK STREET (UK) LTD,1220012-30870759-24-100385-93975-2-2024,1127.7
Home Office,Home Office,29/02/2024,FULL COST,PSG - Public Safety Group,BROOK STREET (UK) LTD,1262100-30870759-24-100385-117882-2-2024,1178.82
Home Office,Home Office,29/02/2024,FULL COST,PSG - Public Safety Group,BROOK STREET (UK) LTD,1295014-30870759-24-100385-183668-2-2024,2204.01
Home Office,Home Office,29/02/2024,FULL COST,PSG - Public Safety Group,BROOK STREET (UK) LTD,1295054-30870759-24-100385-1368367-2-2024,16420.39
Home Office,Home Office,29/02/2024,IT RUN COST,PSG - Public Safety Group,CGI IT UK LTD,1892011-GB014125800-240306-67243-2-2024,67243
Home Office,Home Office,29/02/2024,PUBLIC OPIN SURVEY,PSG - Public Safety Group,CITY UNIVERSITY LONDON,1230011-90576527-112737-5531955-2-2024,66383.46
Home Office,Home Office,29/02/2024,RESEARCH AND DEVELOPMENT,PSG - Public Safety Group,KANTAR PUBLIC UK LTD,1286970-90001956-57874-4889097-2-2024,58669.16
Home Office,Home Office,29/02/2024,SYSTEM CLEARING,PSG - Public Safety Group,REPLY LTD,1892014-3241000276-311787-97200-2-2024,97200
Home Office,Home Office,29/02/2024,SYSTEM CLEARING,PSG - Public Safety Group,REPLY LTD,1892014-3241000188-311787-98900-2-2024,98900
Home Office,Home Office,29/02/2024,RESEARCH AND DEVELOPMENT,PSG - Public Safety Group,UNIVERSITY OF BIRMINGHAM,1230011-30029757-103886-9981784-2-2024,99817.84
Home Office,Home Office,02/02/2024,CONTINGENT LABOUR OTHER,"STARS -  Science, Technology, Analysis, Research & Strategy",ALEXANDER MANN SOLUTIONS LTD,1805055-2968169-560478-56387-2-2024,6766.44
Home Office,Home Office,02/02/2024,IT RUN COST,"STARS -  Science, Technology, Analysis, Research & Strategy",BRAMBLE HUB LTD,1805091-INV-14055-211201-143750-2-2024,172500
Home Office,Home Office,02/02/2024,FULL COST,"STARS -  Science, Technology, Analysis, Research & Strategy",BROOK STREET (UK) LTD,1805091-30826456-24-100385-89799-2-2024,1077.59
Home Office,Home Office,02/02/2024,SYSTEM CLEARING,"STARS -  Science, Technology, Analysis, Research & Strategy",IBM UNITED KINGDOM LTD,1492000-5801240946-101457-46860-2-2024,46860
Home Office,Home Office,02/02/2024,RESEARCH AND DEVELOPMENT,"STARS -  Science, Technology, Analysis, Research & Strategy",QINETIQ LTD,1800810-117074905-112688-4583243-2-2024,45832.43
Home Office,Home Office,05/02/2024,ADVICE,"STARS -  Science, Technology, Analysis, Research & Strategy",ALARGAN GARDENS COMPANY,1283022-INV/2024/00001-60647-1705200-2-2024,1705200
Home Office,Home Office,06/02/2024,END USER COMPUTER SOFTWARE,"STARS -  Science, Technology, Analysis, Research & Strategy",DESK TOP PUBLISHING MICRO SYSTEMS LTD,1805054-OP/I389534-55492-3472875-2-2024,41674.5
Home Office,Home Office,08/02/2024,FULL COST,"STARS -  Science, Technology, Analysis, Research & Strategy",BROOK STREET (UK) LTD,1805091-30836497-24-100385-89799-2-2024,1077.59
Home Office,Home Office,08/02/2024,RESEARCH AND DEVELOPMENT,"STARS -  Science, Technology, Analysis, Research & Strategy",CT CENTRE (MOD) LTD T/A DSTL,1800810-SW000100-208273-88183153-2-2024,881831.53
Home Office,Home Office,09/02/2024,CONTINGENT LABOUR OTHER,"STARS -  Science, Technology, Analysis, Research & Strategy",ALEXANDER MANN SOLUTIONS LTD,1805055-2972644-560478-56387-2-2024,6766.44
Home Office,Home Office,09/02/2024,ADVICE,"STARS -  Science, Technology, Analysis, Research & Strategy",NORTH HIGHLAND UK LIMITED,1295051-CINV-2024-00662-215149-25870-2-2024,31044
Home Office,Home Office,12/02/2024,IT RUN COST,"STARS -  Science, Technology, Analysis, Research & Strategy",AXIOM INTERNATIONAL LTD,1771143-3157-58082-317856-2-2024,31785.6
Home Office,Home Office,12/02/2024,IT RUN COST,"STARS -  Science, Technology, Analysis, Research & Strategy",AXIOM INTERNATIONAL LTD,1771143-3188-58082-6203829-2-2024,62038.29
Home Office,Home Office,12/02/2024,IT RUN COST,"STARS -  Science, Technology, Analysis, Research & Strategy",AXIOM INTERNATIONAL LTD,1771143-3179-58082-6306488-2-2024,63064.88
Home Office,Home Office,13/02/2024,ADVICE,"STARS -  Science, Technology, Analysis, Research & Strategy",AXIOM INTERNATIONAL LTD,1283022-3194-58082-7864074-2-2024,94368.89
Home Office,Home Office,13/02/2024,RESEARCH AND DEVELOPMENT,"STARS -  Science, Technology, Analysis, Research & Strategy",KANTAR PUBLIC UK LTD,1805052-90001526-57874-161040-2-2024,161040
Home Office,Home Office,14/02/2024,ADVICE,"STARS -  Science, Technology, Analysis, Research & Strategy",OFFICE OF THE DURHAM POLICE & CRIME COMMISSIONER,1283022-20025120-100105-80000-2-2024,80000
Home Office,Home Office,15/02/2024,RESEARCH AND DEVELOPMENT,"STARS -  Science, Technology, Analysis, Research & Strategy",CT CENTRE (MOD) LTD T/A DSTL,1800810-SW000110-208273-7430906-2-2024,74309.06
Home Office,Home Office,15/02/2024,RESEARCH AND DEVELOPMENT,"STARS -  Science, Technology, Analysis, Research & Strategy",CT CENTRE (MOD) LTD T/A DSTL,1800810-SW000112-208273-138054-2-2024,138054
Home Office,Home Office,15/02/2024,RESEARCH AND DEVELOPMENT,"STARS -  Science, Technology, Analysis, Research & Strategy",CT CENTRE (MOD) LTD T/A DSTL,1800810-SW000109-208273-21578001-2-2024,215780.01
Home Office,Home Office,15/02/2024,RESEARCH AND DEVELOPMENT,"STARS -  Science, Technology, Analysis, Research & Strategy",CT CENTRE (MOD) LTD T/A DSTL,1800810-SW000101-208273-42017201-2-2024,420172.01
Home Office,Home Office,15/02/2024,RESEARCH AND DEVELOPMENT,"STARS -  Science, Technology, Analysis, Research & Strategy",CT CENTRE (MOD) LTD T/A DSTL,1800810-SW000111-208273-490223-2-2024,490223
Home Office,Home Office,16/02/2024,CONTINGENT LABOUR OTHER,"STARS -  Science, Technology, Analysis, Research & Strategy",ALEXANDER MANN SOLUTIONS LTD,1805055-2977220-560478-56387-2-2024,6766.44
Home Office,Home Office,16/02/2024,ADVICE,"STARS -  Science, Technology, Analysis, Research & Strategy",BIG WORD INTERPRETING SERVICES LTD (THE),1283022-INV20278162-105469-8587984-2-2024,103055.81
Home Office,Home Office,16/02/2024,FULL COST,"STARS -  Science, Technology, Analysis, Research & Strategy",BROOK STREET (UK) LTD,1805091-30846736-24-100385-89799-2-2024,1077.59
Home Office,Home Office,16/02/2024,ADVICE,"STARS -  Science, Technology, Analysis, Research & Strategy",CROWN INTEGRATED SERVICES LTD,1283022-1016-59148-2686354-2-2024,32236.25
Home Office,Home Office,16/02/2024,ADVICE,"STARS -  Science, Technology, Analysis, Research & Strategy",CROWN INTEGRATED SERVICES LTD,1283022-1014-59148-271200-2-2024,317744
Home Office,Home Office,16/02/2024,RAIL TRAVEL,"STARS -  Science, Technology, Analysis, Research & Strategy",FOREIGN COMMONWEALTH & DEVELOPMENT OFFICE,1771142-20013844-113026-431-2-2024,4.31
Home Office,Home Office,16/02/2024,FOREIGN TAXI SERVICES,"STARS -  Science, Technology, Analysis, Research & Strategy",FOREIGN COMMONWEALTH & DEVELOPMENT OFFICE,1771142-20013844-113026-5087-2-2024,50.87
Home Office,Home Office,16/02/2024,OTHER FOREIGN TRAVEL,"STARS -  Science, Technology, Analysis, Research & Strategy",FOREIGN COMMONWEALTH & DEVELOPMENT OFFICE,1771142-20013844-113026-10212-2-2024,102.12
Home Office,Home Office,16/02/2024,FCO CHARGES,"STARS -  Science, Technology, Analysis, Research & Strategy",FOREIGN COMMONWEALTH & DEVELOPMENT OFFICE,1862107-20013844-113026-11453-2-2024,114.53
Home Office,Home Office,16/02/2024,HOTELS & ACCOMODATION,"STARS -  Science, Technology, Analysis, Research & Strategy",FOREIGN COMMONWEALTH & DEVELOPMENT OFFICE,1771142-20013844-113026-13641-2-2024,136.41
Home Office,Home Office,16/02/2024,FOREIGN ACCOMODATION,"STARS -  Science, Technology, Analysis, Research & Strategy",FOREIGN COMMONWEALTH & DEVELOPMENT OFFICE,1771142-20013844-113026-15426-2-2024,154.26
Home Office,Home Office,16/02/2024,MOBILE PHONES,"STARS -  Science, Technology, Analysis, Research & Strategy",FOREIGN COMMONWEALTH & DEVELOPMENT OFFICE,1862107-20013844-113026-19233-2-2024,192.33
Home Office,Home Office,16/02/2024,FOREIGN ACCOMODATION,"STARS -  Science, Technology, Analysis, Research & Strategy",FOREIGN COMMONWEALTH & DEVELOPMENT OFFICE,1444089-20013844-113026-21702-2-2024,217.02
Home Office,Home Office,16/02/2024,CLINICAL & MEDICAL,"STARS -  Science, Technology, Analysis, Research & Strategy",FOREIGN COMMONWEALTH & DEVELOPMENT OFFICE,1862107-20013844-113026-61058-2-2024,610.58
Home Office,Home Office,16/02/2024,RECHARGE COST,"STARS -  Science, Technology, Analysis, Research & Strategy",FOREIGN COMMONWEALTH & DEVELOPMENT OFFICE,1444089-20013844-113026-295974-2-2024,2959.74
Home Office,Home Office,19/02/2024,ADVICE,"STARS -  Science, Technology, Analysis, Research & Strategy",SMART ACCOMMODATION FOR RESIDENTIAL COMPLEXES COMPANY,1283022-000978-566980-265000-2-2024,265000
Home Office,Home Office,20/02/2024,ADVICE,"STARS -  Science, Technology, Analysis, Research & Strategy",SERCO LTD,1283022-91970103-158586-696447-2-2024,69644.7
Home Office,Home Office,22/02/2024,FULL COST,"STARS -  Science, Technology, Analysis, Research & Strategy",BROOK STREET (UK) LTD,1805091-30856721-24-100385-71596-2-2024,859.15
Home Office,Home Office,22/02/2024,ADVICE,"STARS -  Science, Technology, Analysis, Research & Strategy",COLLEGE OF POLICING,1771141-33999-324330-2683942-2-2024,26839.42
Home Office,Home Office,22/02/2024,ADVICE,"STARS -  Science, Technology, Analysis, Research & Strategy",COLLEGE OF POLICING,1771141-32001-324330-50454-2-2024,50454
Home Office,Home Office,22/02/2024,ADVICE,"STARS -  Science, Technology, Analysis, Research & Strategy",RED SNAPPER RECRUITMENT LTD,1283022-376926-206036-2344988-2-2024,28139.86
Home Office,Home Office,22/02/2024,ADVICE,"STARS -  Science, Technology, Analysis, Research & Strategy",RED SNAPPER RECRUITMENT LTD,1771143-376927-206036-3160706-2-2024,37928.47
Home Office,Home Office,23/02/2024,CONTINGENT LABOUR OTHER,"STARS -  Science, Technology, Analysis, Research & Strategy",ALEXANDER MANN SOLUTIONS LTD,1805017-2981667-560478-237165-2-2024,2845.98
Home Office,Home Office,23/02/2024,CONTINGENT LABOUR OTHER,"STARS -  Science, Technology, Analysis, Research & Strategy",ALEXANDER MANN SOLUTIONS LTD,1805055-2981667-560478-246215-2-2024,2954.58
Home Office,Home Office,23/02/2024,ADVICE,"STARS -  Science, Technology, Analysis, Research & Strategy",AXIOM INTERNATIONAL LTD,1283022-3200-58082-9216042-2-2024,110592.5
Home Office,Home Office,23/02/2024,ADVICE,"STARS -  Science, Technology, Analysis, Research & Strategy",AXIOM INTERNATIONAL LTD,1283022-3201-58082-10930734-2-2024,131168.81
Home Office,Home Office,23/02/2024,ADVICE,"STARS -  Science, Technology, Analysis, Research & Strategy",AXIOM INTERNATIONAL LTD,1283022-3202-58082-45921737-2-2024,551060.84
Home Office,Home Office,23/02/2024,RESEARCH AND DEVELOPMENT,"STARS -  Science, Technology, Analysis, Research & Strategy",IPSOS (MARKET RESEARCH) LTD,1805053-24000338-106668-213639-2-2024,21363.9
Home Office,Home Office,23/02/2024,RESEARCH AND DEVELOPMENT,"STARS -  Science, Technology, Analysis, Research & Strategy",IPSOS (MARKET RESEARCH) LTD,1805034-24000391-106668-32925-2-2024,39510
Home Office,Home Office,26/02/2024,ADVICE,"STARS -  Science, Technology, Analysis, Research & Strategy",CAMBRIDGE UNIVERSITY TECHNICAL SERVICES LTD,1283022-0000021377-59532-76750-2-2024,92100
Home Office,Home Office,27/02/2024,OTHER FOREIGN TRAVEL,"STARS -  Science, Technology, Analysis, Research & Strategy",FOREIGN COMMONWEALTH & DEVELOPMENT OFFICE,1771142-20014260-113026-133185-2-2024,13318.5
Home Office,Home Office,28/02/2024,EXTERNAL,"STARS -  Science, Technology, Analysis, Research & Strategy",CSL - KPMG LLP,1270760-5502789102-478245-39130-2-2024,39130
Home Office,Home Office,28/02/2024,MOBILE PHONES,"STARS -  Science, Technology, Analysis, Research & Strategy",FOREIGN COMMONWEALTH & DEVELOPMENT OFFICE,1444089-20014061-113026-9796-2-2024,97.96
Home Office,Home Office,28/02/2024,OTHER FOREIGN TRAVEL,"STARS -  Science, Technology, Analysis, Research & Strategy",FOREIGN COMMONWEALTH & DEVELOPMENT OFFICE,1771142-20014061-113026-1581-2-2024,158.1
Home Office,Home Office,28/02/2024,VISA VIGNETTES,"STARS -  Science, Technology, Analysis, Research & Strategy",FOREIGN COMMONWEALTH & DEVELOPMENT OFFICE,1771142-20014061-113026-18912-2-2024,189.12
Home Office,Home Office,28/02/2024,CLINICAL & MEDICAL,"STARS -  Science, Technology, Analysis, Research & Strategy",FOREIGN COMMONWEALTH & DEVELOPMENT OFFICE,1862107-20014061-113026-25646-2-2024,256.46
Home Office,Home Office,28/02/2024,FOREIGN SUBSISTENCE,"STARS -  Science, Technology, Analysis, Research & Strategy",FOREIGN COMMONWEALTH & DEVELOPMENT OFFICE,1771142-20014061-113026-162555-2-2024,1625.55
Home Office,Home Office,28/02/2024,RECHARGE COST,"STARS -  Science, Technology, Analysis, Research & Strategy",FOREIGN COMMONWEALTH & DEVELOPMENT OFFICE,1444089-20014061-113026-16327-2-2024,1632.7
Home Office,Home Office,29/02/2024,FULL COST,"STARS -  Science, Technology, Analysis, Research & Strategy",BROOK STREET (UK) LTD,1805091-30870759-24-100385-89799-2-2024,1077.59
Home Office,Home Office,29/02/2024,SYSTEM CLEARING,"STARS -  Science, Technology, Analysis, Research & Strategy",IBM UNITED KINGDOM LTD,1492000-5802240690-101457-52745-2-2024,52745
Home Office,Home Office,29/02/2024,BASIC SALARY,"STARS -  Science, Technology, Analysis, Research & Strategy",POLICE & CRIME COMMISSIONER FOR HAMPSHIRE,1295052-3680024849-100220-3407097-2-2024,34070.97
Home Office,Home Office,01/02/2024,BASIC SALARY,Strategy,GREATER MANCHESTER COMBINED AUTHORITY,1263000-2021140-261812-3190167-2-2024,31901.67
Home Office,Home Office,01/02/2024,BASIC SALARY,Strategy,GREATER MANCHESTER COMBINED AUTHORITY,1263000-2021146-261812-3537642-2-2024,35376.42
Home Office,Home Office,01/02/2024,BASIC SALARY,Strategy,POLICE & CRIME COMMISSIONER FOR CHESHIRE,1263000-64002528-101718-4427041-2-2024,44270.41
Home Office,Home Office,02/02/2024,CONTINGENT LABOUR OTHER,Strategy,ALEXANDER MANN SOLUTIONS LTD,1771003-2968169-560478-400356-2-2024,4804.27
Home Office,Home Office,02/02/2024,FULL COST,Strategy,BROOK STREET (UK) LTD,1263000-30826456-24-100385-400118-2-2024,4801.41
Home Office,Home Office,02/02/2024,BASIC SALARY,Strategy,POLICE & CRIME COMMISSIONER FOR DYFED POWYS,1263000-20096573-101308-2785902-2-2024,27859.02
Home Office,Home Office,02/02/2024,BASIC SALARY,Strategy,POLICE & CRIME COMMISSIONER FOR DYFED POWYS,1263000-20096546-101308-2992769-2-2024,29927.69
Home Office,Home Office,08/02/2024,FULL COST,Strategy,BROOK STREET (UK) LTD,1263000-30836497-24-100385-391086-2-2024,4693.03
Home Office,Home Office,09/02/2024,CONTINGENT LABOUR OTHER,Strategy,ALEXANDER MANN SOLUTIONS LTD,1771003-2972644-560478-33363-2-2024,4003.56
Home Office,Home Office,13/02/2024,CONFERENCES,Strategy,CALDER CONFERENCES LTD,1263000-517791-112824-7605459-2-2024,76054.59
Home Office,Home Office,14/02/2024,BASIC SALARY,Strategy,LONDON FIRE & EPA,1263000-IN059877-249961-256396-2-2024,25639.6
Home Office,Home Office,14/02/2024,BASIC SALARY,Strategy,LONDON FIRE & EPA,1263000-IN059878-249961-2885765-2-2024,28857.65
Home Office,Home Office,15/02/2024,RESEARCH AND DEVELOPMENT,Strategy,CREST ADVISORY UK LTD,1263000-INV-1654-405812-23602-2-2024,23602
Home Office,Home Office,16/02/2024,FULL COST,Strategy,BROOK STREET (UK) LTD,1263000-30846736-24-100385-452663-2-2024,5431.95
Home Office,Home Office,19/02/2024,BASIC SALARY,Strategy,POLICE & CRIME COMMISSIONER FOR GWENT,1263000-3002992-100214-2891952-2-2024,28919.52
Home Office,Home Office,22/02/2024,FULL COST,Strategy,BROOK STREET (UK) LTD,1298009-30856721-24-100385-68672-2-2024,824.06
Home Office,Home Office,22/02/2024,FULL COST,Strategy,BROOK STREET (UK) LTD,1263000-30856721-24-100385-397223-2-2024,4766.67
Home Office,Home Office,23/02/2024,BASIC SALARY,Strategy,POLICE & CRIME COMMISSIONER FOR GWENT,1263000-3002991-100214-2806044-2-2024,28060.44
Home Office,Home Office,23/02/2024,BASIC SALARY,Strategy,POLICE & CRIME COMMISSIONER FOR NORTH WALES,1263000-N0007960-101241-6104879-2-2024,73258.53
Home Office,Home Office,23/02/2024,BASIC SALARY,Strategy,SURREY COUNTY COUNCIL,1263000-20362513-112848-2600284-2-2024,26002.84
Home Office,Home Office,27/02/2024,LEGAL ADVICE,Strategy,EVERSHEDS SUTHERLAND (INTERNATIONAL) LLP,1298009-9020061227-51704-5935879-2-2024,71230.55
Home Office,Home Office,28/02/2024,FOREIGN TAXI SERVICES,Strategy,FOREIGN COMMONWEALTH & DEVELOPMENT OFFICE,1860040-20014061-113026-16773-2-2024,167.73
Home Office,Home Office,28/02/2024,OTHER FOREIGN TRAVEL,Strategy,FOREIGN COMMONWEALTH & DEVELOPMENT OFFICE,1860000-20014061-113026-274086-2-2024,2740.86
Home Office,Home Office,29/02/2024,FULL COST,Strategy,BROOK STREET (UK) LTD,1263000-30870759-24-100385-442868-2-2024,5314.41
Home Office,Home Office,02/02/2024,CONTINGENT LABOUR OTHER,"UKASRA - Asylum Support, Resettlement & Accommodation.",ALEXANDER MANN SOLUTIONS LTD,1406412-2968169-560478-163104-2-2024,19572.48
Home Office,Home Office,02/02/2024,ADVICE,"UKASRA - Asylum Support, Resettlement & Accommodation.",BLOOM PROCUREMENT SERVICES LTD,1407010-SIN048086-518536-1227605-2-2024,122760.5
Home Office,Home Office,02/02/2024,ADVICE,"UKASRA - Asylum Support, Resettlement & Accommodation.",BLOOM PROCUREMENT SERVICES LTD,1406412-SIN048268-518536-4482600-2-2024,4482600
Home Office,Home Office,02/02/2024,FULL COST,"UKASRA - Asylum Support, Resettlement & Accommodation.",BROOK STREET (UK) LTD,1406677-30826456-24-100385-6734-2-2024,808.08
Home Office,Home Office,02/02/2024,FULL COST,"UKASRA - Asylum Support, Resettlement & Accommodation.",BROOK STREET (UK) LTD,1417918-30826456-24-100385-132696-2-2024,1592.35
Home Office,Home Office,02/02/2024,FULL COST,"UKASRA - Asylum Support, Resettlement & Accommodation.",BROOK STREET (UK) LTD,1407004-30826456-24-100385-312554-2-2024,3750.64
Home Office,Home Office,02/02/2024,FULL COST,"UKASRA - Asylum Support, Resettlement & Accommodation.",BROOK STREET (UK) LTD,1421031-30826456-24-100385-337252-2-2024,4047.02
Home Office,Home Office,02/02/2024,FULL COST,"UKASRA - Asylum Support, Resettlement & Accommodation.",BROOK STREET (UK) LTD,1771031-30826456-24-100385-361675-2-2024,4340.09
Home Office,Home Office,02/02/2024,FULL COST,"UKASRA - Asylum Support, Resettlement & Accommodation.",BROOK STREET (UK) LTD,1407010-30826456-24-100385-395339-2-2024,4744.05
Home Office,Home Office,02/02/2024,FULL COST,"UKASRA - Asylum Support, Resettlement & Accommodation.",BROOK STREET (UK) LTD,1771068-30826456-24-100385-402076-2-2024,4824.9
Home Office,Home Office,02/02/2024,FULL COST,"UKASRA - Asylum Support, Resettlement & Accommodation.",BROOK STREET (UK) LTD,1406668-30826456-24-100385-407364-2-2024,4888.35
Home Office,Home Office,02/02/2024,FULL COST,"UKASRA - Asylum Support, Resettlement & Accommodation.",BROOK STREET (UK) LTD,1417905-30826456-24-100385-15204749-2-2024,182456.55
Home Office,Home Office,05/02/2024,CONTINGENT LABOUR OTHER,"UKASRA - Asylum Support, Resettlement & Accommodation.",ADECCO UK LTD,1771068-29741492-56679-96548-2-2024,1158.58
Home Office,Home Office,05/02/2024,CONTINGENT LABOUR OTHER,"UKASRA - Asylum Support, Resettlement & Accommodation.",ADECCO UK LTD,1771068-29741575-56679-167205-2-2024,2006.46
Home Office,Home Office,07/02/2024,ADVICE,"UKASRA - Asylum Support, Resettlement & Accommodation.",BLOOM PROCUREMENT SERVICES LTD,1407010-SIN048797-518536-9189093-2-2024,91890.93
Home Office,Home Office,07/02/2024,IT,"UKASRA - Asylum Support, Resettlement & Accommodation.",BLOOM PROCUREMENT SERVICES LTD,1406412-SIN048711-518536-273020-2-2024,327624
Home Office,Home Office,08/02/2024,FULL COST,"UKASRA - Asylum Support, Resettlement & Accommodation.",BROOK STREET (UK) LTD,1406677-30836497-24-100385-6734-2-2024,808.08
Home Office,Home Office,08/02/2024,FULL COST,"UKASRA - Asylum Support, Resettlement & Accommodation.",BROOK STREET (UK) LTD,1417918-30836497-24-100385-152443-2-2024,1829.31
Home Office,Home Office,08/02/2024,FULL COST,"UKASRA - Asylum Support, Resettlement & Accommodation.",BROOK STREET (UK) LTD,1407004-30836497-24-100385-300143-2-2024,3601.71
Home Office,Home Office,08/02/2024,FULL COST,"UKASRA - Asylum Support, Resettlement & Accommodation.",BROOK STREET (UK) LTD,1421031-30836497-24-100385-337252-2-2024,4047.02
Home Office,Home Office,08/02/2024,FULL COST,"UKASRA - Asylum Support, Resettlement & Accommodation.",BROOK STREET (UK) LTD,1771031-30836497-24-100385-361675-2-2024,4340.09
Home Office,Home Office,08/02/2024,FULL COST,"UKASRA - Asylum Support, Resettlement & Accommodation.",BROOK STREET (UK) LTD,1406668-30836497-24-100385-415087-2-2024,4981.04
Home Office,Home Office,08/02/2024,FULL COST,"UKASRA - Asylum Support, Resettlement & Accommodation.",BROOK STREET (UK) LTD,1771068-30836497-24-100385-511886-2-2024,6142.62
Home Office,Home Office,08/02/2024,FULL COST,"UKASRA - Asylum Support, Resettlement & Accommodation.",BROOK STREET (UK) LTD,1407010-30836497-24-100385-555366-2-2024,6664.38
Home Office,Home Office,08/02/2024,FULL COST,"UKASRA - Asylum Support, Resettlement & Accommodation.",BROOK STREET (UK) LTD,1417905-30836497-24-100385-14630019-2-2024,175559.89
Home Office,Home Office,08/02/2024,CONT OUT SERV OTHER,"UKASRA - Asylum Support, Resettlement & Accommodation.",COMMERCIAL SERVICES TRADING LTD T/A CONNECT2STAFF,1407015-7000043465-59034-2290397-2-2024,27484.76
Home Office,Home Office,08/02/2024,OTHER TRAVEL,"UKASRA - Asylum Support, Resettlement & Accommodation.",CORPORATE TRAVEL MANAGEMENT (NORTH),1406976-19246-245986-5902439-2-2024,59026.11
Home Office,Home Office,08/02/2024,OTHER TRAVEL,"UKASRA - Asylum Support, Resettlement & Accommodation.",CORPORATE TRAVEL MANAGEMENT (NORTH),1406976-19016-245986-15493903-2-2024,154940.75
Home Office,Home Office,08/02/2024,OTHER TRAVEL,"UKASRA - Asylum Support, Resettlement & Accommodation.",CORPORATE TRAVEL MANAGEMENT (NORTH),1406976-19110-245986-19080318-2-2024,190804.9
Home Office,Home Office,08/02/2024,OTHER TRAVEL,"UKASRA - Asylum Support, Resettlement & Accommodation.",CORPORATE TRAVEL MANAGEMENT (NORTH),1406976-18844-245986-30286514-2-2024,302866.86
Home Office,Home Office,08/02/2024,OTHER TRAVEL,"UKASRA - Asylum Support, Resettlement & Accommodation.",CORPORATE TRAVEL MANAGEMENT (NORTH),1406976-18791-245986-42844806-2-2024,428449.78
Home Office,Home Office,09/02/2024,CONTINGENT LABOUR OTHER,"UKASRA - Asylum Support, Resettlement & Accommodation.",ALEXANDER MANN SOLUTIONS LTD,1406412-2972644-560478-94929-2-2024,11391.48
Home Office,Home Office,09/02/2024,ADVICE,"UKASRA - Asylum Support, Resettlement & Accommodation.",ERNST AND YOUNG LLP,1407004-GB01G000508400-113852-25374-2-2024,30448.8
Home Office,Home Office,09/02/2024,ADVICE,"UKASRA - Asylum Support, Resettlement & Accommodation.",ERNST AND YOUNG LLP,1406412-GB01G000508230-113852-112000-2-2024,134400
Home Office,Home Office,09/02/2024,CONTRACT OUT SERVICE,"UKASRA - Asylum Support, Resettlement & Accommodation.",WAVENET LTD,1406676-1071211-54736-6547106-2-2024,78565.25
Home Office,Home Office,12/02/2024,CONTINGENT LABOUR OTHER,"UKASRA - Asylum Support, Resettlement & Accommodation.",ADECCO UK LTD,1771068-29746622-56679-111954-2-2024,1343.45
Home Office,Home Office,12/02/2024,CONTINGENT LABOUR OTHER,"UKASRA - Asylum Support, Resettlement & Accommodation.",ADECCO UK LTD,1771068-29746709-56679-222994-2-2024,2675.93
Home Office,Home Office,12/02/2024,IT,"UKASRA - Asylum Support, Resettlement & Accommodation.",METHODS  BUSINESS AND DIGITAL TECH LTD,1406416-SIN079595-119732-822975-2-2024,98757
Home Office,Home Office,12/02/2024,CONTRACT OUT SERVICE,"UKASRA - Asylum Support, Resettlement & Accommodation.",REFUGEE COUNCIL,1771067-INV0008537-101009-17577661-2-2024,175776.61
Home Office,Home Office,13/02/2024,ADVICE,"UKASRA - Asylum Support, Resettlement & Accommodation.",BLOOM PROCUREMENT SERVICES LTD,1407010-SIN048825-518536-17699835-2-2024,176998.35
Home Office,Home Office,13/02/2024,CASH SUPPORT,"UKASRA - Asylum Support, Resettlement & Accommodation.",PREPAID FINANCIAL SERVICES,1421031-496-55118-560000-2-2024,560000
Home Office,Home Office,13/02/2024,SECTION 4 VOUCHERS,"UKASRA - Asylum Support, Resettlement & Accommodation.",PREPAID FINANCIAL SERVICES,1421031-495-55118-1360000-2-2024,1360000
Home Office,Home Office,13/02/2024,CASH SUPPORT,"UKASRA - Asylum Support, Resettlement & Accommodation.",PREPAID FINANCIAL SERVICES,1421031-494-55118-14080000-2-2024,14080000
Home Office,Home Office,14/02/2024,OTHER TRAVEL,"UKASRA - Asylum Support, Resettlement & Accommodation.",CORPORATE TRAVEL MANAGEMENT (NORTH),1406976-19111-245986-23765344-2-2024,237655.16
Home Office,Home Office,16/02/2024,CONTINGENT LABOUR OTHER,"UKASRA - Asylum Support, Resettlement & Accommodation.",ALEXANDER MANN SOLUTIONS LTD,1406412-2977220-560478-1004232-2-2024,12050.78
Home Office,Home Office,16/02/2024,ADVICE,"UKASRA - Asylum Support, Resettlement & Accommodation.",ALEXANDER MANN SOLUTIONS LTD,1406412-2978347-560478-400000-2-2024,480000
Home Office,Home Office,16/02/2024,ADVICE,"UKASRA - Asylum Support, Resettlement & Accommodation.",ALEXANDER MANN SOLUTIONS LTD,1406412-2978343-560478-650000-2-2024,780000
Home Office,Home Office,16/02/2024,ADVICE,"UKASRA - Asylum Support, Resettlement & Accommodation.",ALEXANDER MANN SOLUTIONS LTD,1406412-2978346-560478-650000-2-2024,780000
Home Office,Home Office,16/02/2024,ADVICE,"UKASRA - Asylum Support, Resettlement & Accommodation.",ALEXANDER MANN SOLUTIONS LTD,1406412-2978345-560478-800000-2-2024,960000
Home Office,Home Office,16/02/2024,ADVICE,"UKASRA - Asylum Support, Resettlement & Accommodation.",ALEXANDER MANN SOLUTIONS LTD,1406412-2978344-560478-1200000-2-2024,1440000
Home Office,Home Office,16/02/2024,FULL COST,"UKASRA - Asylum Support, Resettlement & Accommodation.",BROOK STREET (UK) LTD,1406677-30846736-24-100385-6734-2-2024,808.08
Home Office,Home Office,16/02/2024,FULL COST,"UKASRA - Asylum Support, Resettlement & Accommodation.",BROOK STREET (UK) LTD,1417918-30846736-24-100385-152443-2-2024,1829.31
Home Office,Home Office,16/02/2024,FULL COST,"UKASRA - Asylum Support, Resettlement & Accommodation.",BROOK STREET (UK) LTD,1407004-30846736-24-100385-312554-2-2024,3750.64
Home Office,Home Office,16/02/2024,FULL COST,"UKASRA - Asylum Support, Resettlement & Accommodation.",BROOK STREET (UK) LTD,1421031-30846736-24-100385-337252-2-2024,4047.02
Home Office,Home Office,16/02/2024,FULL COST,"UKASRA - Asylum Support, Resettlement & Accommodation.",BROOK STREET (UK) LTD,1407010-30846736-24-100385-385402-2-2024,4624.81
Home Office,Home Office,16/02/2024,FULL COST,"UKASRA - Asylum Support, Resettlement & Accommodation.",BROOK STREET (UK) LTD,1406668-30846736-24-100385-386179-2-2024,4634.14
Home Office,Home Office,16/02/2024,FULL COST,"UKASRA - Asylum Support, Resettlement & Accommodation.",BROOK STREET (UK) LTD,1771031-30846736-24-100385-512709-2-2024,6152.49
Home Office,Home Office,16/02/2024,FULL COST,"UKASRA - Asylum Support, Resettlement & Accommodation.",BROOK STREET (UK) LTD,1771068-30846736-24-100385-5968-2-2024,7161.58
Home Office,Home Office,16/02/2024,FULL COST,"UKASRA - Asylum Support, Resettlement & Accommodation.",BROOK STREET (UK) LTD,1417905-30846736-24-100385-14229547-2-2024,170754.17
Home Office,Home Office,16/02/2024,CONTRACT OUT SERVICE,"UKASRA - Asylum Support, Resettlement & Accommodation.",PREPAID FINANCIAL SERVICES,1421031-101831-55118-2874577-2-2024,344949
Home Office,Home Office,19/02/2024,CONTINGENT LABOUR OTHER,"UKASRA - Asylum Support, Resettlement & Accommodation.",ADECCO UK LTD,1771068-29752505-56679-89799-2-2024,1077.59
Home Office,Home Office,19/02/2024,CONTINGENT LABOUR OTHER,"UKASRA - Asylum Support, Resettlement & Accommodation.",ADECCO UK LTD,1771068-29752591-56679-23772-2-2024,2852.64
Home Office,Home Office,20/02/2024,INTERGRATION LOAN SCHEME,"UKASRA - Asylum Support, Resettlement & Accommodation.",DEPARTMENT FOR WORK & PENSIONS (DWP),1406668-1110-44-148757-178630-2-2024,178630
Home Office,Home Office,22/02/2024,ADVICE,"UKASRA - Asylum Support, Resettlement & Accommodation.",BLOOM PROCUREMENT SERVICES LTD,1406412-SIN049239-518536-128416263-2-2024,1284162.63
Home Office,Home Office,22/02/2024,ADVICE,"UKASRA - Asylum Support, Resettlement & Accommodation.",BLOOM PROCUREMENT SERVICES LTD,1406412-SIN048646-518536-199376836-2-2024,1993768.36
Home Office,Home Office,22/02/2024,ADVICE,"UKASRA - Asylum Support, Resettlement & Accommodation.",BLOOM PROCUREMENT SERVICES LTD,1406412-SIN048644-518536-724059215-2-2024,7240592.15
Home Office,Home Office,22/02/2024,FULL COST,"UKASRA - Asylum Support, Resettlement & Accommodation.",BROOK STREET (UK) LTD,1406677-30856721-24-100385-6734-2-2024,808.08
Home Office,Home Office,22/02/2024,FULL COST,"UKASRA - Asylum Support, Resettlement & Accommodation.",BROOK STREET (UK) LTD,1417918-30856721-24-100385-152443-2-2024,1829.31
Home Office,Home Office,22/02/2024,FULL COST,"UKASRA - Asylum Support, Resettlement & Accommodation.",BROOK STREET (UK) LTD,1407010-30856721-24-100385-215684-2-2024,2588.2
Home Office,Home Office,22/02/2024,FULL COST,"UKASRA - Asylum Support, Resettlement & Accommodation.",BROOK STREET (UK) LTD,1407004-30856721-24-100385-285959-2-2024,3431.5
Home Office,Home Office,22/02/2024,FULL COST,"UKASRA - Asylum Support, Resettlement & Accommodation.",BROOK STREET (UK) LTD,1421031-30856721-24-100385-337252-2-2024,4047.02
Home Office,Home Office,22/02/2024,FULL COST,"UKASRA - Asylum Support, Resettlement & Accommodation.",BROOK STREET (UK) LTD,1406668-30856721-24-100385-388102-2-2024,4657.21
Home Office,Home Office,22/02/2024,FULL COST,"UKASRA - Asylum Support, Resettlement & Accommodation.",BROOK STREET (UK) LTD,1771068-30856721-24-100385-432961-2-2024,5195.53
Home Office,Home Office,22/02/2024,FULL COST,"UKASRA - Asylum Support, Resettlement & Accommodation.",BROOK STREET (UK) LTD,1771031-30856721-24-100385-479469-2-2024,5753.62
Home Office,Home Office,22/02/2024,FULL COST,"UKASRA - Asylum Support, Resettlement & Accommodation.",BROOK STREET (UK) LTD,1417905-30856721-24-100385-1344389-2-2024,161326.43
Home Office,Home Office,23/02/2024,CONTINGENT LABOUR OTHER,"UKASRA - Asylum Support, Resettlement & Accommodation.",ALEXANDER MANN SOLUTIONS LTD,1406412-2981667-560478-226218-2-2024,27146.16
Home Office,Home Office,23/02/2024,IT,"UKASRA - Asylum Support, Resettlement & Accommodation.",DELOITTE LLP,1406416-8004470367-112904-116000-2-2024,139200
Home Office,Home Office,26/02/2024,CONTINGENT LABOUR OTHER,"UKASRA - Asylum Support, Resettlement & Accommodation.",ADECCO UK LTD,1771068-29757800-56679-89799-2-2024,1077.59
Home Office,Home Office,26/02/2024,CONTINGENT LABOUR OTHER,"UKASRA - Asylum Support, Resettlement & Accommodation.",ADECCO UK LTD,1771068-29757884-56679-150561-2-2024,1806.73
Home Office,Home Office,26/02/2024,ADVICE,"UKASRA - Asylum Support, Resettlement & Accommodation.",BLOOM PROCUREMENT SERVICES LTD,1406406-SIN049647-518536-99000-2-2024,118800
Home Office,Home Office,26/02/2024,IT,"UKASRA - Asylum Support, Resettlement & Accommodation.",BLOOM PROCUREMENT SERVICES LTD,1406412-SIN049678-518536-401593-2-2024,481911.6
Home Office,Home Office,26/02/2024,AD PRODUCTION,"UKASRA - Asylum Support, Resettlement & Accommodation.",CONEXIA LTD,1470031-6032646472-158585-22658-2-2024,22658
Home Office,Home Office,27/02/2024,CONT OUT SERV OTHER,"UKASRA - Asylum Support, Resettlement & Accommodation.",CORPORATE TRAVEL MANAGEMENT (NORTH),1406668-19337-245986-9766291-2-2024,97665.51
Home Office,Home Office,27/02/2024,CONT OUT SERV OTHER,"UKASRA - Asylum Support, Resettlement & Accommodation.",CORPORATE TRAVEL MANAGEMENT (NORTH),1406668-19208-245986-18345129-2-2024,183472.87
Home Office,Home Office,27/02/2024,CONT OUT SERV OTHER,"UKASRA - Asylum Support, Resettlement & Accommodation.",CORPORATE TRAVEL MANAGEMENT (NORTH),1406668-19245-245986-19909117-2-2024,199095.55
Home Office,Home Office,27/02/2024,CONT OUT SERV OTHER,"UKASRA - Asylum Support, Resettlement & Accommodation.",CORPORATE TRAVEL MANAGEMENT (NORTH),1406668-19215-245986-34200214-2-2024,342006.94
Home Office,Home Office,27/02/2024,CONT OUT SERV OTHER,"UKASRA - Asylum Support, Resettlement & Accommodation.",CORPORATE TRAVEL MANAGEMENT (NORTH),1406668-19359-245986-108631725-2-2024,1086333.19
Home Office,Home Office,27/02/2024,CONT OUT SERV OTHER,"UKASRA - Asylum Support, Resettlement & Accommodation.",CORPORATE TRAVEL MANAGEMENT (NORTH),1406668-19290-245986-27571348-2-2024,2757145.68
Home Office,Home Office,28/02/2024,OTHER TRAVEL,"UKASRA - Asylum Support, Resettlement & Accommodation.",CORPORATE TRAVEL MANAGEMENT (NORTH),1406976-19378-245986-4327955-2-2024,43281.27
Home Office,Home Office,29/02/2024,FULL COST,"UKASRA - Asylum Support, Resettlement & Accommodation.",BROOK STREET (UK) LTD,1406677-30870759-24-100385-6734-2-2024,808.08
Home Office,Home Office,29/02/2024,FULL COST,"UKASRA - Asylum Support, Resettlement & Accommodation.",BROOK STREET (UK) LTD,1417918-30870759-24-100385-79876-2-2024,958.51
Home Office,Home Office,29/02/2024,FULL COST,"UKASRA - Asylum Support, Resettlement & Accommodation.",BROOK STREET (UK) LTD,1407004-30870759-24-100385-289953-2-2024,3479.43
Home Office,Home Office,29/02/2024,FULL COST,"UKASRA - Asylum Support, Resettlement & Accommodation.",BROOK STREET (UK) LTD,1421031-30870759-24-100385-313438-2-2024,3761.25
Home Office,Home Office,29/02/2024,FULL COST,"UKASRA - Asylum Support, Resettlement & Accommodation.",BROOK STREET (UK) LTD,1406668-30870759-24-100385-367728-2-2024,4412.72
Home Office,Home Office,29/02/2024,FULL COST,"UKASRA - Asylum Support, Resettlement & Accommodation.",BROOK STREET (UK) LTD,1407010-30870759-24-100385-422834-2-2024,5074
Home Office,Home Office,29/02/2024,FULL COST,"UKASRA - Asylum Support, Resettlement & Accommodation.",BROOK STREET (UK) LTD,1771068-30870759-24-100385-533552-2-2024,6402.62
Home Office,Home Office,29/02/2024,FULL COST,"UKASRA - Asylum Support, Resettlement & Accommodation.",BROOK STREET (UK) LTD,1771031-30870759-24-100385-765049-2-2024,9180.56
Home Office,Home Office,29/02/2024,FULL COST,"UKASRA - Asylum Support, Resettlement & Accommodation.",BROOK STREET (UK) LTD,1417905-30870759-24-100385-1319806-2-2024,158376.37
Home Office,Home Office,29/02/2024,ADVICE,"UKASRA - Asylum Support, Resettlement & Accommodation.",ERNST AND YOUNG LLP,1407004-GB01G000515697-113852-24862-2-2024,29834.4
Home Office,Home Office,01/02/2024,IT RUN COST,UKBF - UK Border Force,FUJITSU SERVICES LTD,1432008-1030021867-106173-2089863-2-2024,25078.36
Home Office,Home Office,01/02/2024,IT RUN COST,UKBF - UK Border Force,FUJITSU SERVICES LTD,1432008-1030021601-106173-21181-2-2024,25417.2
Home Office,Home Office,01/02/2024,IT RUN COST,UKBF - UK Border Force,FUJITSU SERVICES LTD,1432008-1030021658-106173-28823-2-2024,34587.6
Home Office,Home Office,01/02/2024,CAR PARKING,UKBF - UK Border Force,GATWICK AIRPORT LTD,1433619-4400071330-226967-6048-2-2024,72.58
Home Office,Home Office,01/02/2024,CAR PARKING,UKBF - UK Border Force,GATWICK AIRPORT LTD,1433570-4400071330-226967-6048-2-2024,72.58
Home Office,Home Office,01/02/2024,CAR PARKING,UKBF - UK Border Force,GATWICK AIRPORT LTD,1433503-4400071330-226967-12096-2-2024,145.15
Home Office,Home Office,01/02/2024,CAR PARKING,UKBF - UK Border Force,GATWICK AIRPORT LTD,1431247-4400071330-226967-18144-2-2024,217.73
Home Office,Home Office,01/02/2024,CAR PARKING,UKBF - UK Border Force,GATWICK AIRPORT LTD,1431132-4400071330-226967-24192-2-2024,290.3
Home Office,Home Office,01/02/2024,CAR PARKING,UKBF - UK Border Force,GATWICK AIRPORT LTD,1433618-4400071330-226967-24192-2-2024,290.3
Home Office,Home Office,01/02/2024,CAR PARKING,UKBF - UK Border Force,GATWICK AIRPORT LTD,1431668-4400071330-226967-3024-2-2024,362.88
Home Office,Home Office,01/02/2024,CAR PARKING,UKBF - UK Border Force,GATWICK AIRPORT LTD,1433566-4400071330-226967-42336-2-2024,508.03
Home Office,Home Office,01/02/2024,CAR PARKING,UKBF - UK Border Force,GATWICK AIRPORT LTD,1431861-4400071330-226967-78624-2-2024,943.49
Home Office,Home Office,01/02/2024,CAR PARKING,UKBF - UK Border Force,GATWICK AIRPORT LTD,1431770-4400071330-226967-163296-2-2024,1959.55
Home Office,Home Office,01/02/2024,CAR PARKING,UKBF - UK Border Force,GATWICK AIRPORT LTD,1431771-4400071330-226967-163296-2-2024,1959.55
Home Office,Home Office,01/02/2024,CAR PARKING,UKBF - UK Border Force,GATWICK AIRPORT LTD,1431884-4400071330-226967-199584-2-2024,2395.01
Home Office,Home Office,01/02/2024,CAR PARKING,UKBF - UK Border Force,GATWICK AIRPORT LTD,1431663-4400071330-226967-4046112-2-2024,48553.34
Home Office,Home Office,01/02/2024,SYSTEM CLEARING,UKBF - UK Border Force,MINISTRY OF JUSTICE,1411458-2338473-199603-12697947-2-2024,152375.36
Home Office,Home Office,02/02/2024,EXTERNAL,UKBF - UK Border Force,BLOOM PROCUREMENT SERVICES LTD,1433623-SIN049047-518536-23430-2-2024,23430
Home Office,Home Office,02/02/2024,DEFENCE,UKBF - UK Border Force,SIRIUS CONSTELLATION LTD,1431829-INV-0009-56204-26476756-2-2024,317721.07
Home Office,Home Office,07/02/2024,INSURANCE,UKBF - UK Border Force,WILLIS LTD,1433432-11616GP24 / 000003PRMR-160193-84840-2-2024,84840
Home Office,Home Office,08/02/2024,SYSTEM CLEARING,UKBF - UK Border Force,CARTWRIGHT VEHICLE CONVERSIONS LTD,1431050-IDCV01788-55039-6540402-2-2024,78462.82
Home Office,Home Office,08/02/2024,CAPITAL GRANTS TO CENTRAL GOVERNMENT,UKBF - UK Border Force,COMPUTACENTER (UK) LTD,1432031-3884400450-100028-7717608-2-2024,92611.3
Home Office,Home Office,08/02/2024,SYSTEM CLEARING,UKBF - UK Border Force,KINTO UK LTD,1431050-2802222-150319-248866-2-2024,29863.92
Home Office,Home Office,08/02/2024,SYSTEM CLEARING,UKBF - UK Border Force,KINTO UK LTD,1431050-2802218-150319-2613864-2-2024,31366.37
Home Office,Home Office,09/02/2024,IT RUN COST,UKBF - UK Border Force,ACCENTURE (UK) LTD,1432008-3003648708-106767-80370-2-2024,96444
Home Office,Home Office,09/02/2024,IT RUN COST,UKBF - UK Border Force,ALEXANDER MANN SOLUTIONS LTD,1432008-2973767-560478-43804-2-2024,52564.8
Home Office,Home Office,09/02/2024,VESSEL MAINTENANCE,UKBF - UK Border Force,BERTHON BOAT COMPANY,1433582-599700-479889-3971573-2-2024,39715.73
Home Office,Home Office,09/02/2024,IT RUN COST,UKBF - UK Border Force,IBM UNITED KINGDOM LTD,1433424-5802240079-101457-347863-2-2024,417435.6
Home Office,Home Office,09/02/2024,IT RUN COST,UKBF - UK Border Force,PA CONSULTING SERVICES LTD,1433424-0000029811-100039-16881819-2-2024,202581.83
Home Office,Home Office,12/02/2024,IT RUN COST,UKBF - UK Border Force,ALEXANDER MANN SOLUTIONS LTD,1433452-2973770-560478-78662-2-2024,94394.4
Home Office,Home Office,12/02/2024,IT RUN COST,UKBF - UK Border Force,ALEXANDER MANN SOLUTIONS LTD,1433452-2973771-560478-78662-2-2024,94394.4
Home Office,Home Office,12/02/2024,IT RUN COST,UKBF - UK Border Force,ALEXANDER MANN SOLUTIONS LTD,1433452-2973769-560478-98327-2-2024,117992.4
Home Office,Home Office,13/02/2024,CAR PARKING,UKBF - UK Border Force,DOVER HARBOUR BOARD,1431805-II9707600-100099-35650-2-2024,42780
Home Office,Home Office,14/02/2024,CONT OUT SERV OTHER,UKBF - UK Border Force,GOVERNMENT ACTUARYS DEPARTMENT,1433582-SINV/00037019-119063-2298683-2-2024,22986.83
Home Office,Home Office,14/02/2024,SERVICE REPAIR SPARES,UKBF - UK Border Force,NUCTECH COMPANY LTD,1433606-NUC-SER-2024-0014-185777-140000-2-2024,140000
Home Office,Home Office,14/02/2024,BUILDING SERVICE CHARGES,UKBF - UK Border Force,STRAWBERRY MARQUEES,1411463-INV-02722-56524-246400-2-2024,295680
Home Office,Home Office,14/02/2024,IT RUN COST,UKBF - UK Border Force,VISION-BOX SYSTEMS LTD,1433450-24020020-332210-157011-2-2024,188413.2
Home Office,Home Office,15/02/2024,IT RUN COST,UKBF - UK Border Force,CACI LTD,1432008-047487-149473-109687026-2-2024,1096870.26
Home Office,Home Office,15/02/2024,IT RUN COST,UKBF - UK Border Force,FUJITSU SERVICES LTD,1432008-1030022513-106173-2089864-2-2024,25078.37
Home Office,Home Office,15/02/2024,IT RUN COST,UKBF - UK Border Force,FUJITSU SERVICES LTD,1432008-1010008717-106173-2608922-2-2024,31307.06
Home Office,Home Office,15/02/2024,IT RUN COST,UKBF - UK Border Force,FUJITSU SERVICES LTD,1432008-1030022439-106173-31488-2-2024,37785.6
Home Office,Home Office,15/02/2024,IT RUN COST,UKBF - UK Border Force,FUJITSU SERVICES LTD,1432008-1030022531-106173-5139655-2-2024,61675.86
Home Office,Home Office,15/02/2024,IT RUN COST,UKBF - UK Border Force,FUJITSU SERVICES LTD,1432008-1030022186-106173-8970448-2-2024,107645.38
Home Office,Home Office,15/02/2024,IT RUN COST,UKBF - UK Border Force,FUJITSU SERVICES LTD,1432008-1030022187-106173-1437199-2-2024,172463.88
Home Office,Home Office,15/02/2024,IT RUN COST,UKBF - UK Border Force,METHODS  BUSINESS AND DIGITAL TECH LTD,1432008-SIN079444-119732-21692-2-2024,26030.4
Home Office,Home Office,15/02/2024,DEFENCE,UKBF - UK Border Force,MINISTRY OF DEFENCE,1431829-7757641-192639-125000-2-2024,125000
Home Office,Home Office,15/02/2024,DEFENCE,UKBF - UK Border Force,MINISTRY OF DEFENCE,1431829-7757642-192639-191835-2-2024,230202
Home Office,Home Office,15/02/2024,DEFENCE,UKBF - UK Border Force,MINISTRY OF DEFENCE,1431829-7757644-192639-300000-2-2024,360000
Home Office,Home Office,15/02/2024,MINOR WORK,UKBF - UK Border Force,MINISTRY OF JUSTICE,1411463-2338622-199603-440707-2-2024,52884.84
Home Office,Home Office,15/02/2024,SYSTEM CLEARING,UKBF - UK Border Force,MINISTRY OF JUSTICE,1433051-2338619-199603-4947486-2-2024,59369.83
Home Office,Home Office,15/02/2024,SYSTEM CLEARING,UKBF - UK Border Force,MINISTRY OF JUSTICE,1433051-2338618-199603-1932362-2-2024,231883.44
Home Office,Home Office,15/02/2024,SYSTEM CLEARING,UKBF - UK Border Force,MINISTRY OF JUSTICE,1411458-2338629-199603-1978802-2-2024,237456.24
Home Office,Home Office,16/02/2024,IT RUN COST,UKBF - UK Border Force,METHODS  BUSINESS AND DIGITAL TECH LTD,1432008-SIN079469-119732-21588-2-2024,25905.6
Home Office,Home Office,16/02/2024,VESSEL MAINTENANCE,UKBF - UK Border Force,SOUTHAMPTON MARINE SERVICES LTD,1433582-0000013775-535743-138337-2-2024,138337
Home Office,Home Office,16/02/2024,IT RUN COST,UKBF - UK Border Force,VISION-BOX SYSTEMS LTD,1433450-24020035-332210-53233-2-2024,63879.6
Home Office,Home Office,19/02/2024,ADVICE,UKBF - UK Border Force,BLOOM PROCUREMENT SERVICES LTD,1431829-SIN048117-518536-42460-2-2024,42460
Home Office,Home Office,19/02/2024,CAR PARKING,UKBF - UK Border Force,DOVER HARBOUR BOARD,1433502-II9707601-100099-65295-2-2024,78354
Home Office,Home Office,19/02/2024,TELEPHONE,UKBF - UK Border Force,DUN & BRADSTREET LTD,1431274-12638728-04-100371-39958225-2-2024,399582.25
Home Office,Home Office,20/02/2024,IT RUN COST,UKBF - UK Border Force,BAE SYSTEMS APPLIED INTELLIGENCE LIMITED,1432008-1001058700-136604-25350-2-2024,30420
Home Office,Home Office,20/02/2024,IT RUN COST,UKBF - UK Border Force,BAE SYSTEMS APPLIED INTELLIGENCE LIMITED,1432008-1001058868-136604-75967906-2-2024,911614.87
Home Office,Home Office,20/02/2024,IT RUN COST,UKBF - UK Border Force,IBM UNITED KINGDOM LTD,1433424-5802240371-101457-3470275-2-2024,416433
Home Office,Home Office,20/02/2024,PROJECT,UKBF - UK Border Force,MCGLAUGHLIN & HARVEY LTD,1411463-26292-50558-6017452-2-2024,72209.42
Home Office,Home Office,21/02/2024,OTHER ICT COSTS,UKBF - UK Border Force,6POINT6 LTD,1432008-3986-338678-203530-2-2024,203530
Home Office,Home Office,21/02/2024,IT RUN COST,UKBF - UK Border Force,METHODS  BUSINESS AND DIGITAL TECH LTD,1432008-SIN079691-119732-29150-2-2024,34980
Home Office,Home Office,21/02/2024,IT RUN COST,UKBF - UK Border Force,PA CONSULTING SERVICES LTD,1432008-0000030051-100039-393425-2-2024,47211
Home Office,Home Office,21/02/2024,IT RUN COST,UKBF - UK Border Force,VISION-BOX SYSTEMS LTD,1433450-24020037-332210-411696-2-2024,494035.2
Home Office,Home Office,22/02/2024,DEFENCE,UKBF - UK Border Force,CONEXIA LTD,1431829-6032647880-158585-23175-2-2024,27810
Home Office,Home Office,22/02/2024,PROTECTIVE CLOTHING,UKBF - UK Border Force,DHL SUPPLY CHAIN LTD,1433432-11611379-568378-2679774-2-2024,32157.29
Home Office,Home Office,22/02/2024,PROTECTIVE CLOTHING,UKBF - UK Border Force,DHL SUPPLY CHAIN LTD,1433432-11611384-568378-25163753-2-2024,301965.04
Home Office,Home Office,22/02/2024,PROJECT,UKBF - UK Border Force,HM REVENUE & CUSTOMS,1433051-18000061462023-187546-6070239-2-2024,60702.39
Home Office,Home Office,22/02/2024,RECRUITMENT ADVERTISING,UKBF - UK Border Force,SHARED SERVICES CONNECTED LTD (SSCL),1431390-100043674-378790-3543618-2-2024,35436.18
Home Office,Home Office,23/02/2024,IT RUN COST,UKBF - UK Border Force,AWE PLC,1433615-P0006741-100312-12151033-2-2024,121510.33
Home Office,Home Office,23/02/2024,IT RUN COST,UKBF - UK Border Force,AWE PLC,1433615-P0006694-100312-13149389-2-2024,131493.89
Home Office,Home Office,23/02/2024,IT RUN COST,UKBF - UK Border Force,IBM UNITED KINGDOM LTD,1433424-5812230925-101457-379464-2-2024,455356.8
Home Office,Home Office,23/02/2024,CAR PARKING,UKBF - UK Border Force,LONDON LUTON AIRPORT LIMITED,1431263-1059592-101109-25000-2-2024,30000
Home Office,Home Office,23/02/2024,DEFENCE,UKBF - UK Border Force,MARITIME & COASTGUARD AGENCY (MCA),1431829-231007024-104371-2845868-2-2024,34042.28
Home Office,Home Office,23/02/2024,DEFENCE,UKBF - UK Border Force,MARITIME & COASTGUARD AGENCY (MCA),1431829-231007021-104371-3334651-2-2024,39614.11
Home Office,Home Office,23/02/2024,DEFENCE,UKBF - UK Border Force,MARITIME & COASTGUARD AGENCY (MCA),1431829-231007023-104371-3837849-2-2024,45513.69
Home Office,Home Office,23/02/2024,DEFENCE,UKBF - UK Border Force,MARITIME & COASTGUARD AGENCY (MCA),1431829-231007020-104371-3819935-2-2024,45546.95
Home Office,Home Office,23/02/2024,DEFENCE,UKBF - UK Border Force,MARITIME & COASTGUARD AGENCY (MCA),1431829-231007022-104371-4133321-2-2024,49224.41
Home Office,Home Office,23/02/2024,STATIONERY,UKBF - UK Border Force,MERCATEO UK LTD,1431277-1080045210-57891-2150576-2-2024,25806.91
Home Office,Home Office,23/02/2024,SERVICE REPAIR SPARES,UKBF - UK Border Force,NUCTECH LONDON COMPANY LTD,1433606-NUCUK-IN2024-0001-56233-7640237-2-2024,76402.37
Home Office,Home Office,26/02/2024,IT RUN COST,UKBF - UK Border Force,BAE SYSTEMS APPLIED INTELLIGENCE LIMITED,1432008-1001058699-136604-290500-2-2024,348600
Home Office,Home Office,26/02/2024,IT RUN COST,UKBF - UK Border Force,CAPGEMINI UK PLC,1432008-2600110410552-112696-68993835-2-2024,827926.02
Home Office,Home Office,26/02/2024,SYSTEM CLEARING,UKBF - UK Border Force,LEONARDO UK LTD,1432031-90246316-154349-2452395-2-2024,24523.95
Home Office,Home Office,26/02/2024,CLINICAL & MEDICAL,UKBF - UK Border Force,MITIE CARE & CUSTODY LTD,1411463-186797/92969802-243944-16882955-2-2024,168829.55
Home Office,Home Office,27/02/2024,BUILDING SERVICE CHARGES,UKBF - UK Border Force,HEATHROW AIRPORT LTD,1431601-1001352987-297220-22675-2-2024,27210
Home Office,Home Office,27/02/2024,PRINTING,UKBF - UK Border Force,SONDER DESIGN,1431829-INV002273-60890-418157-2-2024,50178.84
Home Office,Home Office,28/02/2024,IT RUN COST,UKBF - UK Border Force,BAE SYSTEMS APPLIED INTELLIGENCE LIMITED,1432008-1001058412-136604-25350-2-2024,30420
Home Office,Home Office,28/02/2024,IT RUN COST,UKBF - UK Border Force,BAE SYSTEMS APPLIED INTELLIGENCE LIMITED,1432008-1001058354-136604-290500-2-2024,348600
Home Office,Home Office,28/02/2024,PROJECT,UKBF - UK Border Force,DOVER HARBOUR BOARD,1411464-CD970023038-100099-49000-2-2024,58800
Home Office,Home Office,28/02/2024,SYSTEM CLEARING,UKBF - UK Border Force,MINISTRY OF JUSTICE,1433051-2338802-199603-3153243-2-2024,37838.92
Home Office,Home Office,28/02/2024,SYSTEM CLEARING,UKBF - UK Border Force,MINISTRY OF JUSTICE,1433051-2338798-199603-21313328-2-2024,255759.94
Home Office,Home Office,28/02/2024,PROJECT,UKBF - UK Border Force,MINISTRY OF JUSTICE,1433051-2338803-199603-2498254-2-2024,299790.48
Home Office,Home Office,28/02/2024,SYSTEM CLEARING,UKBF - UK Border Force,RAPISCAN SYSTEMS LTD,1432031-144816A-101000-9298679-2-2024,1115841.48
Home Office,Home Office,29/02/2024,CAR PARKING,UKBF - UK Border Force,GATWICK AIRPORT LTD,1433619-4400071692-226967-6048-2-2024,72.58
Home Office,Home Office,29/02/2024,CAR PARKING,UKBF - UK Border Force,GATWICK AIRPORT LTD,1433570-4400071692-226967-6048-2-2024,72.58
Home Office,Home Office,29/02/2024,CAR PARKING,UKBF - UK Border Force,GATWICK AIRPORT LTD,1433503-4400071692-226967-12096-2-2024,145.15
Home Office,Home Office,29/02/2024,CAR PARKING,UKBF - UK Border Force,GATWICK AIRPORT LTD,1431247-4400071692-226967-18144-2-2024,217.73
Home Office,Home Office,29/02/2024,CAR PARKING,UKBF - UK Border Force,GATWICK AIRPORT LTD,1431132-4400071692-226967-24192-2-2024,290.3
Home Office,Home Office,29/02/2024,CAR PARKING,UKBF - UK Border Force,GATWICK AIRPORT LTD,1433618-4400071692-226967-24192-2-2024,290.3
Home Office,Home Office,29/02/2024,CAR PARKING,UKBF - UK Border Force,GATWICK AIRPORT LTD,1431668-4400071692-226967-3024-2-2024,362.88
Home Office,Home Office,29/02/2024,CAR PARKING,UKBF - UK Border Force,GATWICK AIRPORT LTD,1433566-4400071692-226967-42336-2-2024,508.03
Home Office,Home Office,29/02/2024,CAR PARKING,UKBF - UK Border Force,GATWICK AIRPORT LTD,1431861-4400071692-226967-78624-2-2024,943.49
Home Office,Home Office,29/02/2024,CAR PARKING,UKBF - UK Border Force,GATWICK AIRPORT LTD,1431771-4400071692-226967-157248-2-2024,1886.98
Home Office,Home Office,29/02/2024,CAR PARKING,UKBF - UK Border Force,GATWICK AIRPORT LTD,1431770-4400071692-226967-163296-2-2024,1959.55
Home Office,Home Office,29/02/2024,CAR PARKING,UKBF - UK Border Force,GATWICK AIRPORT LTD,1431884-4400071692-226967-205632-2-2024,2467.58
Home Office,Home Office,29/02/2024,CAR PARKING,UKBF - UK Border Force,GATWICK AIRPORT LTD,1431663-4400071692-226967-4015872-2-2024,48190.45
Home Office,Home Office,29/02/2024,DEFENCE,UKBF - UK Border Force,MINISTRY OF DEFENCE,1431829-7754946-192639-1000000-2-2024,1000000
Home Office,Home Office,29/02/2024,IT RUN COST,UKBF - UK Border Force,VISION-BOX SYSTEMS LTD,1433450-24020019-332210-495531-2-2024,59463.72
Home Office,Home Office,01/02/2024,ASYLUM CASES,UKIE - Immigration Enforcement,CWT UK GROUP LTD,1417111-R7065072240131-112726-6892958-2-2024,68929.58
Home Office,Home Office,01/02/2024,CAR PARKING,UKIE - Immigration Enforcement,GATWICK AIRPORT LTD,1418190-4400071330-226967-36288-2-2024,435.46
Home Office,Home Office,01/02/2024,CAR PARKING,UKIE - Immigration Enforcement,GATWICK AIRPORT LTD,1418231-4400071330-226967-187488-2-2024,2249.86
Home Office,Home Office,01/02/2024,CAR PARKING,UKIE - Immigration Enforcement,GATWICK AIRPORT LTD,1418263-4400071330-226967-235872-2-2024,2830.46
Home Office,Home Office,01/02/2024,IN COUNTRY ESCORT,UKIE - Immigration Enforcement,MITIE CARE & CUSTODY LTD,1411412-186797/92966845-243944-3414818-2-2024,34148.18
Home Office,Home Office,02/02/2024,ASYLUM CASES,UKIE - Immigration Enforcement,CWT UK GROUP LTD,1417111-R7065072240201-112726-6008769-2-2024,60087.69
Home Office,Home Office,05/02/2024,PUBLICATION,UKIE - Immigration Enforcement,CONEXIA LTD,1417432-6032646482-158585-2538442-2-2024,30461.3
Home Office,Home Office,05/02/2024,ELECTRICITY,UKIE - Immigration Enforcement,EDF ENERGY,1411444-000017188402-153766-3607715-2-2024,43270.23
Home Office,Home Office,05/02/2024,ELECTRICITY,UKIE - Immigration Enforcement,EDF ENERGY,1411444-000017476967-153766-6241638-2-2024,74871.53
Home Office,Home Office,05/02/2024,ELECTRICITY,UKIE - Immigration Enforcement,EDF ENERGY,1411444-000017188307-153766-6482349-2-2024,77788.19
Home Office,Home Office,05/02/2024,PROJECT,UKIE - Immigration Enforcement,MACE LTD,1411017-2101036289-276494-2461126-2-2024,29533.51
Home Office,Home Office,05/02/2024,OVERSEAS ESCORTS,UKIE - Immigration Enforcement,MITIE CARE & CUSTODY LTD,1418194-186797/92968755-243944-2885086-2-2024,28850.86
Home Office,Home Office,06/02/2024,ASYLUM CASES,UKIE - Immigration Enforcement,CWT UK GROUP LTD,1417111-R7065072240202-112726-497361-2-2024,49736.1
Home Office,Home Office,06/02/2024,ASYLUM CASES,UKIE - Immigration Enforcement,CWT UK GROUP LTD,1417111-R7065072240205-112726-8511805-2-2024,85118.05
Home Office,Home Office,07/02/2024,ASYLUM CASES,UKIE - Immigration Enforcement,CWT UK GROUP LTD,1417111-R7065072240206-112726-5059947-2-2024,50599.47
Home Office,Home Office,07/02/2024,ASYLUM CASES,UKIE - Immigration Enforcement,CWT UK GROUP LTD,1417111-24-000-0058496-112726-84797-2-2024,84797
Home Office,Home Office,07/02/2024,SYSTEM CLEARING,UKIE - Immigration Enforcement,MITIE CARE & CUSTODY LTD,1411017-30118/92966783-243944-200019-2-2024,240022.8
Home Office,Home Office,07/02/2024,SYSTEM CLEARING,UKIE - Immigration Enforcement,MITIE FM LTD,1411453-357525/92964580-56317-18379945-2-2024,220559.34
Home Office,Home Office,07/02/2024,OTHER,UKIE - Immigration Enforcement,SHARED SERVICES CONNECTED LTD (SSCL),1417713-100041265-378790-16491453-2-2024,164914.53
Home Office,Home Office,07/02/2024,OTHER,UKIE - Immigration Enforcement,SHARED SERVICES CONNECTED LTD (SSCL),1417713-100041264-378790-38843505-2-2024,388435.05
Home Office,Home Office,08/02/2024,ASYLUM CASES,UKIE - Immigration Enforcement,CWT UK GROUP LTD,1417111-R7065072240207-112726-7844696-2-2024,78446.96
Home Office,Home Office,08/02/2024,CONTRACTS,UKIE - Immigration Enforcement,SERCO LTD,1411447-91967677-158586-213075-2-2024,21307.5
Home Office,Home Office,09/02/2024,CONT OUT SERV OTHER,UKIE - Immigration Enforcement,ATKINSREALIS PPS LTD,1411010-24004902-53010-10151486-2-2024,121817.83
Home Office,Home Office,09/02/2024,ASYLUM CASES,UKIE - Immigration Enforcement,CWT UK GROUP LTD,1417111-R7065072240208-112726-5280803-2-2024,52808.03
Home Office,Home Office,09/02/2024,RUN COSTS,UKIE - Immigration Enforcement,MITIE CARE & CUSTODY LTD,1411432-229181/92970219-243944-2160286-2-2024,21602.86
Home Office,Home Office,09/02/2024,RUN COSTS,UKIE - Immigration Enforcement,MITIE CARE & CUSTODY LTD,1411017-229181/92970148-243944-17287575-2-2024,172875.75
Home Office,Home Office,09/02/2024,RUN COSTS,UKIE - Immigration Enforcement,MITIE CARE & CUSTODY LTD,1411017-229181/92970175-243944-22568142-2-2024,225681.42
Home Office,Home Office,13/02/2024,SYSTEM CLEARING,UKIE - Immigration Enforcement,AIRWAVE SOLUTIONS LTD,1418267-0920000051-057-153581-180000-2-2024,180000
Home Office,Home Office,13/02/2024,IT RUN COST,UKIE - Immigration Enforcement,AIRWAVE SOLUTIONS LTD,1418267-0920000051-057-153581-80524609-2-2024,966295.3
Home Office,Home Office,13/02/2024,ASYLUM CASES,UKIE - Immigration Enforcement,CWT UK GROUP LTD,1417111-R7065072240212-112726-5299429-2-2024,52994.29
Home Office,Home Office,13/02/2024,SYSTEM CLEARING,UKIE - Immigration Enforcement,GALLIFORD TRY CONSTRUCTION LTD,1411435-3122003483-126770-4763044-2-2024,57156.53
Home Office,Home Office,13/02/2024,MINOR WORK,UKIE - Immigration Enforcement,GALLIFORD TRY CONSTRUCTION LTD,1411435-3122003485-126770-34828249-2-2024,417938.99
Home Office,Home Office,13/02/2024,MINOR WORK,UKIE - Immigration Enforcement,GALLIFORD TRY CONSTRUCTION LTD,1411435-3122003484-126770-84606735-2-2024,1015280.82
Home Office,Home Office,13/02/2024,RUN COSTS,UKIE - Immigration Enforcement,MITIE CARE & CUSTODY LTD,1411017-229181/92970381-243944-3759119-2-2024,375911.9
Home Office,Home Office,14/02/2024,GAS,UKIE - Immigration Enforcement,CROWN OIL LTD,1411432-1761026-59315-2339154-2-2024,27932.52
Home Office,Home Office,14/02/2024,OVERSEAS ESCORTS,UKIE - Immigration Enforcement,MITIE CARE & CUSTODY LTD,1411413-186797/92967338-243944-2480961-2-2024,24809.61
Home Office,Home Office,14/02/2024,OVERSEAS ESCORTS,UKIE - Immigration Enforcement,MITIE CARE & CUSTODY LTD,1411413-186797/92968774-243944-5286652-2-2024,52866.52
Home Office,Home Office,14/02/2024,IN COUNTRY ESCORT,UKIE - Immigration Enforcement,MITIE CARE & CUSTODY LTD,1411412-186797/92967276-243944-5927168-2-2024,59271.68
Home Office,Home Office,14/02/2024,IN COUNTRY ESCORT,UKIE - Immigration Enforcement,MITIE CARE & CUSTODY LTD,1411412-186797/92967328-243944-6379437-2-2024,63794.37
Home Office,Home Office,14/02/2024,OVERSEAS ESCORTS,UKIE - Immigration Enforcement,MITIE CARE & CUSTODY LTD,1411413-186797/92967350-243944-8211336-2-2024,82113.36
Home Office,Home Office,14/02/2024,OVERSEAS ESCORTS,UKIE - Immigration Enforcement,MITIE CARE & CUSTODY LTD,1411413-186797/92968726-243944-14444399-2-2024,144443.99
Home Office,Home Office,14/02/2024,OVERSEAS ESCORTS,UKIE - Immigration Enforcement,MITIE CARE & CUSTODY LTD,1411413-186797/92968830-243944-26974051-2-2024,269740.51
Home Office,Home Office,14/02/2024,OVERSEAS ESCORTS,UKIE - Immigration Enforcement,MITIE CARE & CUSTODY LTD,1411413-186797/92968843-243944-45677819-2-2024,456778.19
Home Office,Home Office,14/02/2024,OVERSEAS ESCORTS,UKIE - Immigration Enforcement,MITIE CARE & CUSTODY LTD,1417124-186797/92970612-243944-409316841-2-2024,4093168.41
Home Office,Home Office,14/02/2024,CONTRACTS,UKIE - Immigration Enforcement,SERCO LTD,1411431-91970036-158586-5809074-2-2024,58090.74
Home Office,Home Office,14/02/2024,CONTRACTS,UKIE - Immigration Enforcement,SERCO LTD,1411431-91970211-158586-60186645-2-2024,601866.45
Home Office,Home Office,14/02/2024,CONTRACTS,UKIE - Immigration Enforcement,SERCO LTD,1411431-91970035-158586-78414756-2-2024,784147.56
Home Office,Home Office,15/02/2024,ASYLUM CASES,UKIE - Immigration Enforcement,CWT UK GROUP LTD,1417111-R7065072240213-112726-2793333-2-2024,27933.33
Home Office,Home Office,15/02/2024,ASYLUM CASES,UKIE - Immigration Enforcement,CWT UK GROUP LTD,1417111-R7065072240214-112726-2895516-2-2024,28955.16
Home Office,Home Office,15/02/2024,IN COUNTRY ESCORT,UKIE - Immigration Enforcement,MITIE CARE & CUSTODY LTD,1411412-186797/92966836-243944-80885183-2-2024,808851.83
Home Office,Home Office,15/02/2024,MARKETING & MEDIA,UKIE - Immigration Enforcement,NADRA,1418195-NADRA/PMO/UKPRA/03-53081-25080-2-2024,30096
Home Office,Home Office,16/02/2024,ASYLUM CASES,UKIE - Immigration Enforcement,CWT UK GROUP LTD,1417111-R7065072240215-112726-7995221-2-2024,79952.21
Home Office,Home Office,16/02/2024,ASYLUM CASES,UKIE - Immigration Enforcement,CWT UK GROUP LTD,1417111-24-284-0003848-112726-4703001-2-2024,470300.1
Home Office,Home Office,16/02/2024,ELECTRICITY,UKIE - Immigration Enforcement,EDF ENERGY,1411442-000018159776-153766-2123594-2-2024,25483.13
Home Office,Home Office,16/02/2024,ELECTRICITY,UKIE - Immigration Enforcement,EDF ENERGY,1411444-000018125813-153766-6685016-2-2024,80003.29
Home Office,Home Office,16/02/2024,FOREIGN ACCOMODATION,UKIE - Immigration Enforcement,FOREIGN COMMONWEALTH & DEVELOPMENT OFFICE,1417122-20013844-113026-1196-2-2024,119.6
Home Office,Home Office,16/02/2024,FOREIGN ACCOMODATION,UKIE - Immigration Enforcement,FOREIGN COMMONWEALTH & DEVELOPMENT OFFICE,1418219-20013844-113026-1196-2-2024,119.6
Home Office,Home Office,16/02/2024,HOTELS & ACCOMODATION,UKIE - Immigration Enforcement,FOREIGN COMMONWEALTH & DEVELOPMENT OFFICE,1444074-20013844-113026-33126-2-2024,331.26
Home Office,Home Office,16/02/2024,FCO CHARGES,UKIE - Immigration Enforcement,FOREIGN COMMONWEALTH & DEVELOPMENT OFFICE,1417122-20013844-113026-444428-2-2024,4444.28
